Workbook

Sheet BExRepositorySheet (hidden)
A1: 7
C14: Filter

Sheet SUMMARY - STATEWIDE
A1: NORTH CAROLINA DEPARTMENT OF TRANSPORTATION 2020 BID AVERAGES
A2: LET DATE | B2: RPN | C2: TIP | D2: CONTRACT | E2: PROJECT | F2: CAT | G2: COUNTY | H2: VENDOR NAME | I2: $TOTAL | J2: JOB | K2: FED WRK | L2: PROJ LGTH (MI) | M2: LN / CVT FILL DPTH | N2: CVT CODE OVR/UND RET WLL X-SECT | O2: BOX LTH /WLL HT (FT) | P2: BOX SPAN (FT) | Q2: BRG SUP STR | R2: SUB STR | S2: SPAN | T2: BRG WDTH (FT) | U2: BRG LTH (FT) | V2: AREA | W2: DIV | X2: LOC
A3: 1/21/2020 | B3: 1 | C3: I-5769 | D3: C204511 | E3: C204511-RW | F3: 1 | G3: MECKLENBURG | H3: BOGGS CONTRACTING INC | I3: 4580953.7 | J3: 0 | K3: I000 | L3: 1.36 | M3: 4 | N3: RH12 | V3: PDMT | W3: 10
E4: C204511-ST | F4: 1 | G4: MECKLENBURG | H4: BOGGS CONTRACTING INC | I4: 606765.22 | J4: BR01 | K4: X231 | N4: 11 | P4: 68.5417 | Q4: 336 | R4: I | S4: 3 | T4: 66 | U4: 178.5052 | V4: PDMT | W4: 10 | X4: BRIDGE NO. 590221
F5: 2 | G5: MECKLENBURG | H5: BOGGS CONTRACTING INC | I5: 573013.06 | J5: BR02 | K5: X231 | N5: 11 | P5: 64.875 | Q5: 336 | R5: I | S5: 3 | T5: 62 | U5: 178.5052 | V5: PDMT | W5: 10 | X5: BRIDGE NO. 590222
F6: 3 | G6: MECKLENBURG | H6: BOGGS CONTRACTING INC | I6: 2119767.58 | J6: BR03 | K6: X231 | N6: 11 | P6: 156 | Q6: 336 | R6: I | S6: 3 | T6: 154 | U6: 203.75 | V6: PDMT | W6: 10 | X6: BRIDGE NO. 590227
F7: 4 | G7: MECKLENBURG | H7: BOGGS CONTRACTING INC | I7: 524926.66 | J7: BR04 | K7: X231 | N7: 11 | P7: 76.875 | Q7: 336 | R7: I | S7: 3 | T7: 74 | U7: 137.2604 | V7: PDMT | W7: 10 | X7: BRIDGE NO. 590230
F8: 5 | G8: MECKLENBURG | H8: BOGGS CONTRACTING INC | I8: 554650.96 | J8: BR05 | K8: X231 | N8: 11 | P8: 94.5 | Q8: 336 | R8: I | S8: 3 | T8: 92 | U8: 137.2604 | V8: PDMT | W8: 10 | X8: BRIDGE NO. 590231
F9: 6 | G9: MECKLENBURG | H9: BOGGS CONTRACTING INC | I9: 695663.22 | J9: BR06 | K9: X231 | N9: 11 | P9: 64.0417 | Q9: 557 | R9: I | S9: 3 | T9: 61.5 | U9: 211.8906 | V9: PDMT | W9: 10 | X9: BRIDGE NO. 590241
F10: 7 | G10: MECKLENBURG | H10: BOGGS CONTRACTING INC | I10: 792600.86 | J10: BR07 | K10: X231 | N10: 11 | P10: 81.375 | Q10: 557 | R10: I | S10: 3 | T10: 78.5 | U10: 211.8906 | V10: PDMT | W10: 10 | X10: BRIDGE NO. 590243
H11: Result | I11: =SUM(I3:I10) -> 10448341.26 | L11: =SUM(L3:L10) -> 1.36
A12: 2/18/2020 | B12: 1 | C12: I-6063 | D12: C204467 | E12: C204467-RW | F12: 1 | G12: BUNCOMBE | H12: ROGERS GROUP INC | I12: 22271239.79 | J12: RW1 | K12: I000 | L12: 5 | M12: 4 | N12: R000 | V12: MTN | W12: 13
H13: Result | I13: =I12 -> 22271239.79 | L13: =L12 -> 5
A14: 3/17/2020 | B14: 1 | C14: I-6028B | D14: C204354 | E14: C204354-RW | F14: 1 | G14: MARTIN | H14: BARNHILL CONTRACTING CO | I14: 2723963.79 | J14: RW1 | K14: I000 | L14: 4.321 | M14: 4 | N14: RH10 | V14: COAST | W14: 1
H15: Result | I15: =I14 -> 2723963.79 | L15: =L14 -> 4.321
B16: 4 | C16: U-2714 | D16: C204131 | E16: C204131-EC | F16: 1 | G16: WAYNE | H16: JSMITH CIVIL LLC | I16: 601670 | J16: RW1 | M16: 4 | V16: PDMT | W16: 4
E17: C204131-RW | F17: 1 | G17: WAYNE | H17: JSMITH CIVIL LLC | I17: 10939439 | J17: RW1 | L17: 1.546 | M17: 4 | N17: D351 | V17: PDMT | W17: 4
E18: C204131-SG | F18: 1 | G18: WAYNE | H18: JSMITH CIVIL LLC | I18: 804525 | J18: RW1 | M18: 4 | V18: PDMT | W18: 4
E19: C204131-SI | F19: 1 | G19: WAYNE | H19: JSMITH CIVIL LLC | I19: 234359.64 | J19: RW1 | M19: 4 | V19: PDMT | W19: 4
E20: C204131-ST | F20: 1 | G20: WAYNE | H20: JSMITH CIVIL LLC | I20: 66855 | J20: CV01 | K20: Y007 | M20: 4.61 | N20: C201 | O20: 22.84 | P20: 8 | V20: PDMT | W20: 4 | X20: (75+49.09 -L-)
E21: C204131-TC | F21: 1 | G21: WAYNE | H21: JSMITH CIVIL LLC | I21: 226424 | J21: RW1 | M21: 4 | V21: PDMT | W21: 4
E22: C204131-UT | F22: 1 | G22: WAYNE | H22: JSMITH CIVIL LLC | I22: 2473432 | J22: RW1 | M22: 4 | V22: PDMT | W22: 4
H23: Result | I23: =SUM(I16:I22) -> 15346704.64 | L23: =L17 -> 1.546
B24: 5 | D24: C204545 | E24: C204545-RW | F24: 1 | G24: WAKE | H24: CAROLINA SUNROCK LLC | I24: 4291626.55 | J24: RW1 | L24: 22.88 | M24: 6 | V24: PDMT | W24: 5
H25: Result | I25: =I24 -> 4291626.55 | L25: =L24 -> 22.88
B26: 6 | C26: U-2581BA | D26: C204371 | E26: C204371-EC | F26: 1 | G26: GUILFORD | H26: APAC - ATLANTIC INC THOMPSON ARTHUR DIVI | I26: 578330 | J26: RW1 | M26: 5 | V26: PDMT | W26: 7
E27: C204371-RW | F27: 1 | G27: GUILFORD | H27: APAC - ATLANTIC INC THOMPSON ARTHUR DIVI | I27: 7813127.8 | J27: RW1 | L27: 1.49 | M27: 5 | N27: D344 | V27: PDMT | W27: 7
E28: C204371-SG | F28: 1 | G28: GUILFORD | H28: APAC - ATLANTIC INC THOMPSON ARTHUR DIVI | I28: 461002.55 | J28: RW1 | M28: 5 | V28: PDMT | W28: 7
E29: C204371-SI | F29: 1 | G29: GUILFORD | H29: APAC - ATLANTIC INC THOMPSON ARTHUR DIVI | I29: 93146.44 | J29: RW1 | M29: 5 | V29: PDMT | W29: 7
E30: C204371-ST | F30: 1 | G30: GUILFORD | H30: APAC - ATLANTIC INC THOMPSON ARTHUR DIVI | I30: 268656.8 | J30: CV01 | K30: Y007 | M30: 6.51 | N30: C001 | O30: 122.75 | P30: 10 | V30: PDMT | W30: 7 | X30: (55+67.00-L-)
E31: C204371-TC | F31: 1 | G31: GUILFORD | H31: APAC - ATLANTIC INC THOMPSON ARTHUR DIVI | I31: 170546.62 | J31: RW1 | M31: 5 | V31: PDMT | W31: 7
E32: C204371-UT | F32: 1 | G32: GUILFORD | H32: APAC - ATLANTIC INC THOMPSON ARTHUR DIVI | I32: 251891.82 | J32: RW1 | M32: 5 | V32: PDMT | W32: 7
F33: 2 | G33: GUILFORD | H33: APAC - ATLANTIC INC THOMPSON ARTHUR DIVI | I33: 1488836.07 | J33: RW1 | K33: NPAR | M33: 5 | V33: PDMT | W33: 7
H34: Result | I34: =SUM(I26:I33) -> 11125538.1 | L34: =L27 -> 1.49
B35: 8 | C35: I-5826 | D35: C204363 | E35: C204363-RW | F35: 1 | G35: MECKLENBURG | H35: BLYTHE CONSTRUCTION INC | I35: 6029477.89 | J35: RW1 | K35: I000 | L35: 13.88 | M35: 8 | N35: R000 | V35: PDMT | W35: 10
E36: C204363-ST | F36: 1 | G36: MECKLENBURG | H36: BLYTHE CONSTRUCTION INC | I36: 305097.5 | J36: BR01 | K36: X081 | L36: 0.04 | N36: 15 | P36: 174.08 | Q36: 745 | R36: I | S36: 3 | T36: 168.5 | U36: 197.5 | V36: PDMT | W36: 10 | X36: BRIDGE NO. 590296
H37: Result | I37: =SUM(I35:I36) -> 6334575.39 | L37: =SUM(L35:L36) -> 13.92
B38: 9 | C38: R-2915E | D38: C204356 | E38: C204356-EC | F38: 1 | G38: ASHE | H38: JAMES R VANNOY & SONS CONSTRUCTION COMPA | I38: 2467804.75 | J38: RW1 | K38: I000 | M38: 4 | V38: V MTN | W38: 11
E39: C204356-RW | F39: 1 | G39: ASHE | H39: JAMES R VANNOY & SONS CONSTRUCTION COMPA | I39: 20896668.8 | J39: RW1 | K39: I000 | L39: 3.532 | M39: 4 | N39: D310 | V39: V MTN | W39: 11
E40: C204356-SG | F40: 1 | G40: ASHE | H40: JAMES R VANNOY & SONS CONSTRUCTION COMPA | I40: 570635 | J40: RW1 | K40: I000 | M40: 4 | V40: V MTN | W40: 11
E41: C204356-SI | F41: 1 | G41: ASHE | H41: JAMES R VANNOY & SONS CONSTRUCTION COMPA | I41: 40778.5 | J41: RW1 | K41: I000 | M41: 4 | V41: V MTN | W41: 11
E42: C204356-ST | F42: 1 | G42: ASHE | H42: JAMES R VANNOY & SONS CONSTRUCTION COMPA | I42: 270429.75 | J42: CV01 | K42: Y007 | L42: 0.005 | M42: 4.81 | N42: C102 | O42: 178.83 | P42: 7 | V42: V MTN | W42: 11 | X42: (838+56.00-L-)
F43: 2 | G43: ASHE | H43: JAMES R VANNOY & SONS CONSTRUCTION COMPA | I43: 914228 | J43: WL1 | K43: Y007 | N43: W001 | O43: 11.96 | V43: V MTN | W43: 11 | X43: (10+00.00-NW7B-)
E44: C204356-TC | F44: 1 | G44: ASHE | H44: JAMES R VANNOY & SONS CONSTRUCTION COMPA | I44: 1500568.1 | J44: RW1 | K44: I000 | M44: 4 | V44: V MTN | W44: 11
E45: C204356-UT | F45: 1 | G45: ASHE | H45: JAMES R VANNOY & SONS CONSTRUCTION COMPA | I45: 748431 | J45: RW1 | K45: I000 | M45: 4 | V45: V MTN | W45: 11
H46: Result | I46: =SUM(I38:I45) -> 27409543.9 | L46: =SUM(L38:L45) -> 3.537
A47: 4/21/2020 | B47: 7 | D47: C204547 | E47: C204547-EC | F47: 1 | G47: JACKSON | H47: WNC PAVING INC | I47: 143802 | J47: RW1 | M47: 5 | V47: V MTN | W47: 14
E48: C204547-RW | F48: 1 | G48: JACKSON | H48: WNC PAVING INC | I48: 5891926.89 | J48: RW1 | L48: 0.25 | M48: 5 | V48: V MTN | W48: 14
E49: C204547-TC | F49: 1 | G49: JACKSON | H49: WNC PAVING INC | I49: 34882.5 | J49: RW1 | M49: 5 | V49: V MTN | W49: 14
H50: Result | I50: =SUM(I47:I49) -> 6070611.39 | L50: =L48 -> 0.25
A51: 9/15/2020 | B51: 1 | D51: C204557 | E51: C204557A-RW | F51: 1 | G51: NEW HANOVER | H51: JSMITH CIVIL LLC | I51: 5304209.9 | J51: RW1 | K51: I000 | L51: 0.6903 | M51: 4 | N51: M710 | V51: COAST | W51: 3
E52: C204557B-RW | F52: 1 | G52: PENDER | H52: JSMITH CIVIL LLC | I52: 1928061.85 | J52: RW1 | K52: I000 | L52: 0.6007 | M52: 4 | N52: M710 | V52: COAST | W52: 3
H53: Result | I53: =SUM(I51:I52) -> 7232271.75 | L53: =SUM(L51:L52) -> 1.291
B54: 2 | D54: C204558 | E54: C204558-EC | F54: 1 | G54: BLADEN | H54: SMITH-ROWE, LLC | I54: 178026.95 | J54: RW1 | K54: I000 | M54: 4 | V54: COAST | W54: 6
E55: C204558-RW | F55: 1 | G55: BLADEN | H55: SMITH-ROWE, LLC | I55: 3581500.62 | J55: RW1 | K55: I000 | L55: 0.336 | M55: 4 | N55: B813 | V55: COAST | W55: 6
E56: C204558-SI | F56: 1 | G56: BLADEN | H56: SMITH-ROWE, LLC | I56: 69493.1 | J56: RW1 | K56: I000 | M56: 4 | V56: COAST | W56: 6
E57: C204558-ST | F57: 1 | G57: BLADEN | H57: SMITH-ROWE, LLC | I57: 19368846.35 | J57: BR01 | K57: X081 | L57: 0.231 | N57: 15 | P57: 72.5833 | Q57: 800 | R57: Q | S57: 8 | T57: 70 | U57: 1218 | V57: COAST | W57: 6 | X57: (118+81.78-L-)
E58: C204558-TC | F58: 1 | G58: BLADEN | H58: SMITH-ROWE, LLC | I58: 135770.5 | J58: RW1 | K58: I000 | M58: 4 | V58: COAST | W58: 6
H59: Result | I59: =SUM(I54:I58) -> 23333637.52 | L59: =SUM(L54:L58) -> 0.567
B60: 3 | C60: I-5795 | D60: C203978 | E60: C203978-RW | F60: 1 | G60: FORSYTH | H60: FLATIRON CONSTRUCTORS INC | I60: 9855068.07 | J60: RW1 | K60: I000 | L60: 11.764 | M60: 6 | N60: RH11 | V60: PDMT | W60: 9
E61: C203978-ST | F61: 1 | G61: FORSYTH | H61: FLATIRON CONSTRUCTORS INC | I61: 405840.19 | J61: BR01 | K61: X281 | P61: 70.8333 | Q61: 745 | R61: I | S61: 4 | T61: 68 | U61: 222.5 | V61: PDMT | W61: 9 | X61: BRIDGE NO. 330439
F62: 2 | G62: FORSYTH | H62: FLATIRON CONSTRUCTORS INC | I62: 637377.59 | J62: BR02 | K62: X231 | N62: 11 | P62: 83.6667 | Q62: 550 | R62: I | S62: 4 | T62: 76 | U62: 265 | V62: PDMT | W62: 9 | X62: BRIDGE NO. 330441
F63: 3 | G63: FORSYTH | H63: FLATIRON CONSTRUCTORS INC | I63: 353041.82 | J63: BR03 | K63: X231 | L63: 0.035 | N63: 11 | P63: 58.8333 | Q63: 556 | R63: I | S63: 3 | T63: 56 | U63: 185.1667 | V63: PDMT | W63: 9 | X63: BRIDGE NO. 330451
F64: 4 | G64: FORSYTH | H64: FLATIRON CONSTRUCTORS INC | I64: 349690.39 | J64: BR04 | K64: X231 | N64: 11 | P64: 58.8333 | Q64: 556 | R64: I | S64: 3 | T64: 56 | U64: 185.75 | V64: PDMT | W64: 9 | X64: BRIDGE NO. 330452
F65: 5 | G65: FORSYTH | H65: FLATIRON CONSTRUCTORS INC | I65: 689555.64 | J65: BR05 | K65: X231 | N65: 11 | P65: 126.83 | Q65: 542 | R65: I | S65: 3 | T65: 120 | U65: 199.0833 | V65: PDMT | W65: 9 | X65: BRIDGE NO. 330454
F66: 6 | G66: FORSYTH | H66: FLATIRON CONSTRUCTORS INC | I66: 272267.83 | J66: BR06 | K66: X281 | N66: 11 | P66: 50.8333 | Q66: 781 | R66: I | S66: 4 | T66: 48 | U66: 213 | V66: PDMT | W66: 9 | X66: BRIDGE NO. 330458
F67: 7 | G67: FORSYTH | H67: FLATIRON CONSTRUCTORS INC | I67: 245403.63 | J67: BR07 | K67: X281 | L67: 0.026 | N67: 11 | P67: 58.8333 | Q67: 745 | R67: I | S67: 3 | T67: 56 | U67: 137.5 | V67: PDMT | W67: 9 | X67: BRIDGE NO. 330479
F68: 8 | G68: FORSYTH | H68: FLATIRON CONSTRUCTORS INC | I68: 204839.24 | J68: BR08 | K68: X281 | N68: 11 | P68: 58.8333 | Q68: 781 | R68: I | S68: 3 | T68: 56 | U68: 116.75 | V68: PDMT | W68: 9 | X68: BRIDGE NO. 330480
F69: 9 | G69: FORSYTH | H69: FLATIRON CONSTRUCTORS INC | I69: 201920.52 | J69: BR09 | K69: X281 | L69: 0.023 | N69: 11 | P69: 58.8333 | Q69: 736 | R69: I | S69: 3 | T69: 56 | U69: 119.667 | V69: PDMT | W69: 9 | X69: BRIDGE NO. 330481
F70: 10 | G70: FORSYTH | H70: FLATIRON CONSTRUCTORS INC | I70: 220154.57 | J70: BR10 | K70: X281 | N70: 11 | P70: 58.8333 | Q70: 736 | R70: I | S70: 3 | T70: 56 | U70: 118.4167 | V70: PDMT | W70: 9 | X70: BRIDGE NO. 330482
F71: 11 | G71: FORSYTH | H71: FLATIRON CONSTRUCTORS INC | I71: 307459.41 | J71: BR11 | K71: X081 | L71: 0.036 | N71: 15 | P71: 66.8333 | Q71: 754 | R71: I | S71: 3 | T71: 64 | U71: 188.2708 | V71: PDMT | W71: 9 | X71: BRIDGE NO. 330486
F72: 12 | G72: FORSYTH | H72: FLATIRON CONSTRUCTORS INC | I72: 269131.93 | J72: BR12 | K72: X081 | N72: 15 | P72: 58.8333 | Q72: 754 | R72: I | S72: 3 | T72: 56 | U72: 188.2604 | V72: PDMT | W72: 9 | X72: BRIDGE NO. 330487
F73: 13 | G73: FORSYTH | H73: FLATIRON CONSTRUCTORS INC | I73: 339321.27 | J73: BR13 | K73: X231 | L73: 0.033 | N73: 11 | P73: 66.8333 | Q73: 336 | R73: I | S73: 3 | T73: 64 | U73: 176.5833 | V73: PDMT | W73: 9 | X73: BRIDGE NO. 330488
F74: 14 | G74: FORSYTH | H74: FLATIRON CONSTRUCTORS INC | I74: 280605.33 | J74: BR14 | K74: X231 | N74: 11 | P74: 58.8333 | Q74: 436 | R74: I | S74: 3 | T74: 56 | U74: 163.0833 | V74: PDMT | W74: 9 | X74: BRIDGE NO. 330489
F75: 15 | G75: FORSYTH | H75: FLATIRON CONSTRUCTORS INC | I75: 127734.86 | J75: BR15 | K75: X081 | N75: 15 | P75: 79.0833 | Q75: 845 | R75: Q | S75: 3 | T75: 76 | U75: 197.3333 | V75: PDMT | W75: 9 | X75: BRIDGE NO. 330161
F76: 16 | G76: FORSYTH | H76: FLATIRON CONSTRUCTORS INC | I76: 104673.36 | J76: BR16 | K76: X081 | N76: 15 | P76: 79.0833 | Q76: 845 | R76: Q | S76: 3 | T76: 76 | U76: 197.3333 | V76: PDMT | W76: 9 | X76: BRIDGE NO. 330162
F77: 17 | G77: FORSYTH | H77: FLATIRON CONSTRUCTORS INC | I77: 713336.58 | J77: BR17 | K77: X231 | N77: 11 | P77: 50.8333 | Q77: 660 | R77: I | S77: 6 | T77: 48 | U77: 592 | V77: PDMT | W77: 9 | X77: BRIDGE NO. 330444
F78: 18 | G78: FORSYTH | H78: FLATIRON CONSTRUCTORS INC | I78: 135062.85 | J78: BR18 | K78: X281 | N78: 11 | P78: 70.8333 | Q78: 745 | R78: I | S78: 3 | T78: 68 | U78: 142.3125 | V78: PDMT | W78: 9 | X78: BRIDGE NO. 330448
F79: 19 | G79: FORSYTH | H79: FLATIRON CONSTRUCTORS INC | I79: 139319.91 | J79: BR19 | K79: X281 | N79: 11 | P79: 70.8333 | Q79: 745 | R79: I | S79: 3 | T79: 68 | U79: 152.8125 | V79: PDMT | W79: 9 | X79: BRIDGE NO. 330449
F80: 20 | G80: FORSYTH | H80: FLATIRON CONSTRUCTORS INC | I80: 264880.73 | J80: BR20 | K80: X231 | N80: 11 | P80: 58.8333 | Q80: 690 | R80: I | S80: 3 | T80: 56 | U80: 393.5833 | V80: PDMT | W80: 9 | X80: BRIDGE NO. 330508
F81: 21 | G81: FORSYTH | H81: FLATIRON CONSTRUCTORS INC | I81: 625200.08 | J81: BR21 | K81: X231 | N81: 11 | P81: 42.8333 | Q81: 672 | R81: I | S81: 6 | T81: 40 | U81: 822.5521 | V81: PDMT | W81: 9 | X81: BRIDGE NO. 330509
H82: Result | I82: =SUM(I60:I81) -> 16741885.8 | L82: =SUM(L60:L81) -> 11.917
A83: 10/20/2020 | B83: 1 | D83: C204409 | E83: C204409A-RW | F83: 1 | G83: BRUNSWICK | H83: S T WOOTEN CORPORATION | I83: 3989845.42 | J83: RW1 | L83: 12.44 | M83: 4 | N83: R000 | V83: COAST | W83: 3
E84: C204409B-RW | F84: 1 | G84: BRUNSWICK | H84: S T WOOTEN CORPORATION | I84: 1273391.7 | J84: RW1 | L84: 9.38 | M84: 2 | N84: R000 | V84: COAST | W84: 3
E85: C204409C-RW | F85: 1 | G85: BRUNSWICK | H85: S T WOOTEN CORPORATION | I85: 348279.47 | J85: RW1 | L85: 11.78 | M85: 2 | N85: R000 | V85: COAST | W85: 3
H86: Result | I86: =SUM(I83:I85) -> 5611516.59 | L86: =SUM(L83:L85) -> 33.6
B87: 2 | D87: C204520 | E87: C204520A-RW | F87: 1 | G87: DURHAM | H87: CAROLINA SUNROCK LLC | I87: 2076809.57 | J87: RW1 | L87: 5.06 | M87: 5 | N87: R000 | V87: PDMT | W87: 5
E88: C204520B-RW | F88: 1 | G88: DURHAM | H88: CAROLINA SUNROCK LLC | I88: 1192605.83 | J88: RW1 | L88: 10.25 | M88: 2 | N88: R000 | V88: PDMT | W88: 5
E89: C204520C-RW | F89: 1 | G89: DURHAM | H89: CAROLINA SUNROCK LLC | I89: 243965.86 | J89: RW1 | L89: 2.37 | M89: 2 | N89: R000 | V89: PDMT | W89: 5
H90: Result | I90: =SUM(I87:I89) -> 3513381.26 | L90: =SUM(L87:L89) -> 17.68
B91: 3 | D91: C204510 | E91: C204510-RW | F91: 1 | G91: WAKE | H91: CAROLINA SUNROCK LLC | I91: 3042295.16 | J91: RW1 | L91: 11.639 | M91: 4 | N91: R000 | V91: PDMT | W91: 5
H92: Result | I92: =I91 -> 3042295.16 | L92: =L91 -> 11.639
B93: 4 | D93: C204525 | E93: C204525-RW | F93: 1 | G93: WAKE | H93: FSC II LLC DBA FRED SMITH COMPANY | I93: 4109805.98 | J93: RW1 | L93: 30.378 | M93: 5 | N93: R000 | V93: PDMT | W93: 5
H94: Result | I94: =I93 -> 4109805.98 | L94: =L93 -> 30.378
B95: 5 | D95: C204559 | E95: C204559-RW | F95: 1 | G95: FRANKLIN | H95: CAROLINA SUNROCK LLC | I95: 2844573.64 | J95: RW1 | L95: 29.68 | M95: 2 | N95: R000 | V95: PDMT | W95: 5
H96: Result | I96: =I95 -> 2844573.64 | L96: =L95 -> 29.68
B97: 6 | D97: C204560 | E97: C204560A-RW | F97: 1 | G97: VANCE | H97: CAROLINA SUNROCK LLC | I97: 430293.44 | J97: RW1 | L97: 3.82 | M97: 2 | N97: R000 | V97: PDMT | W97: 5
E98: C204560B-RW | F98: 1 | G98: VANCE | H98: CAROLINA SUNROCK LLC | I98: 2976679.57 | J98: RW1 | L98: 21.958 | M98: 2 | N98: R000 | V98: PDMT | W98: 5
E99: C204560C-RW | F99: 1 | G99: WARREN | H99: CAROLINA SUNROCK LLC | I99: 362285.01 | J99: RW1 | L99: 3.588 | M99: 2 | N99: R000 | V99: PDMT | W99: 5
H100: Result | I100: =SUM(I97:I99) -> 3769258.02 | L100: =SUM(L97:L99) -> 29.366
B101: 7 | D101: C204465 | E101: C204465-RW | F101: 1 | G101: GUILFORD | H101: BLYTHE CONSTRUCTION INC | I101: 3884488.85 | J101: RW1 | L101: 3.957 | M101: 2 | N101: R000 | V101: PDMT | W101: 7
H102: Result | I102: =I101 -> 3884488.85 | L102: =L101 -> 3.957
A103: 11/17/2020 | B103: 1 | C103: BR-0117 | D103: C204529 | E103: C204529-EC | F103: 1 | G103: NORTHAMPTON | H103: NATIONAL BRIDGE BUILDERS LLC | I103: 36170 | J103: RW1 | K103: I000 | M103: 2 | V103: PDMT | W103: 1
E104: C204529-RW | F104: 1 | G104: NORTHAMPTON | H104: NATIONAL BRIDGE BUILDERS LLC | I104: 253635 | J104: RW1 | K104: I000 | L104: 0.115 | M104: 2 | N104: B810 | V104: PDMT | W104: 1
E105: C204529-SI | F105: 1 | G105: NORTHAMPTON | H105: NATIONAL BRIDGE BUILDERS LLC | I105: 5600 | J105: RW1 | K105: I000 | M105: 2 | V105: PDMT | W105: 1
E106: C204529-ST | F106: 1 | G106: NORTHAMPTON | H106: NATIONAL BRIDGE BUILDERS LLC | I106: 385140 | J106: BR01 | K106: X080 | L106: 0.018 | N106: 15 | P106: 30 | Q106: 721 | R106: A | S106: 2 | T106: 27.8333 | U106: 97.375 | V106: PDMT | W106: 1 | X106: (14+26.35 -L-)
E107: C204529-TC | F107: 1 | G107: NORTHAMPTON | H107: NATIONAL BRIDGE BUILDERS LLC | I107: 4544 | J107: RW1 | K107: I000 | M107: 2 | V107: PDMT | W107: 1
H108: Result | I108: =SUM(I103:I107) -> 685089 | L108: =SUM(L103:L107) -> 0.133
B109: 2 | C109: BR-0120 | D109: C204522 | E109: C204515C-EC | F109: 1 | G109: PITT | H109: S T WOOTEN CORPORATION | I109: 27222.5 | J109: RW1 | K109: I000 | M109: 2 | V109: COAST | W109: 2
E110: C204515C-RW | F110: 1 | G110: PITT | H110: S T WOOTEN CORPORATION | I110: 161941 | J110: RW1 | K110: I000 | L110: 0.073 | M110: 2 | N110: B810 | V110: COAST | W110: 2
E111: C204515C-SI | F111: 1 | G111: PITT | H111: S T WOOTEN CORPORATION | I111: 4770 | J111: RW1 | K111: I000 | M111: 2 | V111: COAST | W111: 2
E112: C204515C-ST | F112: 1 | G112: PITT | H112: S T WOOTEN CORPORATION | I112: 294426 | J112: BR01 | K112: X080 | L112: 0.014 | N112: 15 | P112: 27 | Q112: 722 | R112: A | S112: 1 | T112: 24.8333 | U112: 72.25 | V112: COAST | W112: 2 | X112: (13+56.30 -L-)
E113: C204515C-TC | F113: 1 | G113: PITT | H113: S T WOOTEN CORPORATION | I113: 4403 | J113: RW1 | K113: I000 | M113: 2 | V113: COAST | W113: 2
H114: Result | I114: =SUM(I109:I113) -> 492762.5 | L114: =SUM(L109:L113) -> 0.087
B115: 6 | C115: BR-0121 | D115: C204514 | E115: C204514A-EC | F115: 1 | G115: SAMPSON | H115: S & C CONSTRUCTION LLC | I115: 26310.08 | J115: RW1 | K115: I000 | M115: 2 | V115: COAST | W115: 3
E116: C204514A-RW | F116: 1 | G116: SAMPSON | H116: S & C CONSTRUCTION LLC | I116: 155004.72 | J116: RW1 | K116: I000 | L116: 0.079 | M116: 2 | N116: B810 | V116: COAST | W116: 3
E117: C204514A-SI | F117: 1 | G117: SAMPSON | H117: S & C CONSTRUCTION LLC | I117: 2373 | J117: RW1 | K117: I000 | M117: 2 | V117: COAST | W117: 3
E118: C204514A-ST | F118: 1 | G118: SAMPSON | H118: S & C CONSTRUCTION LLC | I118: 340760.09 | J118: BR01 | K118: X080 | L118: 0.02 | N118: 15 | P118: 33 | Q118: 721 | R118: A | S118: 2 | T118: 30.8333 | U118: 107.375 | V118: COAST | W118: 3 | X118: (15+46.50 -L-)
E119: C204514A-TC | F119: 1 | G119: SAMPSON | H119: S & C CONSTRUCTION LLC | I119: 3389.42 | J119: RW1 | K119: I000 | M119: 2 | V119: COAST | W119: 3
H120: Result | I120: =SUM(I115:I119) -> 527837.31 | L120: =SUM(L115:L119) -> 0.099
B121: 7 | D121: C204213 | E121: C204213-ST | F121: 1 | G121: HALIFAX | H121: LANFORD BROTHERS CO., INC. | I121: 1057952.12 | J121: BR01 | K121: X031 | L121: 0.144 | N121: 15 | P121: 46.833 | Q121: 570 | R121: N | S121: 5 | T121: 44 | U121: 760 | V121: PDMT | W121: 4 | X121: BRIDGE NO. 63
E122: C204213-TC | F122: 1 | G122: HALIFAX | H122: LANFORD BROTHERS CO., INC. | I122: 125299.54 | J122: BR01 | K122: X031 | M122: 2 | N122: M720 | Q122: 570 | R122: N | S122: 5 | T122: 44 | U122: 760 | V122: PDMT | W122: 4 | X122: BRIDGE NO. 63
H123: Result | I123: =SUM(I121:I122) -> 1183251.66 | L123: =SUM(L121:L122) -> 0.144
B124: 9 | C124: BR-0111 | D124: C204528 | E124: C204517C-EC | F124: 1 | G124: EDGECOMBE | H124: NATIONAL BRIDGE BUILDERS LLC | I124: 154625 | J124: RW1 | K124: I000 | M124: 2 | V124: PDMT | W124: 4
E125: C204517C-RW | F125: 1 | G125: EDGECOMBE | H125: NATIONAL BRIDGE BUILDERS LLC | I125: 592312.5 | J125: RW1 | K125: I000 | L125: 0.361 | M125: 2 | N125: B810 | V125: PDMT | W125: 4
E126: C204517C-SI | F126: 1 | G126: EDGECOMBE | H126: NATIONAL BRIDGE BUILDERS LLC | I126: 28336 | J126: RW1 | K126: I000 | M126: 2 | V126: PDMT | W126: 4
E127: C204517C-ST | F127: 1 | G127: EDGECOMBE | H127: NATIONAL BRIDGE BUILDERS LLC | I127: 378807.5 | J127: BR01 | K127: X080 | L127: 0.019 | N127: 15 | P127: 33 | Q127: 721 | R127: A | S127: 2 | T127: 30.8333 | U127: 102.375 | V127: PDMT | W127: 4 | X127: (16+80.00-L-)
F128: 2 | G128: EDGECOMBE | H128: NATIONAL BRIDGE BUILDERS LLC | I128: 517858.5 | J128: BR02 | K128: X080 | L128: 0.032 | N128: 15 | P128: 33 | Q128: 721 | R128: A | S128: 3 | T128: 30.8333 | U128: 167.5 | V128: PDMT | W128: 4 | X128: (31+08.50-L-)
F129: 3 | G129: EDGECOMBE | H129: NATIONAL BRIDGE BUILDERS LLC | I129: 514837.5 | J129: BR03 | K129: X080 | L129: 0.032 | N129: 15 | P129: 30.8333 | Q129: 721 | R129: A | S129: 3 | T129: 30.8333 | U129: 167.5 | V129: PDMT | W129: 4 | X129: (35+90.50-L-)
E130: C204517C-TC | F130: 1 | G130: EDGECOMBE | H130: NATIONAL BRIDGE BUILDERS LLC | I130: 7580 | J130: RW1 | K130: I000 | M130: 2 | V130: PDMT | W130: 4
H131: Result | I131: =SUM(I124:I130) -> 2194357 | L131: =SUM(L124:L130) -> 0.444
B132: 10 | D132: C204562 | E132: C204562-RW | F132: 1 | G132: PERSON | H132: CAROLINA SUNROCK LLC | I132: 2533551.37 | J132: RW1 | L132: 22.393 | M132: 2 | N132: R000 | V132: PDMT | W132: 5
H133: Result | I133: =I132 -> 2533551.37 | L133: =L132 -> 22.393
B134: 11 | D134: C204563 | E134: C204563A-RW | F134: 1 | G134: WAKE | H134: FSC II LLC DBA FRED SMITH COMPANY | I134: 1499940.33 | J134: RW1 | L134: 13.859 | M134: 2 | N134: R000 | V134: PDMT | W134: 5
E135: C204563B-RW | F135: 1 | G135: WAKE | H135: FSC II LLC DBA FRED SMITH COMPANY | I135: 547700.49 | J135: RW1 | L135: 8.288 | M135: 2 | N135: R000 | V135: PDMT | W135: 5
H136: Result | I136: =SUM(I134:I135) -> 2047640.82 | L136: =SUM(L134:L135) -> 22.147
B137: 12 | D137: C204564 | E137: C204564-RW | F137: 1 | G137: WAKE | H137: BLYTHE CONSTRUCTION INC | I137: 2968224.05 | J137: RW1 | L137: 16.726 | M137: 2 | N137: R000 | V137: PDMT | W137: 5
H138: Result | I138: =I139 -> 3422632.9 | L138: =SUM(L134:L137) -> 61.02
B139: 13 | D139: C204284 | E139: C204284-RW | F139: 1 | G139: CASWELL | H139: APAC - ATLANTIC INC THOMPSON ARTHUR DIVI | I139: 3422632.9 | J139: RW1 | K139: I000 | L139: 6.028 | M139: 4 | N139: R000 | V139: PDMT | W139: 7
H140: Result | I140: =I139 -> 3422632.9 | L140: =L139 -> 6.028
B141: 15 | D141: C204565 | E141: C204565A-RW | F141: 1 | G141: UNION | H141: LYNCHES RIVER CONTRACTING INC | I141: 717722.71 | J141: RW1 | L141: 1.64 | M141: 2 | N141: R000 | V141: PDMT | W141: 10
E142: C204565B-RW | F142: 1 | G142: UNION | H142: LYNCHES RIVER CONTRACTING INC | I142: 3635914.12 | J142: RW1 | L142: 17.5 | M142: 2 | N142: R000 | V142: PDMT | W142: 10
E143: C204565C-RW | F143: 1 | G143: UNION | H143: LYNCHES RIVER CONTRACTING INC | I143: 714702.1 | J143: RW1 | L143: 6 | M143: 2 | N143: R000 | V143: PDMT | W143: 10
H144: Result | I144: =SUM(I141:I143) -> 5068338.93 | L144: =SUM(L141:L143) -> 25.14
B145: 16 | C145: BR-0127 | D145: C204541 | E145: C204541-EC | F145: 1 | G145: YADKIN | H145: SMITH-ROWE, LLC | I145: 17938 | J145: RW1 | K145: I000 | M145: 2 | V145: PDMT | W145: 11
E146: C204541-RW | F146: 1 | G146: YADKIN | H146: SMITH-ROWE, LLC | I146: 228275.6 | J146: RW1 | K146: I000 | L146: 0.095 | M146: 2 | N146: B810 | V146: PDMT | W146: 11
E147: C204541-SI | F147: 1 | G147: YADKIN | H147: SMITH-ROWE, LLC | I147: 4746 | J147: RW1 | K147: I000 | M147: 2 | V147: PDMT | W147: 11
E148: C204541-ST | F148: 1 | G148: YADKIN | H148: SMITH-ROWE, LLC | I148: 248765.25 | J148: BR01 | K148: X080 | L148: 0.012 | N148: 15 | P148: 32 | Q148: 722 | R148: A | S148: 1 | T148: 27.8333 | U148: 62.23 | V148: PDMT | W148: 11 | X148: (16+09.00 -L-)
E149: C204541-TC | F149: 1 | G149: YADKIN | H149: SMITH-ROWE, LLC | I149: 4759 | J149: RW1 | K149: I000 | M149: 2 | V149: PDMT | W149: 11
H150: Result | I150: =SUM(I145:I149) -> 504483.85 | L150: =SUM(L145:L149) -> 0.107
B151: 17 | D151: C204566 | E151: C204566A-RW | F151: 1 | G151: JOHNSTON | H151: S T WOOTEN CORPORATION | I151: 1067992.46 | J151: RW1 | L151: 9.5 | M151: 2 | N151: R000 | V151: PDMT | W151: 4
E152: C204566C-RW | F152: 1 | G152: JOHNSTON | H152: S T WOOTEN CORPORATION | I152: 2691218.53 | J152: RW1 | L152: 35.19 | M152: 2 | N152: R000 | V152: PDMT | W152: 4
H153: Result | I153: =SUM(I151:I152) -> 3759210.99 | L153: =SUM(L151:L152) -> 44.69
B154: 18 | D154: C204584 | E154: C204584A-RW | F154: 1 | G154: WAYNE | H154: FSC II LLC DBA FRED SMITH COMPANY | I154: 455013.9 | J154: RW1 | L154: 4 | M154: 2 | N154: R000 | V154: PDMT | W154: 4
E155: C204584B-RW | F155: 1 | G155: WAYNE | H155: FSC II LLC DBA FRED SMITH COMPANY | I155: 1728187.7 | J155: RW1 | L155: 16.94 | M155: 2 | N155: R000 | V155: PDMT | W155: 4
H156: Result | I156: =SUM(I154:I155) -> 2183201.6 | L156: =SUM(L154:L155) -> 20.94
B157: 19 | D157: C204573 | E157: C204573A-RW | F157: 1 | G157: DUPLIN | H157: BARNHILL CONTRACTING CO | I157: 391195.2 | J157: RW1 | L157: 1.48 | M157: 4 | N157: R000 | V157: PDMT | W157: 3
E158: C204573B-RW | F158: 1 | G158: DUPLIN | H158: BARNHILL CONTRACTING CO | I158: 1068099.26 | J158: RW1 | L158: 8.62 | M158: 2 | N158: R000 | V158: PDMT | W158: 3
E159: C204573C-RW | F159: 1 | G159: DUPLIN | H159: BARNHILL CONTRACTING CO | I159: 204718.8 | J159: RW1 | L159: 15.1 | M159: 2 | N159: R000 | V159: PDMT | W159: 3
H160: Result | I160: =SUM(I157:I159) -> 1664013.26 | L160: =SUM(L157:L159) -> 25.2
B161: 20 | D161: C204585 | E161: C204585A-RW | F161: 1 | G161: DUPLIN | H161: S T WOOTEN CORPORATION | I161: 18735.78 | J161: RW1 | L161: 1.09 | M161: 2 | N161: R000 | V161: PDMT | W161: 3
E162: C204585B-RW | F162: 1 | G162: DUPLIN | H162: S T WOOTEN CORPORATION | I162: 1402219.78 | J162: RW1 | L162: 11.5 | M162: 2 | N162: R000 | V162: PDMT | W162: 3
E163: C204585C-RW | F163: 1 | G163: DUPLIN | H163: S T WOOTEN CORPORATION | I163: 202558.13 | J163: RW1 | L163: 18 | M163: 2 | N163: R000 | V163: PDMT | W163: 3
H164: Result | I164: =SUM(I161:I163) -> 1623513.69 | L164: =SUM(L161:L163) -> 30.59
B165: 21 | D165: C204586 | E165: C204586A-RW | F165: 1 | G165: DUPLIN | H165: BARNHILL CONTRACTING CO | I165: 105669.25 | J165: RW1 | L165: 4.96 | M165: 2 | N165: R000 | V165: PDMT | W165: 3
E166: C204586B-RW | F166: 1 | G166: DUPLIN | H166: BARNHILL CONTRACTING CO | I166: 1418407.88 | J166: RW1 | L166: 12.16 | M166: 2 | N166: R000 | V166: PDMT | W166: 3
E167: C204586C-RW | F167: 1 | G167: DUPLIN | H167: BARNHILL CONTRACTING CO | I167: 153648.5 | J167: RW1 | L167: 23.15 | M167: 2 | N167: R000 | V167: PDMT | W167: 3
H168: Result | I168: =SUM(I165:I167) -> 1677725.63 | L168: =SUM(L165:L167) -> 40.27
B169: 22 | D169: C204574 | E169: C204574A-RW | F169: 1 | G169: ONSLOW | H169: BARNHILL CONTRACTING CO | I169: 22960 | J169: RW1 | L169: 12.4 | M169: 2 | N169: R000 | V169: COAST | W169: 3
E170: C204574B-RW | F170: 1 | G170: ONSLOW | H170: BARNHILL CONTRACTING CO | I170: 1864750.15 | J170: RW1 | L170: 9.92 | M170: 2 | N170: R000 | V170: COAST | W170: 3
E171: C204574C-RW | F171: 1 | G171: ONSLOW | H171: BARNHILL CONTRACTING CO | I171: 231637.97 | J171: RW1 | L171: 4.3 | M171: 2 | N171: R000 | V171: COAST | W171: 3
H172: Result | I172: =SUM(I169:I171) -> 2119348.12 | L172: =SUM(L169:L171) -> 26.62
B173: 23 | D173: C204587 | E173: C204587A-RW | F173: 1 | G173: ONSLOW | H173: BARNHILL CONTRACTING CO | I173: 45687.5 | J173: RW1 | L173: 2 | M173: 2 | N173: R000 | V173: COAST | W173: 3
E174: C204587B-RW | F174: 1 | G174: ONSLOW | H174: BARNHILL CONTRACTING CO | I174: 1702020.39 | J174: RW1 | L174: 12 | M174: 2 | N174: R000 | V174: COAST | W174: 3
E175: C204587C-RW | F175: 1 | G175: ONSLOW | H175: BARNHILL CONTRACTING CO | I175: 113989.56 | J175: RW1 | L175: 11 | M175: 2 | N175: R000 | V175: COAST | W175: 3
H176: Result | I176: =SUM(I173:I175) -> 1861697.45 | L176: =SUM(L173:L175) -> 25
A177: 12/15/2020 | B177: 1 | D177: C204561 | E177: C204300-ST | F177: 1 | G177: BRUNSWICK | H177: FREYSSINET, INC | I177: 2495891.5 | J177: BR01 | K177: X281 | L177: 0.36 | N177: 15 | P177: 32.25 | Q177: 754 | R177: I | S177: 21 | T177: 30 | U177: 1897.0833 | V177: COAST | W177: 3 | X177: BRIDGE NO. 090013
E178: C204300-TC | F178: 1 | G178: BRUNSWICK | H178: FREYSSINET, INC | I178: 313783.8 | J178: RW1 | M178: 2 | N178: M720 | V178: COAST | W178: 3
H179: Result | I179: =SUM(I177:I178) -> 2809675.3 | L179: =SUM(L177:L178) -> 0.36
B180: 2 | C180: BR-0118 | D180: C204530 | E180: C204530-EC | F180: 1 | G180: NORTHAMPTON | H180: DELLINGER INC | I180: 52040.75 | J180: RW1 | K180: I000 | M180: 2 | V180: PDMT | W180: 1
E181: C204530-RW | F181: 1 | G181: NORTHAMPTON | H181: DELLINGER INC | I181: 448347.19 | J181: RW1 | K181: I000 | L181: 0.162 | M181: 2 | N181: B812 | V181: PDMT | W181: 1
E182: C204530-ST | F182: 1 | G182: NORTHAMPTON | H182: DELLINGER INC | I182: 375555.36 | J182: BR01 | K182: X080 | L182: 0.014 | N182: 15 | P182: 30 | Q182: 722 | R182: A | S182: 1 | T182: 27.8333 | U182: 72.25 | V182: PDMT | W182: 1 | X182: (13+92.37-L-)
E183: C204530-TC | F183: 1 | G183: NORTHAMPTON | H183: DELLINGER INC | I183: 34056.7 | J183: RW1 | K183: I000 | M183: 2 | V183: PDMT | W183: 1
H184: Result | I184: =SUM(I180:I183) -> 910000 | L184: =SUM(L180:L183) -> 0.176
B185: 3 | D185: C204579 | E185: C204579A-RW | F185: 1 | G185: PENDER | H185: S T WOOTEN CORPORATION | I185: 2178920.7 | J185: RW1 | L185: 8.79 | M185: 4 | N185: R000 | V185: COAST | W185: 3
E186: C204579B-RW | F186: 1 | G186: PENDER | H186: S T WOOTEN CORPORATION | I186: 177475.02 | J186: RW1 | L186: 16.2 | M186: 4 | N186: R000 | V186: COAST | W186: 3
E187: C204579C-RW | F187: 1 | G187: PENDER | H187: S T WOOTEN CORPORATION | I187: 214753.79 | J187: RW1 | L187: 1.7 | M187: 4 | N187: R000 | V187: COAST | W187: 3
E188: C204579D-RW | F188: 1 | G188: PENDER | H188: S T WOOTEN CORPORATION | I188: 5767.33 | J188: RW1 | L188: 0.46 | M188: 4 | N188: R000 | V188: COAST | W188: 3
H189: Result | I189: =SUM(I185:I188) -> 2576916.84 | L189: =SUM(L185:L188) -> 27.15
B190: 4 | D190: C204582 | E190: C204582A-RW | F190: 1 | G190: SAMPSON | H190: S T WOOTEN CORPORATION | I190: 704438.48 | J190: RW1 | L190: 3.79 | M190: 2 | N190: R000 | V190: COAST | W190: 3
E191: C204582B-RW | F191: 1 | G191: SAMPSON | H191: S T WOOTEN CORPORATION | I191: 2276545.87 | J191: RW1 | L191: 16.19 | M191: 2 | N191: R000 | V191: COAST | W191: 3
E192: C204582C-RW | F192: 1 | G192: SAMPSON | H192: S T WOOTEN CORPORATION | I192: 487025.63 | J192: RW1 | L192: 9.07 | M192: 2 | N192: R000 | V192: COAST | W192: 3
E193: C204582D-RW | F193: 1 | G193: SAMPSON | H193: S T WOOTEN CORPORATION | I193: 40780.9 | J193: RW1 | L193: 0.2 | M193: 2 | N193: R000 | V193: COAST | W193: 3
H194: Result | I194: =SUM(I190:I193) -> 3508790.88 | L194: =SUM(L190:L193) -> 29.25
B195: 5 | D195: C204591 | E195: C204591A-RW | F195: 1 | G195: SAMPSON | H195: BARNHILL CONTRACTING CO | I195: 1991324.59 | J195: RW1 | L195: 16.44 | M195: 2 | N195: R000 | V195: COAST | W195: 3
E196: C204591B-RW | F196: 1 | G196: SAMPSON | H196: BARNHILL CONTRACTING CO | I196: 305608.44 | J196: RW1 | L196: 4.97 | M196: 2 | N196: R000 | V196: COAST | W196: 3
E197: C204591C-RW | F197: 1 | G197: SAMPSON | H197: BARNHILL CONTRACTING CO | I197: 5706 | J197: RW1 | L197: 0.1 | M197: 2 | N197: R000 | V197: COAST | W197: 3
H198: Result | I198: =SUM(I195:I197) -> 2302639.03 | L198: =SUM(L195:L197) -> 21.51
B199: 6 | D199: C204592 | E199: C204592A-RW | F199: 1 | G199: PENDER | H199: S T WOOTEN CORPORATION | I199: 384274.51 | J199: RW1 | L199: 3.02 | M199: 2 | N199: R000 | V199: COAST | W199: 3
E200: C204592B-RW | F200: 1 | G200: PENDER | H200: S T WOOTEN CORPORATION | I200: 37674.8 | J200: RW1 | L200: 1.97 | M200: 2 | N200: R000 | V200: COAST | W200: 3
... 59 more rows

Sheet ITEMS - STATEWIDE
B1: 2020 BID AVERAGES - STATEWIDE
B2: Item # | C2: Item Description | D2: Item Supplemental Description | E2: Item Supplemental Description 2 | F2: Item Quantity | G2: Average Unit Bid | H2: Extended Amt
B3: 0000100000-N | C3: MOBILIZATION | F3: 57 | G3: 201311.5137 | H3: 11474756.28
B4: 0000400000-N | C4: CONST SURVEYING | F4: 16 | G4: 85177.56 | H4: 1362840.96
B5: 0000915000-N | C5: GENERIC MISCELLANEOUS ITEM (EA) | D5: REMOVE WOOD POLE | F5: 127 | G5: 115 | H5: 14605
B6: 0001000000-E | C6: CLEARING & GRUBBING | F6: 2 | G6: 955000 | H6: 1910000
B7: 0008000000-E | C7: SUPP CLEARING & GRUBBING | F7: 9 | G7: 6280.555556 | H7: 56525
B8: 0022000000-E | C8: UNCLASS EXCAVATION | F8: 225830 | G8: 6.363472524 | H8: 1437063
B9: 0028000000-N | C9: TYPE I STD APPR ********** | D9: (118+81.78-L-) | F9: 1 | G9: 59850 | H9: 59850
B10: 0030000000-N | C10: TYPE II MOD APPR ********** | D10: (13+56.30 -L-) | F10: 1 | G10: 6500 | H10: 6500
D11: (13+92.37 -L-) | F11: 1 | G11: 5000 | H11: 5000
D12: (14+26.35 -L-) | F12: 1 | G12: 10000 | H12: 10000
D13: (15+07.00 -L-) | F13: 1 | G13: 8972.99 | H13: 8972.99
D14: (15+36.00 -L-) | F14: 1 | G14: 10185.15 | H14: 10185.15
D15: (15+46.50 -L-) | F15: 1 | G15: 8400 | H15: 8400
D16: (15+74.00 -L-) | F16: 1 | G16: 14000 | H16: 14000
D17: (16+08.00 -L-) | F17: 1 | G17: 13000 | H17: 13000
D18: (16+09.00 -L-) | F18: 1 | G18: 8000 | H18: 8000
D19: (16+42.60 -L-) | F19: 1 | G19: 12000 | H19: 12000
D20: (16+80 -L-) | F20: 1 | G20: 10000 | H20: 10000
D21: (31+08.50 -L-) | F21: 1 | G21: 10000 | H21: 10000
D22: (35+90.50 -L-) | F22: 1 | G22: 10000 | H22: 10000
B23: 0036000000-E | C23: UNDERCUT EXCAVATION | F23: 11030 | G23: 20.93785131 | H23: 230944.5
B24: 0043000000-N | C24: GRADING | F24: 15 | G24: 317882.008 | H24: 4768230.12
B25: 0050000000-E | C25: SUPP CLEARING & GRUBBING | F25: 10 | G25: 20311.605 | H25: 203116.05
B26: 0057000000-E | C26: UNDERCUT EXCAVATION | F26: 2070 | G26: 6.6147343 | H26: 13692.5
B27: 0098000000-E | C27: PRE-SPLITTING OF ROCK | F27: 225 | G27: 50.48 | H27: 11358
B28: 0106000000-E | C28: BORROW EXCAVATION | F28: 106948 | G28: 9.37258967 | H28: 1002379.72
B29: 0134000000-E | C29: DRAINAGE DITCH EXCAVATION | F29: 22002 | G29: 8.354185074 | H29: 183808.78
B30: 0141000000-E | C30: BERM DITCH CONSTR | F30: 400 | G30: 4 | H30: 1600
B31: 0156000000-E | C31: REMOVAL OF EXT ASPHALT PVMT | F31: 53710 | G31: 4.695587414 | H31: 252200
B32: 0163000000-E | C32: REMOVAL OF EXT CONC PVMT | F32: 1211 | G32: 93.73108175 | H32: 113508.34
B33: 0177000000-E | C33: BREAKING OF EXT ASPH PVMT | F33: 1530 | G33: 11.73529412 | H33: 17955
B34: 0192000000-N | C34: PROOF ROLLING | F34: 20 | G34: 300 | H34: 6000
B35: 0195000000-E | C35: SELECT GRANULAR MATERIAL | F35: 8800 | G35: 19.92477273 | H35: 175338
B36: 0196000000-E | C36: GEOTEXTILE SOIL STABILIZATION | F36: 36267.1 | G36: 2.525218724 | H36: 91582.36
B37: 0199000000-E | C37: TEMPORARY SHORING | F37: 20235 | G37: 50.56391401 | H37: 1023160.8
B38: 0223000000-E | C38: ROCK PLATING | F38: 78390 | G38: 42.98911086 | H38: 3369916.4
B39: 0241000000-E | C39: GENERIC GRADING ITEM (SY) | D39: GRADE SHOULDER AND SLOPES | F39: 4683 | G39: 3 | H39: 14049
D40: SOIL CEMENT BASE (FULL DEPTH | E40: RECLAMATION) | F40: 120459 | G40: 3.461928955 | H40: 417020.5
D41: TYPE IV GEOTEXTILE | F41: 2500 | G41: 1.84 | H41: 4600
B42: 0255000000-E | C42: GENERIC GRADING ITEM (TON) | D42: AGGREGATE BASE COURSE FOR BACKFILL | F42: 1100 | G42: 35.25 | H42: 38775
D43: HAULING AND DISPOSAL OF | E43: PETROLEUM CONTAMINATED SOIL | F43: 300 | G43: 69 | H43: 20700
B44: 0264000000-E | C44: GENERIC GRADING ITEM (SMI) | D44: SHOULDER GRADING | F44: 283.52 | G44: 1881.06712 | H44: 533320.15
B45: 0314000000-E | C45: SELECT MAT'L CLASS ** | D45: (I) | F45: 75 | G45: 65 | H45: 4875
D46: (V) | F46: 280 | G46: 37.93 | H46: 10620.4
D47: (VII) | F47: 123400 | G47: 36.97142626 | H47: 4562274
B48: 0318000000-E | C48: FND CONDIT MATL MINOR STRS | F48: 6122 | G48: 36.76234891 | H48: 225059.1
B49: 0320000000-E | C49: FND CONDIT GEOTEXTILE | F49: 19822 | G49: 3.798209061 | H49: 75288.1
B50: 0335200000-E | C50: 15" DRAINAGE PIPE | F50: 1000 | G50: 69.19144 | H50: 69191.44
B51: 0335300000-E | C51: 18" DRAINAGE PIPE | F51: 328 | G51: 80.56646341 | H51: 26425.8
B52: 0335500000-E | C52: 30" DRAINAGE PIPE | F52: 24 | G52: 82 | H52: 1968
B53: 0335850000-E | C53: **" DRAINAGE PIPE ELBOW | D53: (15") | F53: 19 | G53: 482.3715789 | H53: 9165.06
D54: (30") | F54: 2 | G54: 400 | H54: 800
B55: 0343000000-E | C55: 15" SIDE DRAIN PIPE | F55: 228 | G55: 45 | H55: 10260
B56: 0348000000-E | C56: **" SIDE DRAIN PIPE ELBOW | D56: (15") | F56: 10 | G56: 120 | H56: 1200
B57: 0366000000-E | C57: 15" RC PIPE CULV III | F57: 8232 | G57: 43.64018465 | H57: 359246
B58: 0372000000-E | C58: 18" RC PIPE CULV III | F58: 2344 | G58: 45.24854949 | H58: 106062.6
B59: 0378000000-E | C59: 24" RC PIPE CULV III | F59: 2396 | G59: 68.24954925 | H59: 163525.92
B60: 0384000000-E | C60: 30" RC PIPE CULV III | F60: 2500 | G60: 79.833792 | H60: 199584.48
B61: 0390000000-E | C61: 36" RC PIPE CULV III | F61: 264 | G61: 106.4837879 | H61: 28111.72
B62: 0396000000-E | C62: 42" RC PIPE CULV III | F62: 1300 | G62: 133.9046154 | H62: 174076
B63: 0414000000-E | C63: 60" RC PIPE CULV III | F63: 520 | G63: 245 | H63: 127400
B64: 0420000000-E | C64: 66" RC PIPE CULV III | F64: 64 | G64: 346 | H64: 22144
B65: 0448000000-E | C65: ***" RCP CULV CLASS IV | D65: (12") | F65: 108 | G65: 40 | H65: 4320
B66: 0448200000-E | C66: 15" RCP CULV CLASS IV | F66: 9204 | G66: 59.18111691 | H66: 544703
B67: 0448300000-E | C67: 18" RCP CULV CLASS IV | F67: 9168 | G67: 51.64321117 | H67: 473464.96
B68: 0448400000-E | C68: 24" RCP CULV CLASS IV | F68: 960 | G68: 80.35475 | H68: 77140.56
B69: 0448500000-E | C69: 30" RCP CULV CLASS IV | F69: 1368 | G69: 108.9793567 | H69: 149083.76
B70: 0448600000-E | C70: 36" RCP CULV CLASS IV | F70: 1288 | G70: 135.8571429 | H70: 174984
B71: 0448700000-E | C71: 42" RCP CULV CLASS IV | F71: 928 | G71: 179.6594828 | H71: 166724
B72: 0546000000-E | C72: **" CAA PIPE CLVT *****" | D72: (15", 0.064") | F72: 3476 | G72: 99 | H72: 344124
B73: 0564000000-E | C73: **" CAA PIPE ELBOW *****" | D73: (15", 0.064") | F73: 106 | G73: 226 | H73: 23956
B74: 0570000000-E | C74: 6" CS PIPE 0.064" SPR BOX | F74: 32 | G74: 35 | H74: 1120
B75: 0576000000-E | C75: **" CS PIPE CULV *****" | D75: (36", 0.079") | F75: 68 | G75: 118.5494118 | H75: 8061.36
D76: (42", 0.109") | F76: 36 | G76: 148 | H76: 5328
D77: (60", 0.138") | F77: 96 | G77: 216 | H77: 20736
B78: 0582000000-E | C78: 15" CS PIPE CULV 0.064" | F78: 516 | G78: 55.83992248 | H78: 28813.4
B79: 0588000000-E | C79: 18" CS PIPE CULV 0.064" | F79: 268 | G79: 60 | H79: 16080
B80: 0594000000-E | C80: 24" CS PIPE CULV 0.064" | F80: 636 | G80: 66.20754717 | H80: 42108
B81: 0600000000-E | C81: 30" CS PIPE CULV 0.079" | F81: 224 | G81: 91 | H81: 20384
B82: 0636000000-E | C82: **" CS ELBOW *****" THICK | D82: (15", 0.064") | F82: 26 | G82: 370.1338462 | H82: 9623.48
D83: (18", 0.064") | F83: 6 | G83: 465 | H83: 2790
D84: (24", 0.064") | F84: 18 | G84: 570 | H84: 10260
D85: (30", 0.079") | F85: 10 | G85: 655 | H85: 6550
D86: (36", 0.079") | F86: 6 | G86: 896.0766667 | H86: 5376.46
D87: (42", 0.109") | F87: 2 | G87: 1100 | H87: 2200
D88: (6", 0.064") | F88: 4 | G88: 35 | H88: 140
D89: (60", 0.138") | F89: 2 | G89: 2750 | H89: 5500
B90: 0973100000-E | C90: **"WLD STL PIPE GRAD B IN SOIL | D90: (30", 0.500") | F90: 92 | G90: 600 | H90: 55200
B91: 0973300000-E | C91: **"WLD STL PIPE GRAD B NOT IN SOIL | D91: (30", 0.500") | F91: 92 | G91: 2620 | H91: 241040
B92: 0986000000-E | C92: GENERIC PIPE ITEM (LF) | D92: 24" PIPE LINER | F92: 50 | G92: 185.4 | H92: 9270
D93: 24" PIPE REHABILITATION CIPP LINER | F93: 567 | G93: 400 | H93: 226800
D94: 30" PIPE REHABILITATION CIPP LINER | F94: 180 | G94: 500 | H94: 90000
D95: 36" PIPE LINER | F95: 385 | G95: 154.5 | H95: 59482.5
D96: 36" PIPE REHAB CEMENTITIOUS/ | E96: GEOPOLYMER SPRAY LINER | F96: 440 | G96: 200 | H96: 88000
D97: 48" PIPE REHAB CEMENTITIOUS/ | E97: GEOPOLYMER SPRAY LINER | F97: 317 | G97: 300 | H97: 95100
D98: 66" PIPE REHAB CEMENTITIOUS/ | E98: GEOPOLYMER SPRAY LINER | F98: 698 | G98: 400 | H98: 279200
D99: PRE INSTALLATION INSPECTION | F99: 2202 | G99: 1 | H99: 2202
B100: 0995000000-E | C100: PIPE REMOVAL | F100: 11970 | G100: 22.04634085 | H100: 263894.7
B101: 0996000000-N | C101: PIPE CLEAN OUT | F101: 11 | G101: 1699.090909 | H101: 18690
B102: 1000000000-E | C102: 6" SLOPE PROTECTION | F102: 180 | G102: 115 | H102: 20700
B103: 1011000000-N | C103: FINE GRADING | F103: 2 | G103: 812209.5 | H103: 1624419
B104: 1044000000-E | C104: LIME TRTD SOIL (SLURRY) | F104: 46500 | G104: 3 | H104: 139500
B105: 1066000000-E | C105: LIME FOR LIME TREATED SOIL | F105: 560 | G105: 200 | H105: 112000
B106: 1077000000-E | C106: 57 STONE | F106: 622 | G106: 36.3022508 | H106: 22580
B107: 1099500000-E | C107: SHALLOW UNDERCUT | F107: 4979 | G107: 14.24745933 | H107: 70938.1
B108: 1099700000-E | C108: CLASS IV SUBGRD STABILIZATION | F108: 10531 | G108: 25.92277846 | H108: 272992.78
B109: 1110000000-E | C109: STABILIZER AGGREGATE | F109: 500 | G109: 27 | H109: 13500
B110: 1115000000-E | C110: GEOTEXTILE FOR PVMT STABILIZ | F110: 23700 | G110: 2.5 | H110: 59250
B111: 1121000000-E | C111: AGGREGATE BASE COURSE | F111: 61366 | G111: 28.73240883 | H111: 1763193
B112: 1176000000-E | C112: SOIL CEMENT BASE | F112: 46500 | G112: 3 | H112: 139500
B113: 1187000000-E | C113: PC FOR SOIL CEMENT BASE | F113: 5147 | G113: 168.9845541 | H113: 869763.5
B114: 1209000000-E | C114: ASPHALT CURING SEAL | F114: 13950 | G114: 3 | H114: 41850
B115: 1220000000-E | C115: INCIDENTAL STONE BASE | F115: 26614 | G115: 50.2457342 | H115: 1337239.97
B116: 1243000000-E | C116: SHLDR CONSTRUCTION | F116: 0.1 | G116: 60000 | H116: 6000
B117: 1245000000-E | C117: SHLDR RECONSTR | F117: 406.54 | G117: 2478.292837 | H117: 1007525.17
B118: 1260000000-E | C118: AGGREGATE SHOULDER BORROW | F118: 33981.15 | G118: 22.0138312 | H118: 748055.3
B119: 1264000000-E | C119: DITCHING | F119: 200 | G119: 40 | H119: 8000
B120: 1275000000-E | C120: PRIME COAT | F120: 619 | G120: 8.255250404 | H120: 5110
B121: 1297000000-E | C121: MILL ASP PVMT *****" DTH | D121: (1") | F121: 2725 | G121: 5.827970642 | H121: 15881.22
D122: (1-1/2") | F122: 4182029 | G122: 1.265586147 | H122: 5292717.97
D123: (1-1/4") | F123: 11757 | G123: 1.606207366 | H123: 18884.18
D124: (2") | F124: 381207 | G124: 1.981970163 | H124: 755540.9
D125: (2-1/2") | F125: 3000 | G125: 1.5 | H125: 4500
D126: (2-1/8") | F126: 176996 | G126: 1.6 | H126: 283193.6
D127: (2-5/8") | F127: 172067 | G127: 1.9 | H127: 326927.3
D128: (3") | F128: 86750 | G128: 1.677423977 | H128: 145516.53
D129: (7") | F129: 450 | G129: 30 | H129: 13500
D130: (8") | F130: 5900 | G130: 12.25 | H130: 72275
B131: 1308000000-E | C131: MILLN ASPHALT PVMT ***** - ***** | D131: (0" TO 1") | F131: 2710 | G131: 1.1 | H131: 2981
D132: (0" TO 1-1/2") | F132: 102856 | G132: 1.713301217 | H132: 176223.31
D133: (0" TO 1-1/4") | F133: 20598 | G133: 3.790293718 | H133: 78072.47
D134: (0" TO 2") | F134: 106238 | G134: 1.134432124 | H134: 120519.8
D135: (1-1/2" TO 2") | F135: 47906 | G135: 1.025355905 | H135: 49120.7
B136: 1330000000-E | C136: INCIDENTAL MILLING | F136: 212457 | G136: 6.077023115 | H136: 1291106.1
B137: 1491000000-E | C137: ASP CONC BASE CRS B25.0C | F137: 76761 | G137: 57.30781035 | H137: 4399004.83
B138: 1503000000-E | C138: ASP CONC INTR CRS I19.0C | F138: 126780 | G138: 54.71047878 | H138: 6936194.5
B139: 1519000000-E | C139: ASP CONC SURF CRS S9.5B | F139: 534094 | G139: 40.58746372 | H139: 21677520.85
B140: 1520000000-E | C140: ASP CONC SURF CRS S9.5B LEVEL | F140: 4551 | G140: 50.09009009 | H140: 227960
B141: 1523000000-E | C141: ASP CONC SURF CRS S9.5C | F141: 392184 | G141: 40.60369036 | H141: 15924117.7
B142: 1524000000-E | C142: ASP CONC SURF CRS S9.5C LEVEL | F142: 6062 | G142: 51.80550973 | H142: 314045
B143: 1524200000-E | C143: ASP CONC SURF CRS S9.5D | F143: 135528 | G143: 53.47099271 | H143: 7246816.7
B144: 1526000000-E | C144: ASP CONC SURF CRS S4.75A | F144: 18750 | G144: 53.40506667 | H144: 1001345
B145: 1575000000-E | C145: ASP FOR PLANT MIX | F145: 70906.1 | G145: 371.9681562 | H145: 26374811.28
B146: 1577000000-E | C146: POLYM MOD ASP BNDR FOR PLT MIX | F146: 9784 | G146: 650.7682952 | H146: 6367117
B147: 1662000000-E | C147: OG ASP FRICT FC-1 MOD | F147: 25616 | G147: 70.85280684 | H147: 1814965.5
B148: 1671000000-E | C148: PERM ASPH DRAINAGE CO, P-78M | F148: 74 | G148: 180 | H148: 13320
B149: 1693000000-E | C149: ASPH PLT MIX PVMT REPAIR | F149: 5498 | G149: 162.8937796 | H149: 895590
B150: 1702000000-E | C150: SEALING PVMT CRACKS & JTS | F150: 94952 | G150: 1.9 | H150: 180408.8
B151: 1704000000-E | C151: PATCHING EXIST PVMT | F151: 57528 | G151: 99.94860642 | H151: 5749843.43
B152: 1735000000-E | C152: REP JNT CONC PVT SLABS | F152: 4445 | G152: 762.7244094 | H152: 3390310
B153: 1736000000-E | C153: SELECT MATERIAL, CLASS IV | F153: 262 | G153: 89.23664122 | H153: 23380
B154: 1737000000-E | C154: PATCHING CONC PVMT SPALLS | F154: 2622 | G154: 122.4446987 | H154: 321050
B155: 1775500000-E | C155: AST, MAT COAT, *** STONE | D155: (67 GRANITE) | F155: 546692 | G155: 1.08389863 | H155: 592558.71
D156: (67) | F156: 17224 | G156: 1.55 | H156: 26697.2
D157: (67 GRANITE) | F157: 15610 | G157: 1.02 | H157: 15922.2
D158: (67) | F158: 53372 | G158: 1 | H158: 53372
D159: (78M) | F159: 1900 | G159: 0.65 | H159: 1235
B160: 1803500000-E | C160: AST, DOUBLE SEAL | F160: 145944 | G160: 1.127356726 | H160: 164530.95
B161: 1814500000-E | C161: AST, SINGLE SEAL | F161: 54715 | G161: 0.95 | H161: 51979.25
B162: 1820000000-E | C162: AST, FOG SEAL | F162: 143090 | G162: 0.5261723391 | H162: 75290
B163: 1838000000-E | C163: EMULSION FOR AST | F163: 343854 | G163: 1.954411029 | H163: 672032.05
B164: 1838500000-N | C164: VACUUM TRUCK | F164: 19 | G164: 1552.842105 | H164: 29504
B165: 1839140000-E | C165: ULTRATHIN BOND WEAR CRS | F165: 9630 | G165: 112.8510903 | H165: 1086756
B166: 1840000000-E | C166: MILLED RUMBLE STRIPS | F166: 828554 | G166: 0.1795619115 | H166: 148776.74
B167: 1880000000-E | C167: GENERIC PAVING ITEM (TON) | D167: ASPHALT CONC SURFACE COURSE, | E167: TYPE S4.75A (LEVELING COURSE) | F167: 1035 | G167: 70.9468599 | H167: 73430
D168: JOINT REPAIR | F168: 34 | G168: 549 | H168: 18666
D169: PATCHING EXISTING PAVEMENT | E169: (FULL DEPTH) | F169: 3667 | G169: 127.7581674 | H169: 468489.2
E170: (MILL) | F170: 1835 | G170: 119.786376 | H170: 219808
E171: I19.0C (FULL DEPTH) | F171: 4750 | G171: 105 | H171: 498750
E172: I19.0C (MILL) | F172: 3000 | G172: 119.9536667 | H172: 359861
D173: PATCHING EXISTING PAVEMENT (MILL) | F173: 5393 | G173: 136.7455405 | H173: 737468.7
B174: 1881000000-E | C174: GENERIC PAVING ITEM (LF) | D174: JOINT CONSTRUCTION, REPAIR & SEALING | F174: 1173066 | G174: 1.857020986 | H174: 2178408.18
D175: JOINT CONSTRUCTION, REPAIR ANDSEALING | F175: 3800 | G175: 2.4 | H175: 9120
B176: 1891000000-E | C176: GENERIC PAVING ITEM (SY) | D176: 8" CONTINUOUSLY REINFORCED | E176: CONCRETE PAVEMENT REPAIR | F176: 1070 | G176: 935 | H176: 1000450
D177: DIAMOND GRINDING PCC PAVEMENT | F177: 439306 | G177: 5.226318625 | H177: 2295953.13
D178: FINE MILLING | F178: 159331 | G178: 3.15695596 | H178: 503000.95
D179: MILLING CONCRETE PAVEMENT, | E179: 0" TO 2" DEPTH | F179: 11666 | G179: 24.35 | H179: 284067.1
D180: MILLING CONCRETE PAVEMENT, 2" DEPTH | F180: 2800 | G180: 34.15 | H180: 95620
B181: 1925000000-E | C181: MILL RUMBLE STRPS (CONC SHLDR) | F181: 220 | G181: 2.5 | H181: 550
B182: 2000000000-N | C182: RIGHT-OF-WAY MARKERS | F182: 13 | G182: 200 | H182: 2600
B183: 2020000000-N | C183: CONTROL-OF-ACCESS MARKERS | F183: 26 | G183: 200 | H183: 5200
B184: 2022000000-E | C184: SUBDRAIN EXCAVATION | F184: 5969.2 | G184: 22.72631676 | H184: 135657.93
B185: 2026000000-E | C185: GEOTEXTILE FOR SUBSURF DRNS | F185: 12790 | G185: 2.684612979 | H185: 34336.2
B186: 2033000000-E | C186: SUBDRAIN FINE AGGREGATE | F186: 1381 | G186: 61.32585083 | H186: 84691
B187: 2036000000-E | C187: SUBDRAIN COARSE AGGREGATE | F187: 2139.4 | G187: 59.12255305 | H187: 126486.79
B188: 2044000000-E | C188: 6" PERF SUBDRN PIPE | F188: 21400 | G188: 12.55551402 | H188: 268688
B189: 2070000000-N | C189: SUBDRN PIPE OUTLET | F189: 51 | G189: 266.7566667 | H189: 13604.59
B190: 2077000000-E | C190: 6" OUTLET PIPE | F190: 420 | G190: 16.98009524 | H190: 7131.64
B191: 2143000000-E | C191: BLOTTING SAND | F191: 20 | G191: 50 | H191: 1000
B192: 2154000000-N | C192: METAL FUNNELS | F192: 3 | G192: 1183.333333 | H192: 3550
B193: 2165000000-E | C193: 12" FUNNEL DRAIN PIPE | F193: 80 | G193: 53.75 | H193: 4300
B194: 2176000000-E | C194: 12" FUNNEL DRAIN ELBOWS | F194: 4 | G194: 355 | H194: 1420
B195: 2209000000-E | C195: ENDWALLS | F195: 21.4 | G195: 1968.224299 | H195: 42120
B196: 2220000000-E | C196: REINFORCED ENDWALLS | F196: 16.8 | G196: 2000 | H196: 33600
B197: 2253000000-E | C197: PIPE COLLARS | F197: 2.82 | G197: 1375.812057 | H197: 3879.79
B198: 2264000000-E | C198: PIPE PLUGS | F198: 4.113 | G198: 1782.888403 | H198: 7333.02
B199: 2275000000-E | C199: FLOWABLE FILL | F199: 507 | G199: 202.7159763 | H199: 102777
B200: 2286000000-N | C200: MASNRY DRAINAGE STRUCT | F200: 548 | G200: 1857.80458 | H200: 1018076.91
... 613 more rows

Sheet ITEMS - DIV 01
B1: 2020 BID AVERAGES - DIVISION 01
B2: Item # | C2: Item Description | D2: Item Supplemental Description | E2: Item Supplemental Description 2 | F2: Item Quantity | G2: Average Unit Bid | H2: Extended Amt
B3: 0000100000-N | C3: MOBILIZATION | F3: 3 | G3: 71733.33333 | H3: 215200
B4: 0000400000-N | C4: CONST SURVEYING | F4: 2 | G4: 19484.915 | H4: 38969.83
B5: 0008000000-E | C5: SUPP CLEARING & GRUBBING | F5: 1 | G5: 1 | H5: 1
B6: 0030000000-N | C6: TYPE II MODIFIED APPR ********** | D6: (13+92.37 -L-) | F6: 1 | G6: 5000 | H6: 5000
D7: (14+26.35 -L-) | F7: 1 | G7: 10000 | H7: 10000
B8: 0036000000-E | C8: UNDERCUT EXCAVATION | F8: 600 | G8: 9 | H8: 5400
B9: 0043000000-N | C9: GRADING | F9: 2 | G9: 120000 | H9: 240000
B10: 0106000000-E | C10: BORROW EXCAVATION | F10: 585 | G10: 20 | H10: 11700
B11: 0134000000-E | C11: DRAINAGE DITCH EXCAVATION | F11: 600 | G11: 20 | H11: 12000
B12: 0195000000-E | C12: SELECT GRANULAR MATERIAL | F12: 600 | G12: 14 | H12: 8400
B13: 0196000000-E | C13: GEOTEXTILE SOIL STABILIZATION | F13: 600 | G13: 2.5 | H13: 1500
B14: 0223000000-E | C14: ROCK PLATING | F14: 150 | G14: 90 | H14: 13500
B15: 0241000000-E | C15: GENERIC GRADING ITEM (SY) | D15: GRADE SHOULDER AND SLOPES | F15: 4683 | G15: 3 | H15: 14049
B16: 0318000000-E | C16: FND CONDIT MATL MINOR STRS | F16: 20 | G16: 35 | H16: 700
B17: 0320000000-E | C17: FND CONDIT GEOTEXTILE | F17: 50 | G17: 3.2 | H17: 160
B18: 0335200000-E | C18: 15" DRAINAGE PIPE | F18: 80 | G18: 65 | H18: 5200
B19: 0335850000-E | C19: **" DRAINAGE PIPE ELBOW | D19: (15") | F19: 3 | G19: 250 | H19: 750
B20: 0448200000-E | C20: 15" RCP CULV CLASS IV | F20: 24 | G20: 70 | H20: 1680
B21: 0995000000-E | C21: PIPE REMOVAL | F21: 30 | G21: 15 | H21: 450
B22: 1121000000-E | C22: AGGREGATE BASE COURSE | F22: 550 | G22: 25 | H22: 13750
B23: 1220000000-E | C23: INCIDENTAL STONE BASE | F23: 232 | G23: 12.75862069 | H23: 2960
B24: 1297000000-E | C24: MILL ASP PVMT *****" DTH | D24: (1-1/2") | F24: 203799 | G24: 0.9149951668 | H24: 186475.1
B25: 1330000000-E | C25: INCIDENTAL MILLING | F25: 6724 | G25: 4.301903629 | H25: 28926
B26: 1491000000-E | C26: ASP CONC BASE CRS B25.0C | F26: 790 | G26: 94.30696203 | H26: 74502.5
B27: 1519000000-E | C27: ASP CONC SURF CRS S9.5B | F27: 710 | G27: 92.26619718 | H27: 65509
B28: 1523000000-E | C28: ASP CONC SURF CRS S9.5C | F28: 17159 | G28: 37 | H28: 634883
B29: 1575000000-E | C29: ASP FOR PLANT MIX | F29: 1120 | G29: 483.6160714 | H29: 541650
B30: 1577000000-E | C30: POLYM MOD ASP BNDR FOR PLT MIX | F30: 343 | G30: 645 | H30: 221235
B31: 1662000000-E | C31: OG ASP FRICT FC-1 MOD | F31: 5617 | G31: 60 | H31: 337020
B32: 1704000000-E | C32: PATCHING EXIST PAVEMENT | F32: 150 | G32: 150 | H32: 22500
B33: 1840000000-E | C33: MILLED RUMBLE STRIPS | F33: 91260 | G33: 0.1 | H33: 9126
B34: 2022000000-E | C34: SUBDRAIN EXCAVATION | F34: 90 | G34: 5.005 | H34: 450.45
B35: 2026000000-E | C35: GEOTEXTILE FOR SUBSURF DRNS | F35: 400 | G35: 1.005 | H35: 402
B36: 2036000000-E | C36: SUBDRAIN COARSE AGGREGATE | F36: 68 | G36: 25.005 | H36: 1700.34
B37: 2044000000-E | C37: 6" PERF SUBDRN PIPE | F37: 400 | G37: 2.505 | H37: 1002
B38: 2070000000-N | C38: SUBDRN PIPE OUTLET | F38: 2 | G38: 150.005 | H38: 300.01
B39: 2077000000-E | C39: 6" OUTLET PIPE | F39: 12 | G39: 15.005 | H39: 180.06
B40: 2154000000-N | C40: METAL FUNNELS | F40: 2 | G40: 1100 | H40: 2200
B41: 2165000000-E | C41: 12" FUNNEL DRAIN PIPE | F41: 60 | G41: 60 | H41: 3600
B42: 2176000000-E | C42: 12" FUNNEL DRAIN ELBOWS | F42: 2 | G42: 550 | H42: 1100
B43: 2286000000-N | C43: MASNRY DRAINAGE STRUCT | F43: 6 | G43: 1400 | H43: 8400
B44: 2367000000-N | C44: FRAME W/2GRTS 840.29 STD | F44: 6 | G44: 600 | H44: 3600
B45: 2473000000-N | C45: GENERIC DRAINAGE ITEM (EA) | D45: MASONRY DRAINAGE STRUCTURE | E45: REPAIR | F45: 24 | G45: 1600 | H45: 38400
B46: 2556000000-E | C46: SHOULDER BERM GUTTER | F46: 164 | G46: 52.01219512 | H46: 8530
B47: 2570000000-N | C47: MODIFIED CONCRETE FLUME | F47: 2 | G47: 300 | H47: 600
B48: 3030000000-E | C48: STL BEAM GUARDRAIL | F48: 17754 | G48: 14.00704067 | H48: 248681
B49: 3045000000-E | C49: SBGR SHOP CURVED | F49: 60 | G49: 16 | H49: 960
B50: 3150000000-N | C50: ADDIT GUARDRAIL POSTS | F50: 10 | G50: 10.5 | H50: 105
B51: 3210000000-N | C51: GR END TYPE CAT-1 | F51: 19 | G51: 500 | H51: 9500
B52: 3215000000-N | C52: GR ANCHOR TYPE III | F52: 8 | G52: 1675 | H52: 13400
B53: 3287000000-N | C53: GR END TYPE TL-3 | F53: 28 | G53: 2714.285714 | H53: 76000
B54: 3288000000-N | C54: GR END TYPE TL-2 | F54: 4 | G54: 2500 | H54: 10000
B55: 3317000000-N | C55: GR ANCHOR TYPE B-77 | F55: 2 | G55: 1600 | H55: 3200
B56: 3319000000-N | C56: GR ANCHOR TYPE B-83 | F56: 8 | G56: 1575 | H56: 12600
B57: 3360000000-E | C57: REMOVE EXISTING GUARDRAIL | F57: 19122 | G57: 0.75 | H57: 14341.5
B58: 3380000000-E | C58: TEMP STL BM GUARDRAIL | F58: 25 | G58: 9 | H58: 225
B59: 3387000000-N | C59: TEMP GDRL ANCH UNITS ****** | D59: (III) | F59: 4 | G59: 900 | H59: 3600
B60: 3566000000-E | C60: WOVEN WIRE FENCE RESET | F60: 105 | G60: 4 | H60: 420
B61: 3635000000-E | C61: RIP RAP, CLASS II | F61: 88 | G61: 75 | H61: 6600
B62: 3649000000-E | C62: RIP RAP, CLASS B | F62: 20 | G62: 80.75 | H62: 1615
B63: 3656000000-E | C63: GEOTEXTILE FOR DRAINGE | F63: 370 | G63: 4.594594595 | H63: 1700
B64: 4400000000-E | C64: WORK ZONE SIGNS (STAT) | F64: 722 | G64: 6.32465374 | H64: 4566.4
B65: 4405000000-E | C65: WORK ZONE SIGNS (PORT) | F65: 554 | G65: 7.25 | H65: 4016.5
B66: 4410000000-E | C66: WORK ZONE SIGNS (BARR) | F66: 134 | G66: 7.28358209 | H66: 976
B67: 4413000000-E | C67: WORK ZONE ADV/GEN WARN SIGN | F67: 480 | G67: 7.6 | H67: 3648
B68: 4423000000-N | C68: WZ DIGITAL SPD LMT SIGNS | F68: 3 | G68: 9000 | H68: 27000
B69: 4424500000-N | C69: TEMP PORT TRAF SIGNAL SYS | F69: 1 | G69: 25000 | H69: 25000
B70: 4445000000-E | C70: BARRICADES (TYPE III) | F70: 96 | G70: 17 | H70: 1632
B71: 4455000000-N | C71: FLAGGER | F71: 44 | G71: 0.1 | H71: 4.4
B72: 4457000000-N | C72: TEMP TRAFFIC CONTROL (SP) | F72: 1 | G72: 11800 | H72: 11800
B73: 4516000000-N | C73: SKINNY DRUM | F73: 178 | G73: 0.1 | H73: 17.8
B74: 4685000000-E | C74: THERMO PVT MKG LINES 4"90 | F74: 2800 | G74: 2 | H74: 5600
B75: 4688000000-E | C75: THERMO PVT MKG LINES,6"90 MILS | F75: 111498 | G75: 0.66 | H75: 73588.68
B76: 4725000000-E | C76: THERMO PVT SYMBOL 90MILS | F76: 8 | G76: 350 | H76: 2800
B77: 4810000000-E | C77: PAINT PVMT MARKINGS 4" | F77: 230448 | G77: 0.2032337013 | H77: 46834.8
B78: 4835000000-E | C78: PAINT PVT MKG LINES 24" | F78: 38 | G78: 4 | H78: 152
B79: 4845000000-N | C79: PAINT PVT MKG SYMBOL | F79: 8 | G79: 25 | H79: 200
B80: 4905000000-N | C80: SNOWPLB PVMT MRKER | F80: 570 | G80: 37 | H80: 21090
B81: 6000000000-E | C81: TEMPORARY SILT FENCE | F81: 5546 | G81: 2.632289939 | H81: 14598.68
B82: 6006000000-E | C82: EROS CONTRL STONE CL A | F82: 150 | G82: 42.5 | H82: 6375
B83: 6009000000-E | C83: EROS CONTRL STONE CL B | F83: 200 | G83: 49.25 | H83: 9850
B84: 6012000000-E | C84: SEDIMENT CONTROL STONE | F84: 114 | G84: 55.26315789 | H84: 6300
B85: 6015000000-E | C85: TEMPORARY MULCHING | F85: 1.5 | G85: 1166.666667 | H85: 1750
B86: 6018000000-E | C86: SEED FOR TEMP SEEDING | F86: 200 | G86: 3.5 | H86: 700
B87: 6021000000-E | C87: FERT FOR TEMP SEEDING | F87: 1 | G87: 1150 | H87: 1150
B88: 6024000000-E | C88: TEMPORARY SLOPE DRAINS | F88: 200 | G88: 5 | H88: 1000
B89: 6029000000-E | C89: SAFETY FENCE | F89: 640 | G89: 2.25 | H89: 1440
B90: 6030000000-E | C90: SILT EXCAVATION | F90: 62 | G90: 7.903225806 | H90: 490
B91: 6036000000-E | C91: MATTING FOR EROS CONTROL | F91: 2955 | G91: 1.759729272 | H91: 5200
B92: 6037000000-E | C92: COIR FIBER MAT | F92: 1160 | G92: 4.562068966 | H92: 5292
B93: 6042000000-E | C93: 1/4" HARDWARE CLOTH | F93: 822 | G93: 5.165450122 | H93: 4246
B94: 6048000000-E | C94: FLOAT TURBIDITY CURTAIN | F94: 200 | G94: 29 | H94: 5800
B95: 6071012000-E | C95: COIR FIBER WATTLE | F95: 1220 | G95: 11.4947541 | H95: 14023.6
B96: 6071014000-E | C96: COIR FIBER WATTLE BARRIER | F96: 580 | G96: 14.62068966 | H96: 8480
B97: 6071020000-E | C97: POLYACRYLAMIDE (PAM) | F97: 45 | G97: 10 | H97: 450
B98: 6071030000-E | C98: COIR FIBER BAFFLE | F98: 25 | G98: 16 | H98: 400
B99: 6084000000-E | C99: SEEDING AND MULCHING | F99: 3.5 | G99: 2285.714286 | H99: 8000
B100: 6087000000-E | C100: MOWING | F100: 1 | G100: 100 | H100: 100
B101: 6090000000-E | C101: SEED FOR REPAIR SEEDING | F101: 100 | G101: 4.5 | H101: 450
B102: 6093000000-E | C102: FERT FOR REPAIR SEEDING | F102: 0.5 | G102: 950 | H102: 475
B103: 6096000000-E | C103: SEED FOR SUPP SEEDING | F103: 100 | G103: 3.5 | H103: 350
B104: 6108000000-E | C104: FERTILIZER TOPDRESSING | F104: 1.5 | G104: 950 | H104: 1425
B105: 6111000000-E | C105: IMPERVIOUS DIKE | F105: 100 | G105: 60 | H105: 6000
B106: 6114500000-N | C106: SPECIALIZED HAND MOWING | F106: 17 | G106: 58.82352941 | H106: 1000
B107: 6117000000-N | C107: RESPONSE FOR EROS CONTROL | F107: 18 | G107: 297.2222222 | H107: 5350
B108: 6117500000-N | C108: CONC WASHOUT STRUCTURE | F108: 4 | G108: 750 | H108: 3000
B109: 6123000000-E | C109: REFORESTATION | F109: 0.75 | G109: 1 | H109: 0.75
B110: 6141000000-E | C110: GENERIC EROSION CONTROL ITEM (SY) | D110: COMPOST SEEDING | F110: 4683 | G110: 2.41 | H110: 11286.03
B111: 6900000000-E | C111: TOPSOIL | F111: 392 | G111: 20 | H111: 7840
B112: 8007000000-N | C112: CM&R TEMP STR *********** | D112: (13+98.59-TL-) | F112: 1 | G112: 95000 | H112: 95000
B113: 8035000000-N | C113: REMV EXIST STR ********** | D113: (13+92.37-L-) | F113: 1 | G113: 10000 | H113: 10000
D114: (14+26.35 -L-) | F114: 1 | G114: 75000 | H114: 75000
B115: 8065000000-N | C115: ASBESTOS ASSESSMENT | F115: 2 | G115: 1250 | H115: 2500
B116: 8112730000-N | C116: PDA TESTING | F116: 3 | G116: 1591.666667 | H116: 4775
B117: 8121000000-N | C117: UNCL STR EXCAV STA ***** | D117: (13+92.37-L-) | F117: 1 | G117: 5000 | H117: 5000
D118: (14+26.35 -L-) | F118: 1 | G118: 5000 | H118: 5000
B119: 8182000000-E | C119: CLASS A CONCRETE (BRIDGE) | F119: 63.4 | G119: 1000 | H119: 63400
B120: 8210000000-N | C120: BRG APPR SLAB *********** | D120: (13+92.37-L-) | F120: 1 | G120: 20000 | H120: 20000
D121: (14+26.35 -L-) | F121: 1 | G121: 22500 | H121: 22500
B122: 8217000000-E | C122: REINF STEEL (BRIDGE) | F122: 9950 | G122: 1.348743719 | H122: 13420
B123: 8328200000-E | C123: PILE DRV EQUIP SETUP ** STEEL PILES | D123: (HP 12 X 53) | F123: 20 | G123: 1750 | H123: 35000
B124: 8328400000-E | C124: PILE DRV EQUIP SETUP ** GALV STEEL PILES | D124: (HP 14 X 73) | F124: 7 | G124: 1000 | H124: 7000
B125: 8364000000-E | C125: HP12X53 PILES | F125: 1425 | G125: 25 | H125: 35625
B126: 8384200000-E | C126: HP14X73 GALV PILES | F126: 665 | G126: 50 | H126: 33250
B127: 8393000000-N | C127: PILE REDRIVES | F127: 23 | G127: 74.17391304 | H127: 1706
B128: 8505000000-E | C128: VERT CONC BARRIER RAIL | F128: 330.8 | G128: 132.7237001 | H128: 43905
B129: 8608000000-E | C129: RIP RAP II (2'-0") | F129: 348 | G129: 49.35218391 | H129: 17174.56
B130: 8622000000-E | C130: GEOTEXTILE FOR DRAINAGE | F130: 387 | G130: 4.237209302 | H130: 1639.8
B131: 8657000000-N | C131: ELASTOMERIC BEARINGS | F131: 2 | G131: 3750 | H131: 7500
B132: 8762000000-E | C132: 3'-0"X 1'-9"PRESTR SLABS | F132: 300 | G132: 120 | H132: 36000
B133: 8763000000-E | C133: 3'-0" X 2'-0"PRESTR SLABS | F133: 1350 | G133: 161.1111111 | H133: 217500
B134: 8867000000-E | C134: GENERIC STRUCTURE ITEM (LF) | D134: FIBER OPTIC CONDUIT SYSTEM | F134: 322 | G134: 24.22360248 | H134: 7800

Sheet ITEMS - DIV 02
B1: 2020 BID AVERAGES - DIVISION 02
B2: Item # | C2: Item Description | D2: Item Supplemental Description | E2: Item Supplemental Description 2 | F2: Item Quantity | G2: Average Unit Bid | H2: Extended Amt
B3: 0000100000-N | C3: MOBILIZATION | F3: 1 | G3: 26000 | H3: 26000
B4: 0000400000-N | C4: CONST SURVEYING | F4: 1 | G4: 8000 | H4: 8000
B5: 0030000000-N | C5: TYPE II MODIFIED APPR ********** | D5: (13+56.30 -L-) | F5: 1 | G5: 6500 | H5: 6500
B6: 0036000000-E | C6: UNDERCUT EXCAVATION | F6: 300 | G6: 5 | H6: 1500
B7: 0043000000-N | C7: GRADING | F7: 1 | G7: 30000 | H7: 30000
B8: 0050000000-E | C8: SUPP CLEARING & GRUBBING | F8: 1 | G8: 1 | H8: 1
B9: 0195000000-E | C9: SELECT GRANULAR MATERIAL | F9: 300 | G9: 5 | H9: 1500
B10: 0196000000-E | C10: GEOTEXTILE SOIL STABILIZATION | F10: 300 | G10: 1 | H10: 300
B11: 0318000000-E | C11: FND CONDIT MATL MINOR STRS | F11: 10 | G11: 50 | H11: 500
B12: 0320000000-E | C12: FND CONDIT GEOTEXTILE | F12: 20 | G12: 1 | H12: 20
B13: 0335200000-E | C13: 15" DRAINAGE PIPE | F13: 32 | G13: 100 | H13: 3200
B14: 1491000000-E | C14: ASP CONC BASE CRS B25.0C | F14: 220 | G14: 90 | H14: 19800
B15: 1519000000-E | C15: ASP CONC SURF CRS S9.5B | F15: 230 | G15: 86.5 | H15: 19895
B16: 1575000000-E | C16: ASP FOR PLANT MIX | F16: 25 | G16: 400 | H16: 10000
B17: 2022000000-E | C17: SUBDRAIN EXCAVATION | F17: 45 | G17: 1 | H17: 45
B18: 2026000000-E | C18: GEOTEXTILE FOR SUBSURF DRNS | F18: 200 | G18: 1 | H18: 200
B19: 2036000000-E | C19: SUBDRAIN COARSE AGGREGATE | F19: 34 | G19: 1 | H19: 34
B20: 2044000000-E | C20: 6" PERF SUBDRN PIPE | F20: 200 | G20: 1 | H20: 200
B21: 2070000000-N | C21: SUBDRN PIPE OUTLET | F21: 1 | G21: 1 | H21: 1
B22: 2077000000-E | C22: 6" OUTLET PIPE | F22: 6 | G22: 1 | H22: 6
B23: 2286000000-N | C23: MASNRY DRAINAGE STRUCT | F23: 2 | G23: 3200 | H23: 6400
B24: 2367000000-N | C24: FRAME W/2GRTS 840.29 STD | F24: 2 | G24: 700 | H24: 1400
B25: 2556000000-E | C25: SHOULDER BERM GUTTER | F25: 73 | G25: 53 | H25: 3869
B26: 3030000000-E | C26: STL BEAM GUARDRAIL | F26: 25 | G26: 16 | H26: 400
B27: 3150000000-N | C27: ADDIT GUARDRAIL POSTS | F27: 5 | G27: 11 | H27: 55
B28: 3215000000-N | C28: GR ANCHOR TYPE III | F28: 4 | G28: 1500 | H28: 6000
B29: 3287000000-N | C29: GR END TYPE TL-3 | F29: 4 | G29: 2800 | H29: 11200
B30: 3635000000-E | C30: RIP RAP, CLASS II | F30: 65 | G30: 65 | H30: 4225
B31: 3649000000-E | C31: RIP RAP, CLASS B | F31: 6 | G31: 100 | H31: 600
B32: 3656000000-E | C32: GEOTEXTILE FOR DRAINGE | F32: 260 | G32: 1 | H32: 260
B33: 4072000000-E | C33: SUPPORT, 3-LB STL U-CHAN | F33: 21 | G33: 10 | H33: 210
B34: 4102000000-N | C34: SIGN ERECTION, TYPE E | F34: 2 | G34: 150 | H34: 300
B35: 4400000000-E | C35: WORK ZONE SIGNS (STAT) | F35: 332 | G35: 7 | H35: 2324
B36: 4410000000-E | C36: WORK ZONE SIGNS (BARR) | F36: 94 | G36: 8.5 | H36: 799
B37: 4445000000-E | C37: BARRICADES (TYPE III) | F37: 64 | G37: 20 | H37: 1280
B38: 4810000000-E | C38: PAINT PVMT MARKINGS 4" | F38: 3680 | G38: 1 | H38: 3680
B39: 4900000000-N | C39: PERM RAISED PVMT MARKERS | F39: 58 | G39: 10 | H39: 580
B40: 6000000000-E | C40: TEMPORARY SILT FENCE | F40: 530 | G40: 4 | H40: 2120
B41: 6006000000-E | C41: EROS CONTRL STONE CL A | F41: 60 | G41: 10 | H41: 600
B42: 6009000000-E | C42: EROS CONTRL STONE CL B | F42: 50 | G42: 10 | H42: 500
B43: 6012000000-E | C43: SEDIMENT CONTROL STONE | F43: 25 | G43: 10 | H43: 250
B44: 6015000000-E | C44: TEMPORARY MULCHING | F44: 0.5 | G44: 1500 | H44: 750
B45: 6018000000-E | C45: SEED FOR TEMP SEEDING | F45: 100 | G45: 4.85 | H45: 485
B46: 6021000000-E | C46: FERT FOR TEMP SEEDING | F46: 0.5 | G46: 1500 | H46: 750
B47: 6024000000-E | C47: TEMPORARY SLOPE DRAINS | F47: 200 | G47: 1 | H47: 200
B48: 6029000000-E | C48: SAFETY FENCE | F48: 520 | G48: 3 | H48: 1560
B49: 6030000000-E | C49: SILT EXCAVATION | F49: 60 | G49: 5 | H49: 300
B50: 6036000000-E | C50: MATTING FOR EROS CONTROL | F50: 1155 | G50: 2 | H50: 2310
B51: 6037000000-E | C51: COIR FIBER MAT | F51: 100 | G51: 5 | H51: 500
B52: 6042000000-E | C52: 1/4" HARDWARE CLOTH | F52: 45 | G52: 6 | H52: 270
B53: 6048000000-E | C53: FLOAT TURBIDITY CURTAIN | F53: 100 | G53: 29 | H53: 2900
B54: 6071012000-E | C54: COIR FIBER WATTLE | F54: 140 | G54: 10.5 | H54: 1470
B55: 6071014000-E | C55: COIR FIBER WATTLE BARRIER | F55: 85 | G55: 14.5 | H55: 1232.5
B56: 6084000000-E | C56: SEEDING AND MULCHING | F56: 0.5 | G56: 4000 | H56: 2000
B57: 6087000000-E | C57: MOWING | F57: 0.5 | G57: 500 | H57: 250
B58: 6090000000-E | C58: SEED FOR REPAIR SEEDING | F58: 50 | G58: 14 | H58: 700
B59: 6093000000-E | C59: FERT FOR REPAIR SEEDING | F59: 0.25 | G59: 1200 | H59: 300
B60: 6096000000-E | C60: SEED FOR SUPP SEEDING | F60: 50 | G60: 8 | H60: 400
B61: 6108000000-E | C61: FERTILIZER TOPDRESSING | F61: 0.25 | G61: 1500 | H61: 375
B62: 6111000000-E | C62: IMPERVIOUS DIKE | F62: 61 | G62: 50 | H62: 3050
B63: 6114500000-N | C63: SPECIALIZED HAND MOWING | F63: 10 | G63: 60 | H63: 600
B64: 6117000000-N | C64: RESPONSE FOR EROS CONTROL | F64: 7 | G64: 40 | H64: 280
B65: 6117500000-N | C65: CONC WASHOUT STRUCTURE | F65: 2 | G65: 1200 | H65: 2400
B66: 6123000000-E | C66: REFORESTATION | F66: 0.1 | G66: 5000 | H66: 500
B67: 8035000000-N | C67: REMV EXIST STR ********** | D67: (13+56.30 -L-) | F67: 1 | G67: 37500 | H67: 37500
B68: 8065000000-N | C68: ASBESTOS ASSESSMENT | F68: 1 | G68: 750 | H68: 750
B69: 8112730000-N | C69: PDA TESTING | F69: 1 | G69: 3000 | H69: 3000
B70: 8121000000-N | C70: UNCL STR EXCAV STA ***** | D70: (13+56.30 -L-) | F70: 1 | G70: 10000 | H70: 10000
B71: 8182000000-E | C71: CLASS A CONCRETE (BRIDGE) | F71: 25 | G71: 1200 | H71: 30000
B72: 8210000000-N | C72: BRG APPR SLAB *********** | D72: (13+56.30 -L-) | F72: 1 | G72: 22000 | H72: 22000
B73: 8217000000-E | C73: REINF STEEL (BRIDGE) | F73: 3670 | G73: 2 | H73: 7340
B74: 8328200000-E | C74: PILE DRV EQUIP SETUP ** STEEL PILES | D74: (HP 12 X 53) | F74: 10 | G74: 1400 | H74: 14000
B75: 8364000000-E | C75: HP12X53 PILES | F75: 725 | G75: 30 | H75: 21750
B76: 8393000000-N | C76: PILE REDRIVES | F76: 6 | G76: 50 | H76: 300
B77: 8505000000-E | C77: VERT CONC BARRIER RAIL | F77: 140.3 | G77: 150 | H77: 21045
B78: 8608000000-E | C78: RIP RAP II (2'-0") | F78: 244 | G78: 65 | H78: 15860
B79: 8622000000-E | C79: GEOTEXTILE FOR DRAINAGE | F79: 271 | G79: 1 | H79: 271
B80: 8657000000-N | C80: ELASTOMERIC BEARINGS | F80: 1 | G80: 2000 | H80: 2000
B81: 8763000000-E | C81: 3'-0" X 2'-0"PRESTR SLABS | F81: 630 | G81: 167 | H81: 105210
B82: 8867000000-E | C82: GENERIC STRUCTURE ITEM (LF) | D82: FIBER OPTIC CONDUIT SYSTEM | F82: 136 | G82: 25 | H82: 3400

Sheet ITEMS - DIV 03
B1: 2020 BID AVERAGES - DIVISION 03
B2: Item # | C2: Item Description | D2: Item Supplemental Description | E2: Item Supplemental Description 2 | F2: Item Quantity | G2: Average Unit Bid | H2: Extended Amt
B3: 0000100000-N | C3: MOBILIZATION | F3: 13 | G3: 109830.7692 | H3: 1427800
B4: 0000400000-N | C4: CONST SURVEYING | F4: 1 | G4: 57297 | H4: 57297
B5: 0030000000-N | C5: TYPE II MODIFIED APPR ********** | D5: (15+46.50 -L-) | F5: 1 | G5: 8400 | H5: 8400
B6: 0043000000-N | C6: GRADING | F6: 2 | G6: 488500 | H6: 977000
B7: 0050000000-E | C7: SUPP CLEARING & GRUBBING | F7: 2 | G7: 100000 | H7: 200000
B8: 0057000000-E | C8: UNDERCUT EXCAVATION | F8: 300 | G8: 1.05 | H8: 315
B9: 0106000000-E | C9: BORROW EXCAVATION | F9: 9080 | G9: 31.0751685 | H9: 282162.53
B10: 0195000000-E | C10: SELECT GRANULAR MATERIAL | F10: 300 | G10: 1.05 | H10: 315
B11: 0196000000-E | C11: GEOTEXTILE SOIL STABILIZATION | F11: 300 | G11: 1.05 | H11: 315
B12: 0223000000-E | C12: ROCK PLATING | F12: 70860 | G12: 43 | H12: 3046980
B13: 0318000000-E | C13: FND CONDIT MATL MINOR STRS | F13: 410 | G13: 67 | H13: 27470
B14: 0320000000-E | C14: FND CONDIT GEOTEXTILE | F14: 1280 | G14: 2 | H14: 2560
B15: 0366000000-E | C15: 15" RC PIPE CULV III | F15: 328 | G15: 63 | H15: 20664
B16: 0546000000-E | C16: **" CAA PIPE CLVT *****" | D16: (15", 0.064") | F16: 3476 | G16: 99 | H16: 344124
B17: 0564000000-E | C17: **" CAA PIPE ELBOW *****" | D17: (15", 0.064") | F17: 106 | G17: 226 | H17: 23956
B18: 0995000000-E | C18: PIPE REMOVAL | F18: 2237 | G18: 32 | H18: 71584
B19: 0996000000-N | C19: PIPE CLEAN OUT | F19: 10 | G19: 1719 | H19: 17190
B20: 1121000000-E | C20: AGGREGATE BASE COURSE | F20: 2462 | G20: 49 | H20: 120638
B21: 1220000000-E | C21: INCIDENTAL STONE BASE | F21: 4435 | G21: 73.2856009 | H21: 325021.64
B22: 1245000000-E | C22: SHOULDER RECONSTRUCTION | F22: 288.02 | G22: 2325.662003 | H22: 669837.17
B23: 1260000000-E | C23: AGGREGATE SHOULDER BORROW | F23: 3590 | G23: 33.07 | H23: 118721.3
B24: 1297000000-E | C24: MILL ASP PVMT *****" DTH | D24: (1") | F24: 2725 | G24: 5.827970642 | H24: 15881.22
D25: (1-1/2") | F25: 523580 | G25: 1.42428754 | H25: 745728.47
D26: (2") | F26: 261312 | G26: 1.45 | H26: 378902.4
B27: 1330000000-E | C27: INCIDENTAL MILLING | F27: 14383 | G27: 9.04698672 | H27: 130122.81
B28: 1491000000-E | C28: ASP CONC BASE CRS B25.0C | F28: 6258 | G28: 69.13948226 | H28: 432674.88
B29: 1519000000-E | C29: ASP CONC SURF CRS S9.5B | F29: 155631 | G29: 44.50237935 | H29: 6925949.8
B30: 1520000000-E | C30: ASP CONC SURF CRS S9.5B LEVEL | F30: 1656 | G30: 67.90458937 | H30: 112450
B31: 1523000000-E | C31: ASP CONC SURF CRS S9.5C | F31: 63806 | G31: 46.90520014 | H31: 2992833.2
B32: 1524000000-E | C32: ASP CONC SURF CRS S9.5C LEVEL | F32: 100 | G32: 90 | H32: 9000
B33: 1526000000-E | C33: ASP CONC SURF CRS S4.75A | F33: 18750 | G33: 53.40506667 | H33: 1001345
B34: 1575000000-E | C34: ASP FOR PLANT MIX | F34: 15984 | G34: 307.6799925 | H34: 4917957
B35: 1693000000-E | C35: ASPH PLT MIX PVMT REPAIR | F35: 10 | G35: 578 | H35: 5780
B36: 1775500000-E | C36: AST, MAT COAT, *** STONE | D36: (67 GRANITE) | F36: 546692 | G36: 1.08389863 | H36: 592558.71
D37: (67 GRANITE) | F37: 15610 | G37: 1.02 | H37: 15922.2
B38: 1838000000-E | C38: EMULSION FOR AST | F38: 224945 | G38: 1.931080042 | H38: 434386.8
B39: 1840000000-E | C39: MILLED RUMBLE STRIPS | F39: 104582 | G39: 0.19 | H39: 19870.58
B40: 1880000000-E | C40: GENERIC PAVING ITEM (TON) | D40: ASPHALT CONC SURFACE COURSE, | E40: TYPE S4.75A (LEVELING COURSE) | F40: 1035 | G40: 70.9468599 | H40: 73430
D41: PATCHING EXISTING PAVEMENT | E41: (FULL DEPTH) | F41: 3667 | G41: 127.7581674 | H41: 468489.2
E42: (MILL) | F42: 1835 | G42: 119.786376 | H42: 219808
E43: I19.0C (FULL DEPTH) | F43: 4750 | G43: 105 | H43: 498750
E44: I19.0C (MILL) | F44: 3000 | G44: 119.9536667 | H44: 359861
D45: PATCHING EXISTING PAVEMENT (MILL) | F45: 5393 | G45: 136.7455405 | H45: 737468.7
B46: 2022000000-E | C46: SUBDRAIN EXCAVATION | F46: 44.8 | G46: 1.05 | H46: 47.04
B47: 2026000000-E | C47: GEOTEXTILE FOR SUBSURF DRNS | F47: 200 | G47: 1.05 | H47: 210
B48: 2036000000-E | C48: SUBDRAIN COARSE AGGREGATE | F48: 33.6 | G48: 1.05 | H48: 35.28
B49: 2044000000-E | C49: 6" PERF SUBDRN PIPE | F49: 200 | G49: 1.05 | H49: 210
B50: 2070000000-N | C50: SUBDRN PIPE OUTLET | F50: 1 | G50: 1.05 | H50: 1.05
B51: 2077000000-E | C51: 6" OUTLET PIPE | F51: 6 | G51: 1.05 | H51: 6.3
B52: 2286000000-N | C52: MASNRY DRAINAGE STRUCT | F52: 59 | G52: 1638 | H52: 96642
B53: 2364200000-N | C53: FRAME W/2GRTS 840.20 STD | F53: 41 | G53: 556 | H53: 22796
B54: 2365000000-N | C54: FRAME W/2GRTS 840.22 STD | F54: 14 | G54: 553 | H54: 7742
B55: 2556000000-E | C55: SHOULDER BERM GUTTER | F55: 10329 | G55: 19.04983541 | H55: 196765.75
B56: 2570000000-N | C56: MODIFIED CONCRETE FLUME | F56: 2 | G56: 1050 | H56: 2100
B57: 2591000000-E | C57: 4" CONCRETE SIDEWALK | F57: 33 | G57: 80 | H57: 2640
B58: 2600000000-N | C58: RETROFIT EXT CURB RAMPS | F58: 1 | G58: 450 | H58: 450
B59: 2612000000-E | C59: 6" CONCRETE DRIVEWAY | F59: 8 | G59: 235 | H59: 1880
B60: 2613000000-N | C60: REM & REP CURB RAMPS | F60: 12 | G60: 3298 | H60: 39576
B61: 2738000000-E | C61: GENERIC PAVING ITEM (SY) | D61: REMOVE & REPLACE 4" CONCRETE SIDEWALK | F61: 25 | G61: 192 | H61: 4800
B62: 2752000000-E | C62: GENERIC PAVING ITEM (LF) | D62: REMOVE & REPLACE 2'-6" CURB & GUTTER | F62: 1284 | G62: 69.20560748 | H62: 88860
B63: 2815000000-N | C63: ADJ DROP INLETS | F63: 3 | G63: 1275 | H63: 3825
B64: 2830000000-N | C64: ADJ MANHOLES | F64: 124 | G64: 370.6451613 | H64: 45960
B65: 2845000000-N | C65: ADJ METER OR VALVE BOXES | F65: 90 | G65: 303 | H65: 27270
B66: 3030000000-E | C66: STL BEAM GUARDRAIL | F66: 10305 | G66: 15.99320718 | H66: 164810
B67: 3045000000-E | C67: SBGR SHOP CURVED | F67: 25 | G67: 17.85 | H67: 446.25
B68: 3145000000-E | C68: EX LENGTH GR POST ** STL | D68: (8') | F68: 4 | G68: 47.25 | H68: 189
B69: 3150000000-N | C69: ADDIT GUARDRAIL POSTS | F69: 72 | G69: 37.05208333 | H69: 2667.75
B70: 3195000000-N | C70: GR END TYPE AT-1 | F70: 1 | G70: 525 | H70: 525
B71: 3210000000-N | C71: GR END TYPE CAT-1 | F71: 6 | G71: 680 | H71: 4080
B72: 3215000000-N | C72: GR ANCHOR TYPE III | F72: 4 | G72: 1575 | H72: 6300
B73: 3287000000-N | C73: GR END TYPE TL-3 | F73: 51 | G73: 2545.039216 | H73: 129797
B74: 3317000000-N | C74: GR ANCHOR TYPE B-77 | F74: 10 | G74: 1833 | H74: 18330
B75: 3360000000-E | C75: REMOVE EXISTING GUARDRAIL | F75: 10300 | G75: 1 | H75: 10300
B76: 3420000000-E | C76: GENERIC GUARDRAIL ITEM (LF) | D76: REMOVE & REPLACE EXISTING GUARDRAIL | F76: 2457.5 | G76: 15.96261648 | H76: 39228.13
D77: REMOVE AND REPLACE EXISTING GUARDRAIL | F77: 1275 | G77: 16 | H77: 20400
B78: 3435000000-N | C78: GENERIC GUARDRAIL ITEM (EA) | D78: GUARDRAIL PRE-FAB POSTS | F78: 18 | G78: 325 | H78: 5850
D79: REMOVE & RESET GUARDRAIL END | E79: UNITS, TYPE TL-3 | F79: 4 | G79: 2500 | H79: 10000
B80: 3649000000-E | C80: RIP RAP, CLASS B | F80: 66 | G80: 66.21212121 | H80: 4370
B81: 3656000000-E | C81: GEOTEXTILE FOR DRAINGE | F81: 1401 | G81: 2.031406138 | H81: 2846
B82: 4400000000-E | C82: WORK ZONE SIGNS (STAT) | F82: 928 | G82: 6.204655172 | H82: 5757.92
B83: 4405000000-E | C83: WORK ZONE SIGNS (PORT) | F83: 560 | G83: 11.57142857 | H83: 6480
B84: 4410000000-E | C84: WORK ZONE SIGNS (BARR) | F84: 114 | G84: 4.15 | H84: 473.1
B85: 4413000000-E | C85: WORK ZONE ADV/GEN WARN SIGN | F85: 15676 | G85: 5.191150804 | H85: 81376.48
B86: 4415000000-N | C86: FLASHING ARROW BOARD | F86: 8 | G86: 2063 | H86: 16504
B87: 4420000000-N | C87: PORTABLE CHANGE MSG SIGN | F87: 6 | G87: 9554.666667 | H87: 57328
B88: 4430000000-N | C88: DRUMS | F88: 200 | G88: 46 | H88: 9200
B89: 4445000000-E | C89: BARRICADES (TYPE III) | F89: 64 | G89: 23.1 | H89: 1478.4
B90: 4447000000-E | C90: PED CHANNEL DEVICES | F90: 78 | G90: 28.15384615 | H90: 2196
B91: 4455000000-N | C91: FLAGGER | F91: 500 | G91: 96.5 | H91: 48250
B92: 4457000000-N | C92: TEMP TRAFFIC CONTROL (SP) | F92: 10 | G92: 36535.677 | H92: 365356.77
B93: 4465000000-N | C93: TEMPORARY CRASH CUSHIONS | F93: 4 | G93: 3381 | H93: 13524
B94: 4480000000-N | C94: TMA | F94: 4 | G94: 63255 | H94: 253020
B95: 4485000000-E | C95: PORT CONC BARRIER | F95: 11452 | G95: 37 | H95: 423724
B96: 4510000000-N | C96: LAW ENFORCEMENT | F96: 703 | G96: 55.39829303 | H96: 38945
B97: 4516000000-N | C97: SKINNY DRUM | F97: 60 | G97: 45 | H97: 2700
B98: 4600000000-N | C98: GENERIC TRAFFIC CONTROL ITEM (EA) | D98: AUDIBLE WARNING DEVICES | F98: 2 | G98: 235 | H98: 470
D99: LANE CLOSURE | F99: 33 | G99: 1500 | H99: 49500
D100: PEDESTRIAN TRANSPORT SERVICE | E100: (PER TRIP) | F100: 10 | G100: 740 | H100: 7400
B101: 4685000000-E | C101: THERMO PVT MKG LINES 4"90 | F101: 907810 | G101: 0.454376863 | H101: 412487.86
B102: 4688000000-E | C102: THERMO PVT MKG LINES,6"90 MILS | F102: 130480 | G102: 0.7 | H102: 91336
B103: 4695000000-E | C103: THERMO PVT MKG LINES 8"90 MILS | F103: 4384 | G103: 3.023734033 | H103: 13256.05
B104: 4700000000-E | C104: 12"WIDE THERMO 90 MILS | F104: 8918 | G104: 2.206324288 | H104: 19676
B105: 4720000000-E | C105: THERMO PVT MKG CHARACTER 90 | F105: 94 | G105: 89.10638298 | H105: 8376
B106: 4725000000-E | C106: THERMO PVT SYMBOL 90MILS | F106: 391 | G106: 109.2710997 | H106: 42725
B107: 4726110000-E | C107: HIP THERMO PVT SYMBOL 90 MILS | F107: 4 | G107: 100 | H107: 400
B108: 4810000000-E | C108: PAINT PVMT MARKINGS 4" | F108: 4158194 | G108: 0.1083922588 | H108: 450716.04
B109: 4815000000-E | C109: PAINT PVMT MARKINGS 6" | F109: 5367 | G109: 0.2 | H109: 1073.4
B110: 4820000000-E | C110: PAINT PVMT MARKINGS 8" | F110: 1136 | G110: 1 | H110: 1136
B111: 4825000000-E | C111: PAINT PVMT MARKINGS 12" | F111: 150 | G111: 2 | H111: 300
B112: 4830000000-E | C112: PAINT PVT MKGS LINES 16" | F112: 500 | G112: 2.25 | H112: 1125
B113: 4835000000-E | C113: PAINT PVT MKG LINES 24" | F113: 959 | G113: 3.513034411 | H113: 3369
B114: 4840000000-N | C114: PAINT PVT MKG CHARACTER | F114: 74 | G114: 47.02702703 | H114: 3480
B115: 4845000000-N | C115: PAINT PVT MKG SYMBOL | F115: 40 | G115: 44.26 | H115: 1770.4
B116: 4850000000-E | C116: LINE REMOVAL 4" WIDE | F116: 11257 | G116: 2.312627698 | H116: 26033.25
B117: 4860000000-E | C117: LINE REMOVAL 8" WIDE | F117: 75 | G117: 3 | H117: 225
B118: 4870000000-E | C118: LINE REMOVAL 24" WIDE | F118: 16 | G118: 5 | H118: 80
B119: 4890000000-E | C119: GENERIC PAVEMENT MARKING ITEM (LF) | D119: POLYUREA PAVEMENT MARKING LINES | E119: (4", 20MILS) (STD GLASS BEADS) | F119: 8069 | G119: 4.45 | H119: 35907.05
D120: THERMOPLASTIC PROFILED PAVE- | E120: MENT MARKING LINES (4", EDGE- LINES) | F120: 83175 | G120: 1 | H120: 83175
B121: 4891000000-E | C121: GENERIC PVMT MARKING ITEM (LF) 1205 | D121: REMOVAL OF PAVEMENT MARKING LINES (4") | E121: (REMOVAL OF PROFILED EDGE- LINES) | F121: 83175 | G121: 0.25 | H121: 20793.75
D122: THERMOPLASTIC PAVEMENT MARKING | E122: LINES (16", 90 MILS) | F122: 100 | G122: 8 | H122: 800
E123: LINES (24", 90 MILS) | F123: 1050 | G123: 9.101809524 | H123: 9556.9
E124: LINES (24", 90MILS) | F124: 50 | G124: 15 | H124: 750
B125: 4892000000-N | C125: GENERIC PVMT MARKING ITEM (EA) 1205 | D125: THERMOPLASTIC PAVEMENT MARKING | E125: CHARACTER (90 MIL) | F125: 12 | G125: 140 | H125: 1680
E126: CHARACTER (90MILS) | F126: 6 | G126: 140 | H126: 840
B127: 4900000000-N | C127: PERM RAISED PVMT MARKERS | F127: 9816 | G127: 5.241422168 | H127: 51449.8
B128: 4905000000-N | C128: SNOWPLB PVMT MRKER | F128: 3801 | G128: 28.05730071 | H128: 106645.8
B129: 5255000000-N | C129: PORTABLE LIGHTING | F129: 2 | G129: 6897.32 | H129: 13794.64
B130: 6000000000-E | C130: TEMPORARY SILT FENCE | F130: 46590 | G130: 2.248508264 | H130: 104758
B131: 6006000000-E | C131: EROS CONTRL STONE CL A | F131: 330 | G131: 50.46590909 | H131: 16653.75
B132: 6009000000-E | C132: EROS CONTRL STONE CL B | F132: 4086 | G132: 41.84235193 | H132: 170967.85
B133: 6012000000-E | C133: SEDIMENT CONTROL STONE | F133: 4806 | G133: 39.05347482 | H133: 187691
B134: 6015000000-E | C134: TEMPORARY MULCHING | F134: 135.43 | G134: 227.4362401 | H134: 30801.69
B135: 6018000000-E | C135: SEED FOR TEMP SEEDING | F135: 6675 | G135: 1.423071161 | H135: 9499
B136: 6021000000-E | C136: FERT FOR TEMP SEEDING | F136: 35.27 | G136: 391.2911823 | H136: 13800.84
B137: 6024000000-E | C137: TEMPORARY SLOPE DRAINS | F137: 4640 | G137: 9.614224138 | H137: 44610
B138: 6029000000-E | C138: SAFETY FENCE | F138: 4796 | G138: 1.119266055 | H138: 5368
B139: 6030000000-E | C139: SILT EXCAVATION | F139: 1520 | G139: 53.65164474 | H139: 81550.5
B140: 6036000000-E | C140: MATTING FOR EROS CONTROL | F140: 21370 | G140: 2.059429106 | H140: 44010
B141: 6037000000-E | C141: COIR FIBER MAT | F141: 100 | G141: 7.35 | H141: 735
B142: 6038000000-E | C142: PERM SOIL REINF MAT | F142: 180 | G142: 6 | H142: 1080
B143: 6042000000-E | C143: 1/4" HARDWARE CLOTH | F143: 12871 | G143: 4.156390335 | H143: 53496.9
B144: 6070000000-N | C144: SPECIAL STILLING BASINS | F144: 3 | G144: 1050 | H144: 3150
B145: 6071010000-E | C145: WATTLE | F145: 3450 | G145: 9.866666667 | H145: 34040
B146: 6071012000-E | C146: COIR FIBER WATTLE | F146: 60 | G146: 6.3 | H146: 378
B147: 6071020000-E | C147: POLYACRYLAMIDE (PAM) | F147: 280 | G147: 7 | H147: 1960
B148: 6071030000-E | C148: COIR FIBER BAFFLE | F148: 125 | G148: 11 | H148: 1375
B149: 6084000000-E | C149: SEEDING AND MULCHING | F149: 130.71 | G149: 1807.631168 | H149: 236275.47
B150: 6087000000-E | C150: MOWING | F150: 9.3 | G150: 221.6473118 | H150: 2061.32
B151: 6090000000-E | C151: SEED FOR REPAIR SEEDING | F151: 6898 | G151: 3.195201508 | H151: 22040.5
B152: 6093000000-E | C152: FERT FOR REPAIR SEEDING | F152: 33.35 | G152: 302.7292354 | H152: 10096.02
B153: 6096000000-E | C153: SEED FOR SUPP SEEDING | F153: 300 | G153: 12.54166667 | H153: 3762.5
B154: 6108000000-E | C154: FERTILIZER TOPDRESSING | F154: 7.25 | G154: 1316.37931 | H154: 9543.75
B155: 6111000000-E | C155: IMPERVIOUS DIKE | F155: 275 | G155: 40 | H155: 11000
B156: 6114500000-N | C156: SPECIALIZED HAND MOWING | F156: 30 | G156: 77.01666667 | H156: 2310.5
B157: 6117000000-N | C157: RESPONSE FOR EROS CONTROL | F157: 171 | G157: 423.8046784 | H157: 72470.6
B158: 6117500000-N | C158: CONC WASHOUT STRUCTURE | F158: 8 | G158: 718.5 | H158: 5748
B159: 7444000000-E | C159: INDUCTIVE LOOP SAWCUT | F159: 2469 | G159: 6.15 | H159: 15184.35
B160: 8035000000-N | C160: REMV EXIST STR ********** | D160: (15+46.50 -L-) | F160: 1 | G160: 26250 | H160: 26250
B161: 8065000000-N | C161: ASBESTOS ASSESSMENT | F161: 1 | G161: 2100 | H161: 2100
B162: 8112730000-N | C162: PDA TESTING | F162: 1 | G162: 3675 | H162: 3675
B163: 8121000000-N | C163: UNCL STR EXCAV STA ***** | D163: (15+46.50 -L-) | F163: 1 | G163: 7875 | H163: 7875
B164: 8161000000-E | C164: GROOVING BRIDGE FLOORS | F164: 14417 | G164: 0.75 | H164: 10812.75
B165: 8182000000-E | C165: CLASS A CONCRETE (BRIDGE) | F165: 39.1 | G165: 892.5 | H165: 34896.75
B166: 8210000000-N | C166: BRG APPR SLAB *********** | D166: (15+46.50 -L-) | F166: 1 | G166: 20737.5 | H166: 20737.5
B167: 8217000000-E | C167: REINF STEEL (BRIDGE) | F167: 6366 | G167: 1.16 | H167: 7384.56
B168: 8328200000-E | C168: PILE DRV EQUIP SETUP ** STEEL PILES | D168: (HP 12 X 53) | F168: 14 | G168: 1050 | H168: 14700
B169: 8328400000-E | C169: PILE DRV EQUIP SETUP ** GALV STEEL PILES | D169: (HP 14 X 73) | F169: 8 | G169: 1365 | H169: 10920
B170: 8364000000-E | C170: HP12X53 PILES | F170: 630 | G170: 23.1 | H170: 14553
B171: 8384200000-E | C171: HP14X73 GALV PILES | F171: 400 | G171: 46.2 | H171: 18480
B172: 8393000000-N | C172: PILE REDRIVES | F172: 12 | G172: 1.05 | H172: 12.6
B173: 8505000000-E | C173: VERT CONC BARRIER RAIL | F173: 210.5 | G173: 96.6 | H173: 20334.3
B174: 8559000000-E | C174: SURFACE PREP, CLASS II | F174: 2 | G174: 1090 | H174: 2180
B175: 8608000000-E | C175: RIP RAP II (2'-0") | F175: 155 | G175: 48.3 | H175: 7486.5
B176: 8622000000-E | C176: GEOTEXTILE FOR DRAINAGE | F176: 175 | G176: 2.1 | H176: 367.5
B177: 8657000000-N | C177: ELASTOMERIC BEARINGS | F177: 2 | G177: 10206 | H177: 20412
B178: 8660000000-E | C178: CONCRETE REPAIRS | F178: 20 | G178: 905 | H178: 18100
B179: 8664000000-E | C179: SHOTCRETE REPAIRS | F179: 439 | G179: 650 | H179: 285350
B180: 8678000000-E | C180: EPOXY RESIN INJECTION | F180: 848 | G180: 90 | H180: 76320
B181: 8762000000-E | C181: 3'-0"X 1'-9"PRESTR SLABS | F181: 1155 | G181: 124.95 | H181: 144317.25
B182: 8860000000-N | C182: GENERIC STRUCTURE ITEM (LS) | D182: VOLUMETRIC MIXER | F182: 1 | G182: 34200 | H182: 34200
D183: WATER LINE REMOVAL | F183: 1 | G183: 273100 | H183: 273100
B184: 8867000000-E | C184: GENERIC STRUCTURE ITEM (LF) | D184: FIBER OPTIC CONDUIT SYSTEM | F184: 206.25 | G184: 18.90002424 | H184: 3898.13
D185: FOAM JOINT SEALS FOR PRESERVA-TION | F185: 720 | G185: 70 | H185: 50400
D186: INTEGRAL PILE JACKETING | F186: 5 | G186: 1480 | H186: 7400
D187: RAIL RETROFIT | F187: 3795 | G187: 198 | H187: 751410
B188: 8881000000-E | C188: GENERIC STRUCTURE ITEM (CY) | D188: LATEX MODIFIED CONCRETE | E188: OVERLAY - VERY EARLY STRENGTH | F188: 103 | G188: 1200 | H188: 123600
B189: 8882000000-E | C189: GENERIC STRUCTURE ITEM (CF) | D189: ELASTOMERIC CONCRETE FOR PRES- | E189: ERVATION | F189: 78 | G189: 540 | H189: 42120
D190: REPAIRS TO PRESTRESSED CON- | E190: CRETE GIRDERS | F190: 191 | G190: 850 | H190: 162350
B191: 8892000000-E | C191: GENERIC STRUCTURE ITEM (SF) | D191: BRIDGE JOINT DEMOLITION | F191: 244 | G191: 85 | H191: 20740
D192: EPOXY COATING | F192: 6282 | G192: 5.8 | H192: 36435.6
B193: 8893000000-E | C193: GENERIC STRUCTURE ITEM (SY) | D193: HYDRO-DEMOLITION OF BRIDGE DECK | F193: 1790 | G193: 29 | H193: 51910
D194: PLACING AND FINISHING LATEX MOD | E194: CONC OVERLAY - VERY EARLY STRENGTH | F194: 1790 | G194: 115 | H194: 205850
D195: SCARIFYING BRIDGE DECK | F195: 1790 | G195: 36 | H195: 64440
D196: SHOTBLASTING BRIDGE DECK | F196: 4801 | G196: 4.65 | H196: 22324.65
D197: SILANE DECK TREATMENT | F197: 4801 | G197: 8.5 | H197: 40808.5
B198: 8897000000-N | C198: GENERIC STRUCTURE ITEM (EA) | D198: CATHODIC PROTECTION SYSTEM- | E198: SUBMERGED ZINC BULK ANODE | F198: 50 | G198: 2540 | H198: 127000
D199: TYPE I BRIDGE JACKING BRIDGE NO 13 | F199: 6 | G199: 11900 | H199: 71400

Sheet ITEMS - DIV 04
B1: 2020 BID AVERAGES - DIVISION 04
B2: Item # | C2: Item Description | D2: Item Supplemental Description | E2: Item Supplemental Description 2 | F2: Item Quantity | G2: Average Unit Bid | H2: Extended Amt
B3: 0000100000-N | C3: MOBILIZATION | F3: 7 | G3: 171925 | H3: 1203475
B4: 0000400000-N | C4: CONST SURVEYING | F4: 3 | G4: 48345.66667 | H4: 145037
B5: 0000915000-N | C5: GENERIC MISCELLANEOUS ITEM (EA) | D5: REMOVE WOOD POLE | F5: 127 | G5: 115 | H5: 14605
B6: 0001000000-E | C6: CLEARING & GRUBBING | F6: 1 | G6: 510000 | H6: 510000
B7: 0008000000-E | C7: SUPP CLEARING & GRUBBING | F7: 1 | G7: 22722 | H7: 22722
B8: 0022000000-E | C8: UNCLASSIFIED EXCAVATION | F8: 5000 | G8: 18 | H8: 90000
B9: 0030000000-N | C9: TYPE II MODIFIED APPR ********** | D9: (16+42.60 -L-) | F9: 1 | G9: 12000 | H9: 12000
D10: (16+80 -L-) | F10: 1 | G10: 10000 | H10: 10000
D11: (31+08.50 -L-) | F11: 1 | G11: 10000 | H11: 10000
D12: (35+90.50 -L-) | F12: 1 | G12: 10000 | H12: 10000
B13: 0036000000-E | C13: UNDERCUT EXCAVATION | F13: 1600 | G13: 25.626875 | H13: 41003
B14: 0043000000-N | C14: GRADING | F14: 2 | G14: 54500 | H14: 109000
B15: 0050000000-E | C15: SUPP CLEARING & GRUBBING | F15: 2 | G15: 50.5 | H15: 101
B16: 0106000000-E | C16: BORROW EXCAVATION | F16: 42200 | G16: 5.071090047 | H16: 214000
B17: 0134000000-E | C17: DRAINAGE DITCH EXCAVATION | F17: 1240 | G17: 8 | H17: 9920
B18: 0156000000-E | C18: REMOVAL OF EXT ASPHALT PVMT | F18: 21010 | G18: 5 | H18: 105050
B19: 0163000000-E | C19: REMOVAL OF EXT CONC PVMT | F19: 1000 | G19: 84 | H19: 84000
B20: 0177000000-E | C20: BREAKING OF EXT ASPH PVMT | F20: 720 | G20: 21 | H20: 15120
B21: 0195000000-E | C21: SELECT GRANULAR MATERIAL | F21: 1600 | G21: 13.439375 | H21: 21503
B22: 0196000000-E | C22: GEOTEXTILE SOIL STABILIZATION | F22: 2300 | G22: 4.08826087 | H22: 9403
B23: 0199000000-E | C23: TEMPORARY SHORING | F23: 410 | G23: 41 | H23: 16810
B24: 0223000000-E | C24: ROCK PLATING | F24: 530 | G24: 92.89886792 | H24: 49236.4
B25: 0255000000-E | C25: GENERIC GRADING ITEM (TON) | D25: HAULING & DISPOSAL OF | E25: PETROLEUM CONTAMINATED SOIL | F25: 300 | G25: 69 | H25: 20700
B26: 0318000000-E | C26: FND CONDIT MATL MINOR STRS | F26: 2226 | G26: 35.87619048 | H26: 79860.4
B27: 0320000000-E | C27: FND CONDIT GEOTEXTILE | F27: 6520 | G27: 4.967055215 | H27: 32385.2
B28: 0335500000-E | C28: 30" DRAINAGE PIPE | F28: 24 | G28: 82 | H28: 1968
B29: 0335850000-E | C29: **" DRAINAGE PIPE ELBOW | D29: (30") | F29: 2 | G29: 400 | H29: 800
B30: 0366000000-E | C30: 15" RC PIPE CULV III | F30: 692 | G30: 33 | H30: 22836
B31: 0372000000-E | C31: 18" RC PIPE CULV III | F31: 1128 | G31: 41 | H31: 46248
B32: 0378000000-E | C32: 24" RC PIPE CULV III | F32: 300 | G32: 56 | H32: 16800
B33: 0384000000-E | C33: 30" RC PIPE CULV III | F33: 412 | G33: 73 | H33: 30076
B34: 0390000000-E | C34: 36" RC PIPE CULV III | F34: 232 | G34: 104 | H34: 24128
B35: 0396000000-E | C35: 42" RC PIPE CULV III | F35: 56 | G35: 154 | H35: 8624
B36: 0448000000-E | C36: ***" RCP CULV CLASS IV | D36: (12") | F36: 108 | G36: 40 | H36: 4320
B37: 0448200000-E | C37: 15" RCP CULV CLASS IV | F37: 324 | G37: 41 | H37: 13284
B38: 0448300000-E | C38: 18" RCP CULV CLASS IV | F38: 7300 | G38: 45 | H38: 328500
B39: 0448400000-E | C39: 24" RCP CULV CLASS IV | F39: 640 | G39: 69 | H39: 44160
B40: 0448500000-E | C40: 30" RCP CULV CLASS IV | F40: 268 | G40: 100 | H40: 26800
B41: 0448600000-E | C41: 36" RCP CULV CLASS IV | F41: 1168 | G41: 138 | H41: 161184
B42: 0448700000-E | C42: 42" RCP CULV CLASS IV | F42: 548 | G42: 203 | H42: 111244
B43: 0995000000-E | C43: PIPE REMOVAL | F43: 4392 | G43: 16 | H43: 70272
B44: 0996000000-N | C44: PIPE CLEAN OUT | F44: 1 | G44: 1500 | H44: 1500
B45: 1011000000-N | C45: FINE GRADING | F45: 1 | G45: 942419 | H45: 942419
B46: 1099500000-E | C46: SHALLOW UNDERCUT | F46: 500 | G46: 18 | H46: 9000
B47: 1099700000-E | C47: CLASS IV SUBGRD STABILIZATION | F47: 1000 | G47: 24 | H47: 24000
B48: 1121000000-E | C48: AGGREGATE BASE COURSE | F48: 2633 | G48: 23 | H48: 60559
B49: 1220000000-E | C49: INCIDENTAL STONE BASE | F49: 1325 | G49: 39.11320755 | H49: 51825
B50: 1245000000-E | C50: SHOULDER RECONSTRUCTION | F50: 14.4 | G50: 1616.180556 | H50: 23273
B51: 1297000000-E | C51: MILL ASP PVMT *****" DTH | D51: (1-1/2") | F51: 235350 | G51: 0.9997875505 | H51: 235300
D52: (2") | F52: 12113 | G52: 1 | H52: 12113
D53: (2-1/2") | F53: 3000 | G53: 1.5 | H53: 4500
B54: 1308000000-E | C54: MILLN ASPHALT PVMT ***** - ***** | D54: (0" TO 1-1/2") | F54: 82896 | G54: 1.05 | H54: 87040.8
D55: (0" TO 2") | F55: 105618 | G55: 1.1 | H55: 116179.8
B56: 1330000000-E | C56: INCIDENTAL MILLING | F56: 17060 | G56: 9.286594373 | H56: 158429.3
B57: 1491000000-E | C57: ASP CONC BASE CRS B25.0C | F57: 25230 | G57: 61.4045977 | H57: 1549238
B58: 1503000000-E | C58: ASP CONC INTR CRS I19.0C | F58: 19607 | G58: 61.89493548 | H58: 1213574
B59: 1519000000-E | C59: ASP CONC SURF CRS S9.5B | F59: 79218 | G59: 44.06835694 | H59: 3491007.1
B60: 1523000000-E | C60: ASP CONC SURF CRS S9.5C | F60: 57153 | G60: 36.41539639 | H60: 2081249.15
B61: 1575000000-E | C61: ASP FOR PLANT MIX | F61: 10819.1 | G61: 325.4944561 | H61: 3521557.07
B62: 1693000000-E | C62: ASPH PLT MIX PVMT REPAIR | F62: 1840 | G62: 172 | H62: 316480
B63: 1704000000-E | C63: PATCHING EXIST PAVEMENT | F63: 1630 | G63: 128.5674847 | H63: 209565
B64: 2022000000-E | C64: SUBDRAIN EXCAVATION | F64: 985.6 | G64: 20.45500203 | H64: 20160.45
B65: 2026000000-E | C65: GEOTEXTILE FOR SUBSURF DRNS | F65: 400 | G65: 1.005 | H65: 402
B66: 2033000000-E | C66: SUBDRAIN FINE AGGREGATE | F66: 672 | G66: 68 | H66: 45696
B67: 2036000000-E | C67: SUBDRAIN COARSE AGGREGATE | F67: 67.2 | G67: 30.00505952 | H67: 2016.34
B68: 2044000000-E | C68: 6" PERF SUBDRN PIPE | F68: 4400 | G68: 14.77318182 | H68: 65002
B69: 2070000000-N | C69: SUBDRN PIPE OUTLET | F69: 10 | G69: 388.401 | H69: 3884.01
B70: 2077000000-E | C70: 6" OUTLET PIPE | F70: 60 | G70: 47.801 | H70: 2868.06
B71: 2209000000-E | C71: ENDWALLS | F71: 3.4 | G71: 1800 | H71: 6120
B72: 2264000000-E | C72: PIPE PLUGS | F72: 3.1 | G72: 1900 | H72: 5890
B73: 2275000000-E | C73: FLOWABLE FILL | F73: 11 | G73: 287 | H73: 3157
B74: 2286000000-N | C74: MASNRY DRAINAGE STRUCT | F74: 182 | G74: 1600 | H74: 291200
B75: 2308000000-E | C75: MASNRY DRAINAGE STRUCT | F75: 63.4 | G75: 370 | H75: 23458
B76: 2364000000-N | C76: FRAME W/2GRTS 840.16 STD | F76: 36 | G76: 670 | H76: 24120
B77: 2366000000-N | C77: FRAME W/2GRTS 840.24 STD | F77: 1 | G77: 884 | H77: 884
B78: 2374000000-N | C78: FRAME-GRT-HD 840.03 ** | D78: (E) | F78: 27 | G78: 884 | H78: 23868
D79: (F) | F79: 51 | G79: 958 | H79: 48858
D80: (G) | F80: 55 | G80: 964 | H80: 53020
B81: 2396000000-N | C81: FRAME W/COVER STD 840.54 | F81: 11 | G81: 671 | H81: 7381
B82: 2440000000-N | C82: CONC TRANS SECT FOR CATCH BASIN | F82: 13 | G82: 1700 | H82: 22100
B83: 2451000000-N | C83: CONC TRANS SECT FOR DROP INLET | F83: 13 | G83: 1700 | H83: 22100
B84: 2535000000-E | C84: **"X**" CONCRETE CURB | D84: (8" X 18") | F84: 240 | G84: 28 | H84: 6720
B85: 2538000000-E | C85: **'-**" CONCRETE CURB & GUTTER | D85: (2'-9") | F85: 5470 | G85: 27 | H85: 147690
B86: 2549000000-E | C86: 2'-6" CONC CURB & GUTTER | F86: 16910 | G86: 25 | H86: 422750
B87: 2556000000-E | C87: SHOULDER BERM GUTTER | F87: 305 | G87: 43.3442623 | H87: 13220
B88: 2570000000-N | C88: MODIFIED CONCRETE FLUME | F88: 13 | G88: 2046.153846 | H88: 26600
B89: 2591000000-E | C89: 4" CONCRETE SIDEWALK | F89: 4220 | G89: 49 | H89: 206780
B90: 2605000000-N | C90: CONCRETE CURB RAMPS | F90: 120 | G90: 2181 | H90: 261720
B91: 2612000000-E | C91: 6" CONCRETE DRIVEWAY | F91: 840 | G91: 92 | H91: 77280
B92: 2613000000-N | C92: REM & REP CURB RAMPS | F92: 4 | G92: 2000 | H92: 8000
B93: 2619000000-E | C93: 4" CONCRETE PAVED DITCH | F93: 31 | G93: 120 | H93: 3720
B94: 2655000000-E | C94: 5" MONO CONC ISLDS (KEY IN) | F94: 2750 | G94: 69 | H94: 189750
B95: 2815000000-N | C95: ADJ DROP INLETS | F95: 2 | G95: 653 | H95: 1306
B96: 2830000000-N | C96: ADJ MANHOLES | F96: 3 | G96: 880.6666667 | H96: 2642
B97: 2845000000-N | C97: ADJ METER OR VALVE BOXES | F97: 11 | G97: 616.3636364 | H97: 6780
B98: 3030000000-E | C98: STL BEAM GUARDRAIL | F98: 1262.5 | G98: 15.10891089 | H98: 19075
B99: 3150000000-N | C99: ADDIT GUARDRAIL POSTS | F99: 15 | G99: 18.33333333 | H99: 275
B100: 3210000000-N | C100: GR END TYPE CAT-1 | F100: 2 | G100: 574 | H100: 1148
B101: 3215000000-N | C101: GR ANCHOR TYPE III | F101: 16 | G101: 1675 | H101: 26800
B102: 3287000000-N | C102: GR END TYPE TL-3 | F102: 18 | G102: 2738.111111 | H102: 49286
B103: 3360000000-E | C103: REMOVE EXISTING GUARDRAIL | F103: 630 | G103: 1 | H103: 630
B104: 3628000000-E | C104: RIP RAP, CLASS I | F104: 45 | G104: 37 | H104: 1665
B105: 3649000000-E | C105: RIP RAP, CLASS B | F105: 93 | G105: 42.83225806 | H105: 3983.4
B106: 3656000000-E | C106: GEOTEXTILE FOR DRAINGE | F106: 1632 | G106: 4.823805147 | H106: 7872.45
B107: 4025000000-E | C107: CONTR FURN, TYPE ***SIGN | D107: (A) | F107: 38 | G107: 7 | H107: 266
D108: (B) | F108: 30 | G108: 8 | H108: 240
D109: (D) | F109: 143 | G109: 12 | H109: 1716
D110: (E) | F110: 755 | G110: 18 | H110: 13590
D111: (F) | F111: 384 | G111: 26 | H111: 9984
B112: 4054000000-E | C112: PLN CONC FOUNDTN | F112: 1 | G112: 370 | H112: 370
B113: 4060000000-E | C113: SUPPORT, BREAKAWAY STL BM | F113: 225 | G113: 5 | H113: 1125
B114: 4072000000-E | C114: SUPPORT, 3-LB STL U-CHAN | F114: 2700 | G114: 8 | H114: 21600
B115: 4096000000-N | C115: SIGN ERECTION, TYPE D | F115: 10 | G115: 115 | H115: 1150
B116: 4102000000-N | C116: SIGN ERECTION, TYPE E | F116: 121 | G116: 52 | H116: 6292
B117: 4108000000-N | C117: SIGN ERECTION, TYPE F | F117: 27 | G117: 103 | H117: 2781
B118: 4110000000-N | C118: SIGN ERECTION, TYPE *** (GRD MTD) | D118: (A) | F118: 1 | G118: 1723 | H118: 1723
D119: (B) | F119: 1 | G119: 2010 | H119: 2010
B120: 4152000000-N | C120: DISPOSE SIGN SYST STL BM | F120: 1 | G120: 919 | H120: 919
B121: 4158000000-N | C121: DISPOSE SIGN SYST WOOD | F121: 100 | G121: 29 | H121: 2900
B122: 4400000000-E | C122: WORK ZONE SIGNS (STAT) | F122: 2013 | G122: 7.298062593 | H122: 14691
B123: 4405000000-E | C123: WORK ZONE SIGNS (PORT) | F123: 449 | G123: 9.893363029 | H123: 4442.12
B124: 4410000000-E | C124: WORK ZONE SIGNS (BARR) | F124: 444 | G124: 6.707207207 | H124: 2978
B125: 4413000000-E | C125: WORK ZONE ADV/GEN WARN SIGN | F125: 8339 | G125: 4.794993404 | H125: 39985.45
B126: 4415000000-N | C126: FLASHING ARROW BOARD | F126: 3 | G126: 3674 | H126: 11022
B127: 4420000000-N | C127: PORTABLE CHANGE MSG SIGN | F127: 13 | G127: 4506.461538 | H127: 58584
B128: 4424500000-N | C128: TEMP PORT TRAF SIGNAL SYS | F128: 2 | G128: 16500 | H128: 33000
B129: 4430000000-N | C129: DRUMS | F129: 691 | G129: 42.90014472 | H129: 29644
B130: 4435000000-N | C130: CONES | F130: 20 | G130: 12.5 | H130: 250
B131: 4445000000-E | C131: BARRICADES (TYPE III) | F131: 288 | G131: 21.77777778 | H131: 6272
B132: 4447000000-E | C132: PED CHANNEL DEVICES | F132: 84 | G132: 30.57142857 | H132: 2568
B133: 4455000000-N | C133: FLAGGER | F133: 30 | G133: 1032 | H133: 30960
B134: 4457000000-N | C134: TEMP TRAFFIC CONTROL (SP) | F134: 3 | G134: 47666.66667 | H134: 143000
B135: 4480000000-N | C135: TMA | F135: 4 | G135: 13780 | H135: 55120
B136: 4507000000-E | C136: WATER FILLED BARRIER | F136: 500 | G136: 84 | H136: 42000
B137: 4510000000-N | C137: LAW ENFORCEMENT | F137: 112 | G137: 61.225 | H137: 6857.2
B138: 4650000000-N | C138: TEMP RAISED PVMT MRKS | F138: 619 | G138: 5 | H138: 3095
B139: 4685000000-E | C139: THERMO PVT MKG LINES 4"90 | F139: 724868 | G139: 0.4558132515 | H139: 330404.44
B140: 4688000000-E | C140: THERMO PVT MKG LINES,6"90 MILS | F140: 205556 | G140: 0.6373766759 | H140: 131016.6
B141: 4695000000-E | C141: THERMO PVT MKG LINES 8"90 MILS | F141: 5498 | G141: 1.752682794 | H141: 9636.25
B142: 4700000000-E | C142: 12"WIDE THERMO 90 MILS | F142: 5789 | G142: 1.851010537 | H142: 10715.5
B143: 4720000000-E | C143: THERMO PVT MKG CHARACTER 90 | F143: 29 | G143: 141.5517241 | H143: 4105
B144: 4725000000-E | C144: THERMO PVT SYMBOL 90MILS | F144: 328 | G144: 111.7012195 | H144: 36638
B145: 4770000000-E | C145: 4" COLD APPL PLSTIC LINES TYPE ** | D145: (II) | F145: 2880 | G145: 3 | H145: 8640
B146: 4810000000-E | C146: PAINT PVMT MARKINGS 4" | F146: 178080 | G146: 0.3891734052 | H146: 69304
B147: 4820000000-E | C147: PAINT PVMT MARKINGS 8" | F147: 3358 | G147: 0.52 | H147: 1746.16
B148: 4825000000-E | C148: PAINT PVMT MARKINGS 12" | F148: 1462 | G148: 1 | H148: 1462
B149: 4835000000-E | C149: PAINT PVT MKG LINES 24" | F149: 1832 | G149: 3.10349345 | H149: 5685.6
B150: 4840000000-N | C150: PAINT PVT MKG CHARACTER | F150: 40 | G150: 37 | H150: 1480
B151: 4845000000-N | C151: PAINT PVT MKG SYMBOL | F151: 232 | G151: 37 | H151: 8584
B152: 4850000000-E | C152: LINE REMOVAL 4" WIDE | F152: 40062 | G152: 0.7348180321 | H152: 29438.28
B153: 4860000000-E | C153: LINE REMOVAL 8" WIDE | F153: 410 | G153: 1.65 | H153: 676.5
B154: 4865000000-E | C154: LINE REMOVAL 12" WIDE | F154: 367 | G154: 2 | H154: 734
B155: 4870000000-E | C155: LINE REMOVAL 24" WIDE | F155: 579 | G155: 5.723834197 | H155: 3314.1
B156: 4875000000-N | C156: REMOVAL OF SYMBL & CHARAC | F156: 66 | G156: 90 | H156: 5940
B157: 4890000000-E | C157: GENERIC PAVEMENT MARKING ITEM (LF) | D157: HOT SPRAY THERMOPLASTIC PAVEMENT | E157: MARKING LINES, (4", 50 MILS) | F157: 490664 | G157: 0.22 | H157: 107946.08
E158: MARKING LINES, (8", 50 MILS) | F158: 80 | G158: 1 | H158: 80
D159: HOT SPRAY THERMOPLASTIC PAVE- | E159: MENT MARKING LINES(4", 55MILS) | F159: 333895 | G159: 0.29 | H159: 96829.55
E160: MENT MARKING LINES(6", 55MILS) | F160: 1000 | G160: 0.69 | H160: 690
E161: MENT MARKING LINES, (4", 50 MILS) | F161: 58050 | G161: 0.23 | H161: 13351.5
D162: POLYUREA PAVEMENT MARKING | E162: LINES, 4", 20 MILS (STD GLASS BEADS) | F162: 3200 | G162: 2.94 | H162: 9408
B163: 4891000000-E | C163: GENERIC PVMT MARKING ITEM (LF) 1205 | D163: THERMOPLASTIC PAVEMENT MARKING | E163: LINES (16", 90 MILS) | F163: 45 | G163: 5 | H163: 225
E164: LINES (16", 90MILS) | F164: 80 | G164: 12 | H164: 960
E165: LINES (24", 90 MILS) | F165: 1230 | G165: 10.14796748 | H165: 12482
E166: LINES (24", 90MILS) | F166: 340 | G166: 15 | H166: 5100
B167: 4895000000-N | C167: GENERIC PAVEMENT MARKING ITEM (EA) | D167: NON-CAST IRON SNOWPLOWABLE | E167: PAVEMENT MARKERS | F167: 784 | G167: 38.21364796 | H167: 29959.5
B168: 4900000000-N | C168: PERM RAISED PVMT MARKERS | F168: 1020 | G168: 3.762647059 | H168: 3837.9
B169: 5325200000-E | C169: 2" WATER LINE | F169: 109 | G169: 38 | H169: 4142
B170: 5325300000-E | C170: 3" WATER LINE | F170: 6 | G170: 192 | H170: 1152
B171: 5325600000-E | C171: 6" WATER LINE | F171: 835 | G171: 37.3245509 | H171: 31166
B172: 5325800000-E | C172: 8" WATER LINE | F172: 1111 | G172: 55.56525653 | H172: 61733
B173: 5326000000-E | C173: 10" WATER LINE | F173: 8099 | G173: 61 | H173: 494039
B174: 5326200000-E | C174: 12" WATER LINE | F174: 375 | G174: 74 | H174: 27750
B175: 5326600000-E | C175: 16" WATER LINE | F175: 20 | G175: 222 | H175: 4440
B176: 5327000000-E | C176: 20" WATER LINE | F176: 712 | G176: 166 | H176: 118192
B177: 5329000000-E | C177: DI H2O PIPE FITTINGS | F177: 25295 | G177: 9.005930026 | H177: 227805
B178: 5534000000-E | C178: **" VALVE | D178: (3") | F178: 1 | G178: 1430 | H178: 1430
B179: 5536000000-E | C179: 2" VALVE | F179: 2 | G179: 761 | H179: 1522
B180: 5540000000-E | C180: 6" VALVE | F180: 21 | G180: 1477 | H180: 31017
B181: 5546000000-E | C181: 8" VALVE | F181: 4 | G181: 1689 | H181: 6756
B182: 5552000000-E | C182: 10" VALVE | F182: 20 | G182: 2390 | H182: 47800
B183: 5558000000-E | C183: 12" VALVE | F183: 2 | G183: 2861 | H183: 5722
B184: 5558600000-E | C184: 16" VALVE | F184: 1 | G184: 4406 | H184: 4406
B185: 5559000000-E | C185: 20" VALVE | F185: 2 | G185: 6451 | H185: 12902
B186: 5606000000-E | C186: 2" BLOW OFF | F186: 1 | G186: 1668 | H186: 1668
B187: 5648000000-N | C187: RELOCATE WATER METER | F187: 56 | G187: 1209 | H187: 67704
B188: 5649000000-N | C188: RECONNECT WATER METER | F188: 21 | G188: 549 | H188: 11529
B189: 5656100000-E | C189: RELC **" RPZ BACKFLOW PREVNT A | D189: (1") | F189: 17 | G189: 4244 | H189: 72148
D190: (2-1/2") | F190: 1 | G190: 6941 | H190: 6941
B191: 5656210000-E | C191: RELC 2" RPZ BACKFLOW PREVNT A | F191: 2 | G191: 4822 | H191: 9644
B192: 5666000000-N | C192: FIRE HYDRANT | F192: 12 | G192: 4713 | H192: 56556
B193: 5673000000-E | C193: FIRE HYDRANT LEG | F193: 94 | G193: 70 | H193: 6580
B194: 5685000000-E | C194: 12" LINE STOP W/ BYPASS | F194: 4 | G194: 18876 | H194: 75504
B195: 5686000000-E | C195: **" H2O SERVICE LINE | D195: (2") | F195: 371 | G195: 37 | H195: 13727
D196: (2-1/2") | F196: 27 | G196: 60 | H196: 1620
B197: 5686500000-E | C197: WATER SERVICE LINE | F197: 3807 | G197: 22 | H197: 83754
B198: 5691300000-E | C198: 8" SANITARY GRAVITY SEWER | F198: 393 | G198: 90 | H198: 35370
B199: 5691500000-E | C199: 12" SANITARY GRAVITY SEWER | F199: 125 | G199: 45 | H199: 5625
B200: 5709400000-E | C200: 8" FORCE MAIN SEWER | F200: 44 | G200: 79 | H200: 3476
... 148 more rows

Sheet ITEMS - DIV 05
B1: 2020 BID AVERAGES - DIVISION 05
B2: Item # | C2: Item Description | D2: Item Supplemental Description | E2: Item Supplemental Description 2 | F2: Item Quantity | G2: Average Unit Bid | H2: Extended Amt
B3: 0000100000-N | C3: MOBILIZATION | F3: 10 | G3: 82648.94 | H3: 826489.4
B4: 0106000000-E | C4: BORROW EXCAVATION | F4: 10556 | G4: 19.24373721 | H4: 203136.89
B5: 0163000000-E | C5: REMOVAL OF EXT CONC PVMT | F5: 207 | G5: 140.62 | H5: 29108.34
B6: 0196000000-E | C6: GEOTEXTILE SOIL STABILIZATION | F6: 207.1 | G6: 8.360019314 | H6: 1731.36
B7: 0264000000-E | C7: GENERIC GRADING ITEM (SMI) | D7: SHOULDER GRADING | F7: 283.52 | G7: 1881.06712 | H7: 533320.15
B8: 1099500000-E | C8: SHALLOW UNDERCUT | F8: 69 | G8: 41.9 | H8: 2891.1
B9: 1099700000-E | C9: CLASS IV SUBGRD STABILIZATION | F9: 131 | G9: 49.38 | H9: 6468.78
B10: 1220000000-E | C10: INCIDENTAL STONE BASE | F10: 7866 | G10: 43.97925629 | H10: 345940.83
B11: 1260000000-E | C11: AGGREGATE SHOULDER BORROW | F11: 6055 | G11: 14.53665566 | H11: 88019.45
B12: 1297000000-E | C12: MILL ASP PVMT *****" DTH | D12: (1-1/2") | F12: 1732272 | G12: 1.072168274 | H12: 1857287.08
D13: (1-1/4") | F13: 1457 | G13: 6.74 | H13: 9820.18
D14: (2") | F14: 1705 | G14: 2.2 | H14: 3751
D15: (3") | F15: 68310 | G15: 1.389862831 | H15: 94941.53
B16: 1308000000-E | C16: MILLN ASPHALT PVMT ***** - ***** | D16: (0" TO 1") | F16: 2710 | G16: 1.1 | H16: 2981
D17: (0" TO 1-1/2") | F17: 6783 | G17: 3.16047619 | H17: 21437.51
D18: (0" TO 1-1/4") | F18: 20598 | G18: 3.790293718 | H18: 78072.47
D19: (1-1/2" TO 2") | F19: 1781 | G19: 2.2 | H19: 3918.2
B20: 1330000000-E | C20: INCIDENTAL MILLING | F20: 134047 | G20: 4.619765232 | H20: 619265.67
B21: 1491000000-E | C21: ASP CONC BASE CRS B25.0C | F21: 125 | G21: 111.25 | H21: 13906.25
B22: 1503000000-E | C22: ASP CONC INTR CRS I19.0C | F22: 570 | G22: 34.95 | H22: 19921.5
B23: 1519000000-E | C23: ASP CONC SURF CRS S9.5B | F23: 206579 | G23: 33.34516335 | H23: 6888410.5
B24: 1523000000-E | C24: ASP CONC SURF CRS S9.5C | F24: 71423 | G24: 30.2846191 | H24: 2163018.35
B25: 1524200000-E | C25: ASP CONC SURF CRS S9.5D | F25: 47778 | G25: 32 | H25: 1528896
B26: 1575000000-E | C26: ASP FOR PLANT MIX | F26: 18167 | G26: 382.9492486 | H26: 6957039
B27: 1577000000-E | C27: POLYM MOD ASP BNDR FOR PLT MIX | F27: 2723 | G27: 600 | H27: 1633800
B28: 1704000000-E | C28: PATCHING EXIST PAVEMENT | F28: 38750 | G28: 89.89652723 | H28: 3483490.43
B29: 1840000000-E | C29: MILLED RUMBLE STRIPS | F29: 64297 | G29: 0.25 | H29: 16074.25
B30: 2549000000-E | C30: 2'-6" CONC CURB & GUTTER | F30: 2005 | G30: 29.5286783 | H30: 59205
B31: 2591000000-E | C31: 4" CONCRETE SIDEWALK | F31: 614 | G31: 53.05374593 | H31: 32575
B32: 2600000000-N | C32: RETROFIT EXT CURB RAMPS | F32: 330 | G32: 489.0909091 | H32: 161400
B33: 2605000000-N | C33: CONCRETE CURB RAMPS | F33: 31 | G33: 1771.774194 | H33: 54925
B34: 2613000000-N | C34: REM & REP CURB RAMPS | F34: 242 | G34: 2195.227273 | H34: 531245
B35: 2738000000-E | C35: GENERIC PAVING ITEM (SY) | D35: REMOVE AND REPLACE 5" | E35: MONOLITHIC CONCRETE ISLANDS (KEYED IN) | F35: 5 | G35: 286 | H35: 1430
D36: REMOVE AND REPLACE DRIVEWAY | E36: APRON | F36: 42 | G36: 200 | H36: 8400
B37: 2752000000-E | C37: GENERIC PAVING ITEM (LF) | D37: REMOVE & REPLACE 2'-6" CURB & GUTTER | F37: 30 | G37: 70 | H37: 2100
D38: REMOVE AND REPLACE 2'-7" | E38: VALLEY GUTTER | F38: 150 | G38: 54 | H38: 8100
B39: 2759000000-N | C39: GENERIC PAVING ITEM (EA) | D39: REMOVE CURB RAMP | F39: 88 | G39: 847.8409091 | H39: 74610
D40: REMOVE CURB RAMPS | F40: 41 | G40: 750 | H40: 30750
B41: 2830000000-N | C41: ADJ MANHOLES | F41: 117 | G41: 632.4786325 | H41: 74000
B42: 2845000000-N | C42: ADJ METER OR VALVE BOXES | F42: 133 | G42: 512.1428571 | H42: 68115
B43: 4116100000-N | C43: SIGN ERECT, RELOC ** GRD MTD | D43: (E) | F43: 1 | G43: 135 | H43: 135
D44: (TYPE E) | F44: 1 | G44: 135 | H44: 135
B45: 4413000000-E | C45: WORK ZONE ADV/GEN WARN SIGN | F45: 23828 | G45: 5.291344217 | H45: 126082.15
B46: 4447000000-E | C46: PED CHANNEL DEVICES | F46: 712 | G46: 25.12359551 | H46: 17888
B47: 4457000000-N | C47: TEMP TRAFFIC CONTROL (SP) | F47: 10 | G47: 84224.1 | H47: 842241
B48: 4510000000-N | C48: LAW ENFORCEMENT | F48: 2640 | G48: 46.59090909 | H48: 123000
B49: 4589000000-N | C49: GENERIC TRAFFIC CONTROL ITEM (LS) | D49: INSTALL DEPT FURNISHED MARKING | E49: AT GREEN LEVEL WEST NB EXIT LOOP | F49: 1 | G49: 1750 | H49: 1750
E50: AT GREEN LEVEL WEST SB EXIT RAMP | F50: 1 | G50: 1750 | H50: 1750
E51: AT NC 54 NB EXIT LOOP | F51: 1 | G51: 1750 | H51: 1750
E52: AT NC-55 BYPASS SB EXIT RAMP | F52: 1 | G52: 1000 | H52: 1000
E53: AT S SALEM ST NB EXIT LOOP | F53: 1 | G53: 1750 | H53: 1750
E54: AT VERIDEA PARKWAY NB EXIT RAMP | F54: 1 | G54: 2500 | H54: 2500
E55: AT VERIDEA PARKWAY SB EXIT LOOP | F55: 1 | G55: 2500 | H55: 2500
B56: 4600000000-N | C56: GENERIC TRAFFIC CONTROL ITEM (EA) | D56: AUDIBLE WARNING DEVICES | F56: 42 | G56: 200 | H56: 8400
D57: PEDESTRIAN TRANSPORT SERVICE | E57: (PER TRIP) | F57: 45 | G57: 65 | H57: 2925
D58: PEDESTRIAN TRANSPORT SERVICE (PER TRIP) | F58: 75 | G58: 125 | H58: 9375
B59: 4685000000-E | C59: THERMO PVT MKG LINES 4"90 | F59: 2840913 | G59: 0.5186930399 | H59: 1473561.8
B60: 4695000000-E | C60: THERMO PVT MKG LINES 8"90 MILS | F60: 47285 | G60: 1.727075182 | H60: 81664.75
B61: 4700000000-E | C61: 12"WIDE THERMO 90 MILS | F61: 8310 | G61: 2.853850782 | H61: 23715.5
B62: 4720000000-E | C62: THERMO PVT MKG CHARACTER 90 | F62: 434 | G62: 89.10138249 | H62: 38670
B63: 4725000000-E | C63: THERMO PVT SYMBOL 90MILS | F63: 1865 | G63: 110.1689008 | H63: 205465
B64: 4770000000-E | C64: 4" COLD APPL PLSTIC LINES TYPE ** | D64: (II) | F64: 13075 | G64: 1.989330784 | H64: 26010.5
B65: 4780000000-E | C65: 8" COLD APPL PLSTIC LINES TYPE ** | D65: (II) | F65: 535 | G65: 3.242990654 | H65: 1735
B66: 4785000000-E | C66: 12" COLD PLSTIC LINES TYPE ** | D66: (II) | F66: 180 | G66: 6 | H66: 1080
B67: 4800000000-N | C67: COLD APP PLAS CHAR TYPE * | D67: (II) | F67: 4 | G67: 95 | H67: 380
B68: 4805000000-N | C68: COLD APPL PLASTIC SYM TYPE ** | D68: (II) | F68: 13 | G68: 186.1538462 | H68: 2420
B69: 4810000000-E | C69: PAINT PVMT MARKINGS 4" | F69: 707781 | G69: 0.1199787787 | H69: 84918.7
B70: 4820000000-E | C70: PAINT PVMT MARKINGS 8" | F70: 33526 | G70: 0.4023683112 | H70: 13489.8
B71: 4825000000-E | C71: PAINT PVMT MARKINGS 12" | F71: 2430 | G71: 0.4941358025 | H71: 1200.75
B72: 4830000000-E | C72: PAINT PVT MKGS LINES 16" | F72: 250 | G72: 1.7 | H72: 425
B73: 4835000000-E | C73: PAINT PVT MKG LINES 24" | F73: 14292 | G73: 1.977959698 | H73: 28269
B74: 4840000000-N | C74: PAINT PVT MKG CHARACTER | F74: 176 | G74: 20.05681818 | H74: 3530
B75: 4845000000-N | C75: PAINT PVT MKG SYMBOL | F75: 1217 | G75: 20.52999178 | H75: 24985
B76: 4850000000-E | C76: LINE REMOVAL 4" WIDE | F76: 12840 | G76: 0.6741199377 | H76: 8655.7
B77: 4860000000-E | C77: LINE REMOVAL 8" WIDE | F77: 535 | G77: 1 | H77: 535
B78: 4870000000-E | C78: LINE REMOVAL 24" WIDE | F78: 45 | G78: 5 | H78: 225
B79: 4875000000-N | C79: REMOVAL OF SYMBL & CHARAC | F79: 5 | G79: 35 | H79: 175
B80: 4891000000-E | C80: GENERIC PVMT MARKING ITEM (LF) 1205 | D80: 16" THERMOPLASTIC PAVEMENT | E80: MARKING LINES (90 MILS) | F80: 100 | G80: 8 | H80: 800
D81: 24" THERMOPLASTIC PAVEMENT | E81: MARKING LINES (90 MILS) | F81: 2624 | G81: 8 | H81: 20992
D82: THERMOPLASTIC PAVEMENT MARKING | E82: LINES (16", 90 MILS) | F82: 350 | G82: 10 | H82: 3500
E83: LINES (16", 90 MILS) | F83: 250 | G83: 8 | H83: 2000
E84: LINES (24", 90 MILS) | F84: 3226 | G84: 10 | H84: 32260
E85: LINES (24", 90 MILS) | F85: 6619 | G85: 8.742332679 | H85: 57865.5
E86: LINES (24", 90MILS) | F86: 5824 | G86: 8 | H86: 46592
B87: 4895000000-N | C87: GENERIC PAVEMENT MARKING ITEM (EA) | D87: NON-CAST IRON SNOWPLOWABLE | E87: PAVEMENT MARKER | F87: 350 | G87: 30 | H87: 10500
E88: PAVEMENT MARKERS | F88: 4394 | G88: 30 | H88: 131820
B89: 5255000000-N | C89: PORTABLE LIGHTING | F89: 2 | G89: 25106.25 | H89: 50212.5
B90: 6000000000-E | C90: TEMPORARY SILT FENCE | F90: 15184 | G90: 2.329639752 | H90: 35373.25
B91: 6071010000-E | C91: WATTLE | F91: 39037 | G91: 6.094538515 | H91: 237912.5
B92: 6084000000-E | C92: SEEDING AND MULCHING | F92: 208.5 | G92: 1614.785372 | H92: 336682.75
B93: 6117000000-N | C93: RESPONSE FOR EROS CONTROL | F93: 50 | G93: 274.5 | H93: 13725
B94: 7444000000-E | C94: INDUCTIVE LOOP SAWCUT | F94: 61371 | G94: 6.200233172 | H94: 380514.51

Sheet ITEMS - DIV 06
B1: 2020 BID AVERAGES - DIVISION 06
B2: Item # | C2: Item Description | D2: Item Supplemental Description | E2: Item Supplemental Description 2 | F2: Item Quantity | G2: Average Unit Bid | H2: Extended Amt
B3: 0000100000-N | C3: MOBILIZATION | F3: 1 | G3: 1166600 | H3: 1166600
B4: 0000400000-N | C4: CONSTRUCTION SURVEYING | F4: 1 | G4: 75000 | H4: 75000
B5: 0028000000-N | C5: TYPE I STANDARD APPR ********** | D5: (118+81.78-L-) | F5: 1 | G5: 59850 | H5: 59850
B6: 0043000000-N | C6: GRADING | F6: 1 | G6: 664000 | H6: 664000
B7: 0050000000-E | C7: SUPP CLEARING & GRUBBING | F7: 1 | G7: 1 | H7: 1
B8: 0057000000-E | C8: UNDERCUT EXCAVATION | F8: 200 | G8: 22 | H8: 4400
B9: 0134000000-E | C9: DRAINAGE DITCH EXCAVATION | F9: 135 | G9: 8.27 | H9: 1116.45
B10: 0196000000-E | C10: GEOTEXTILE SOIL STABILIZATION | F10: 800 | G10: 1 | H10: 800
B11: 0199000000-E | C11: TEMPORARY SHORING | F11: 2630 | G11: 86.16 | H11: 226600.8
B12: 0223000000-E | C12: ROCK PLATING | F12: 2950 | G12: 34 | H12: 100300
B13: 0314000000-E | C13: SELECT MATERIAL CLASS ** | D13: (VII) | F13: 400 | G13: 80.46 | H13: 32184
B14: 0318000000-E | C14: FND CONDIT MATL MINOR STRS | F14: 170 | G14: 25 | H14: 4250
B15: 0320000000-E | C15: FND CONDIT GEOTEXTILE | F15: 540 | G15: 1 | H15: 540
B16: 0343000000-E | C16: 15" SIDE DRAIN PIPE | F16: 228 | G16: 45 | H16: 10260
B17: 0348000000-E | C17: **" SIDE DRAIN PIPE ELBOW | D17: (15") | F17: 10 | G17: 120 | H17: 1200
B18: 0448200000-E | C18: 15" RCP CULV CLASS IV | F18: 1372 | G18: 52 | H18: 71344
B19: 0995000000-E | C19: PIPE REMOVAL | F19: 1102 | G19: 12 | H19: 13224
B20: 1077000000-E | C20: 57 STONE | F20: 350 | G20: 38 | H20: 13300
B21: 1099500000-E | C21: SHALLOW UNDERCUT | F21: 200 | G21: 16 | H21: 3200
B22: 1099700000-E | C22: CLASS IV SUBGRD STABILIZATION | F22: 400 | G22: 29 | H22: 11600
B23: 1121000000-E | C23: AGGREGATE BASE COURSE | F23: 620 | G23: 32 | H23: 19840
B24: 1220000000-E | C24: INCIDENTAL STONE BASE | F24: 2600 | G24: 26 | H24: 67600
B25: 1275000000-E | C25: PRIME COAT | F25: 439 | G25: 10 | H25: 4390
B26: 1297000000-E | C26: MILL ASP PVMT *****" DTH | D26: (1-1/2") | F26: 3550 | G26: 5 | H26: 17750
B27: 1330000000-E | C27: INCIDENTAL MILLING | F27: 1810 | G27: 10.5 | H27: 19005
B28: 1491000000-E | C28: ASP CONC BASE CRS B25.0C | F28: 1410 | G28: 69.95 | H28: 98629.5
B29: 1503000000-E | C29: ASP CONC INTR CRS I19.0C | F29: 2640 | G29: 60 | H29: 158400
B30: 1523000000-E | C30: ASP CONC SURF CRS S9.5C | F30: 2440 | G30: 63 | H30: 153720
B31: 1575000000-E | C31: ASP FOR PLANT MIX | F31: 340 | G31: 450 | H31: 153000
B32: 1693000000-E | C32: ASPH PLT MIX PVMT REPAIR | F32: 130 | G32: 1 | H32: 130
B33: 2022000000-E | C33: SUBDRAIN EXCAVATION | F33: 222 | G33: 12 | H33: 2664
B34: 2026000000-E | C34: GEOTEXTILE FOR SUBSURF DRNS | F34: 890 | G34: 1.48 | H34: 1317.2
B35: 2044000000-E | C35: 6" PERF SUBDRN PIPE | F35: 500 | G35: 8 | H35: 4000
B36: 2070000000-N | C36: SUBDRN PIPE OUTLET | F36: 4 | G36: 150 | H36: 600
B37: 2077000000-E | C37: 6" OUTLET PIPE | F37: 100 | G37: 8 | H37: 800
B38: 2264000000-E | C38: PIPE PLUGS | F38: 0.913 | G38: 890 | H38: 812.57
B39: 2275000000-E | C39: FLOWABLE FILL | F39: 28 | G39: 215 | H39: 6020
B40: 2286000000-N | C40: MASNRY DRAINAGE STRUCT | F40: 20 | G40: 1650 | H40: 33000
B41: 2308000000-E | C41: MASNRY DRAINAGE STRUCT | F41: 11.2 | G41: 240 | H41: 2688
B42: 2365000000-N | C42: FRAME W/2GRTS 840.22 STD | F42: 2 | G42: 340 | H42: 680
B43: 2366000000-N | C43: FRAME W/2GRTS 840.24 STD | F43: 1 | G43: 356 | H43: 356
B44: 2367000000-N | C44: FRAME W/2GRTS 840.29 STD | F44: 14 | G44: 360 | H44: 5040
B45: 2374000000-N | C45: FRAME-GRT-HD 840.03 ** | D45: (E) | F45: 1 | G45: 456 | H45: 456
D46: (F) | F46: 1 | G46: 456 | H46: 456
B47: 2396000000-N | C47: FRAME W/COVER STD 840.54 | F47: 2 | G47: 297 | H47: 594
B48: 2451000000-N | C48: CONC TRANS SECT FOR DROP INLET | F48: 4 | G48: 1585 | H48: 6340
B49: 2542000000-E | C49: 1'-6" CONC CURB & GUTTER | F49: 110 | G49: 45.5 | H49: 5005
B50: 2549000000-E | C50: 2'-6" CONC CURB & GUTTER | F50: 520 | G50: 31.85 | H50: 16562
B51: 2556000000-E | C51: SHOULDER BERM GUTTER | F51: 1400 | G51: 28.65 | H51: 40110
B52: 2570000000-N | C52: MODIFIED CONCRETE FLUME | F52: 1 | G52: 1900 | H52: 1900
B53: 2647000000-E | C53: 5" MONO CONC ISLANDS (SURF MTD) | F53: 2180 | G53: 67.5 | H53: 147150
B54: 2655000000-E | C54: 5" MONO CONC ISLDS (KEY IN) | F54: 170 | G54: 71.15 | H54: 12095.5
B55: 2800000000-N | C55: ADJ CATCH BASINS | F55: 1 | G55: 950 | H55: 950
B56: 2815000000-N | C56: ADJ DROP INLETS | F56: 1 | G56: 950 | H56: 950
B57: 2850000000-N | C57: GENERIC DRAINAGE ITEM (858) | D57: ADJUSTMENT OF JUNCTION BOXES | F57: 1 | G57: 1025 | H57: 1025
B58: 2860000000-N | C58: CONVERT CB TO JB | F58: 1 | G58: 1740 | H58: 1740
B59: 3030000000-E | C59: STL BEAM GUARDRAIL | F59: 2112.5 | G59: 14 | H59: 29575
B60: 3150000000-N | C60: ADDIT GUARDRAIL POSTS | F60: 20 | G60: 1 | H60: 20
B61: 3210000000-N | C61: GR END TYPE CAT-1 | F61: 3 | G61: 500 | H61: 1500
B62: 3215000000-N | C62: GR ANCHOR TYPE III | F62: 4 | G62: 1400 | H62: 5600
B63: 3287000000-N | C63: GR END TYPE TL-3 | F63: 3 | G63: 2900 | H63: 8700
B64: 3360000000-E | C64: REMOVE EXISTING GUARDRAIL | F64: 3120 | G64: 0.01 | H64: 31.2
B65: 3595000000-E | C65: RELAPPING GUARDRAIL | F65: 200 | G65: 4.5 | H65: 900
B66: 3628000000-E | C66: RIP RAP, CLASS I | F66: 140 | G66: 48 | H66: 6720
B67: 3642000000-E | C67: RIP RAP, CLASS A | F67: 1500 | G67: 35 | H67: 52500
B68: 3649000000-E | C68: RIP RAP, CLASS B | F68: 633 | G68: 44.5 | H68: 28168.5
B69: 3656000000-E | C69: GEOTEXTILE FOR DRAINGE | F69: 10483 | G69: 1.3 | H69: 13627.9
B70: 4072000000-E | C70: SUPPORT, 3-LB STL U-CHAN | F70: 232 | G70: 7 | H70: 1624
B71: 4102000000-N | C71: SIGN ERECTION, TYPE E | F71: 8 | G71: 65 | H71: 520
B72: 4116100000-N | C72: SIGN ERECT, RELOC ** GRD MTD | D72: (D) | F72: 6 | G72: 65 | H72: 390
B73: 4155000000-N | C73: DISPOSE SIGN SYST U-CHAN | F73: 10 | G73: 3 | H73: 30
B74: 4192000000-N | C74: DISPOSE SUPPORT, U-CHAN | F74: 12 | G74: 3 | H74: 36
B75: 4400000000-E | C75: WORK ZONE SIGNS (STAT) | F75: 164 | G75: 8 | H75: 1312
B76: 4405000000-E | C76: WORK ZONE SIGNS (PORT) | F76: 304 | G76: 15 | H76: 4560
B77: 4410000000-E | C77: WORK ZONE SIGNS (BARR) | F77: 46 | G77: 7 | H77: 322
B78: 4415000000-N | C78: FLASHING ARROW BOARD | F78: 1 | G78: 1500 | H78: 1500
B79: 4420000000-N | C79: PORTABLE CHANGE MSG SIGN | F79: 2 | G79: 7000 | H79: 14000
B80: 4430000000-N | C80: DRUMS | F80: 180 | G80: 65 | H80: 11700
B81: 4445000000-E | C81: BARRICADES (TYPE III) | F81: 90 | G81: 18 | H81: 1620
B82: 4455000000-N | C82: FLAGGER | F82: 80 | G82: 350 | H82: 28000
B83: 4465000000-N | C83: TEMPORARY CRASH CUSHIONS | F83: 1 | G83: 9250 | H83: 9250
B84: 4480000000-N | C84: TMA | F84: 2 | G84: 1 | H84: 2
B85: 4485000000-E | C85: PORT CONC BARRIER | F85: 1500 | G85: 35 | H85: 52500
B86: 4510000000-N | C86: LAW ENFORCEMENT | F86: 40 | G86: 50 | H86: 2000
B87: 4650000000-N | C87: TEMP RAISED PVMT MRKS | F87: 123 | G87: 10 | H87: 1230
B88: 4685000000-E | C88: THERMO PVT MKG LINES 4"90 | F88: 6360 | G88: 1.75 | H88: 11130
B89: 4695000000-E | C89: THERMO PVT MKG LINES 8"90 MILS | F89: 409 | G89: 2.5 | H89: 1022.5
B90: 4720000000-E | C90: THERMO PVT MKG CHARACTER 90 | F90: 50 | G90: 110 | H90: 5500
B91: 4725000000-E | C91: THERMO PVT SYMBOL 90MILS | F91: 8 | G91: 135 | H91: 1080
B92: 4770000000-E | C92: 4" COLD APPL PLSTIC LINES TYPE ** | D92: (IV) | F92: 8125 | G92: 2 | H92: 16250
B93: 4810000000-E | C93: PAINT PVMT MARKINGS 4" | F93: 6332 | G93: 1 | H93: 6332
B94: 4845000000-N | C94: PAINT PVT MKG SYMBOL | F94: 12 | G94: 35 | H94: 420
B95: 4847010000-E | C95: POLYUREA LINES (4", 20 MILS) | F95: 5698 | G95: 3.45 | H95: 19658.1
B96: 4850000000-E | C96: LINE REMOVAL 4" WIDE | F96: 5000 | G96: 0.6 | H96: 3000
B97: 4875000000-N | C97: REMOVAL OF SYMBL & CHARAC | F97: 4 | G97: 50 | H97: 200
B98: 4880000000-E | C98: CURING COMP REMOVAL LINES | F98: 7500 | G98: 1.25 | H98: 9375
B99: 4900000000-N | C99: PERM RAISED PVMT MARKERS | F99: 70 | G99: 10 | H99: 700
B100: 6000000000-E | C100: TEMPORARY SILT FENCE | F100: 17355 | G100: 1.65 | H100: 28635.75
B101: 6006000000-E | C101: EROS CONTRL STONE CL A | F101: 600 | G101: 1 | H101: 600
B102: 6009000000-E | C102: EROS CONTRL STONE CL B | F102: 660 | G102: 1 | H102: 660
B103: 6012000000-E | C103: SEDIMENT CONTROL STONE | F103: 3555 | G103: 1 | H103: 3555
B104: 6015000000-E | C104: TEMPORARY MULCHING | F104: 16 | G104: 750 | H104: 12000
B105: 6018000000-E | C105: SEED FOR TEMP SEEDING | F105: 500 | G105: 2.75 | H105: 1375
B106: 6021000000-E | C106: FERT FOR TEMP SEEDING | F106: 2.5 | G106: 1300 | H106: 3250
B107: 6024000000-E | C107: TEMPORARY SLOPE DRAINS | F107: 945 | G107: 8 | H107: 7560
B108: 6029000000-E | C108: SAFETY FENCE | F108: 3840 | G108: 1.25 | H108: 4800
B109: 6030000000-E | C109: SILT EXCAVATION | F109: 740 | G109: 2.3 | H109: 1702
B110: 6036000000-E | C110: MATTING FOR EROS CONTROL | F110: 17765 | G110: 1.35 | H110: 23982.75
B111: 6037000000-E | C111: COIR FIBER MAT | F111: 100 | G111: 5 | H111: 500
B112: 6038000000-E | C112: PERM SOIL REINF MAT | F112: 400 | G112: 7.5 | H112: 3000
B113: 6042000000-E | C113: 1/4" HARDWARE CLOTH | F113: 2345 | G113: 4.25 | H113: 9966.25
B114: 6046000000-E | C114: TEMP PIPE FOR STREAM CROSS | F114: 25 | G114: 5 | H114: 125
B115: 6048000000-E | C115: FLOAT TURBIDITY CURTAIN | F115: 810 | G115: 15 | H115: 12150
B116: 6070000000-N | C116: SPECIAL STILLING BASINS | F116: 56 | G116: 1 | H116: 56
B117: 6071012000-E | C117: COIR FIBER WATTLE | F117: 1500 | G117: 8 | H117: 12000
B118: 6071020000-E | C118: POLYACRYLAMIDE (PAM) | F118: 820 | G118: 0.01 | H118: 8.2
B119: 6084000000-E | C119: SEEDING AND MULCHING | F119: 9 | G119: 1975 | H119: 17775
B120: 6087000000-E | C120: MOWING | F120: 12 | G120: 125 | H120: 1500
B121: 6090000000-E | C121: SEED FOR REPAIR SEEDING | F121: 200 | G121: 12 | H121: 2400
B122: 6093000000-E | C122: FERT FOR REPAIR SEEDING | F122: 0.25 | G122: 1300 | H122: 325
B123: 6096000000-E | C123: SEED FOR SUPP SEEDING | F123: 175 | G123: 12 | H123: 2100
B124: 6108000000-E | C124: FERTILIZER TOPDRESSING | F124: 5 | G124: 1200 | H124: 6000
B125: 6114500000-N | C125: SPECIALIZED HAND MOWING | F125: 10 | G125: 90 | H125: 900
B126: 6117000000-N | C126: RESPONSE FOR EROS CONTROL | F126: 200 | G126: 1 | H126: 200
B127: 6117500000-N | C127: CONC WASHOUT STRUCTURE | F127: 2 | G127: 1450 | H127: 2900
B128: 6132000000-N | C128: GENERIC EROSION CONTROL ITEM (EA) | D128: FABRIC INSERT INLET PROTECTION | E128: DEVICE | F128: 17 | G128: 203 | H128: 3451
E129: DEVICE CLEANOUT | F129: 51 | G129: 62 | H129: 3162
B130: 8017000000-N | C130: CM&R TEMP ACCESS *********** | D130: (118+81.78-L-) | F130: 1 | G130: 1539000 | H130: 1539000
B131: 8035000000-N | C131: REMV EXIST STR ********** | D131: (118+81.78-L-) | F131: 1 | G131: 1731004.8 | H131: 1731004.8
B132: 8065000000-N | C132: ASBESTOS ASSESSMENT | F132: 1 | G132: 2500 | H132: 2500
B133: 8105500000-E | C133: **'-**" DRILLD PIER IN SOIL | D133: (6'-0") | F133: 3954.1 | G133: 609.1 | H133: 2408442.31
B134: 8111000000-E | C134: PERM STL CASING FOR ** PIER | D134: (6'-0") | F134: 1078.7 | G134: 1029.329999 | H134: 1110338.27
B135: 8112730000-N | C135: PDA TESTING | F135: 4 | G135: 3100 | H135: 12400
B136: 8113000000-N | C136: SID INSPECTIONS | F136: 15 | G136: 1600 | H136: 24000
B137: 8115000000-N | C137: CSL TESTING | F137: 29 | G137: 1725 | H137: 50025
B138: 8121000000-N | C138: UNCL STR EXCAV STA ***** | D138: (118+81.78-L-) | F138: 1 | G138: 235000 | H138: 235000
B139: 8147000000-E | C139: REINF CONCRETE DECK SLAB | F139: 88407 | G139: 33.27 | H139: 2941300.89
B140: 8161000000-E | C140: GROOVING BRIDGE FLOORS | F140: 84490 | G140: 0.51 | H140: 43089.9
B141: 8182000000-E | C141: CLASS A CONCRETE (BRIDGE) | F141: 1960 | G141: 606.92 | H141: 1189563.2
B142: 8210000000-N | C142: BRG APPR SLAB *********** | D142: (118+81.78-L-) | F142: 1 | G142: 91825 | H142: 91825
B143: 8217000000-E | C143: REINF STEEL (BRIDGE) | F143: 1018912 | G143: 1.09 | H143: 1110614.08
B144: 8238000000-E | C144: SPIRAL COL REINF STL BRG | F144: 208330 | G144: 2.11 | H144: 439576.3
B145: 8328200000-E | C145: PILE DRV EQUIP SETUP ** STEEL PILES | D145: (HP14X73) | F145: 38 | G145: 1272.1 | H145: 48339.8
B146: 8384000000-E | C146: HP14X73 PILES | F146: 3990 | G146: 36.98 | H146: 147550.2
B147: 8393000000-N | C147: PILE REDRIVES | F147: 16 | G147: 415 | H147: 6640
B148: 8475000000-E | C148: TWO BAR METAL RAIL | F148: 2422.04 | G148: 104.2599998 | H148: 252521.89
B149: 8517000000-E | C149: 1'-**"X*****"CONC PARAPET | D149: (1'-2" X 2'-6") | F149: 2445.38 | G149: 122.2100001 | H149: 298849.89
B150: 8608000000-E | C150: RIP RAP II (2'-0") | F150: 4832 | G150: 45.31 | H150: 218937.92
B151: 8622000000-E | C151: GEOTEXTILE FOR DRAINAGE | F151: 5370 | G151: 3.25 | H151: 17452.5
B152: 8657000000-N | C152: ELASTOMERIC BEARINGS | F152: 1 | G152: 36550 | H152: 36550
B153: 8860000000-N | C153: GENERIC STRUCTURE ITEM (LS) | D153: AXIAL BI-DIRECTIONAL STATIC | E153: LOAD TEST | F153: 1 | G153: 610425 | H153: 610425
D154: STEEL SHEET PILING FOR SLOPE | E154: REINFORCEMENT | F154: 1 | G154: 136150 | H154: 136150
D155: STRIP SEAL EXPANSION JOINTS | F155: 1 | G155: 141200 | H155: 141200
B156: 8867000000-E | C156: GENERIC STRUCTURE ITEM (LF) | D156: 78" FLORIDA I-BEAM (FIB) GIRDERS | F156: 10855.5 | G156: 416.8900005 | H156: 4525549.4

Sheet ITEMS - DIV 07
B1: 2020 BID AVERAGES - DIVISION 07
B2: Item # | C2: Item Description | D2: Item Supplemental Description | E2: Item Supplemental Description 2 | F2: Item Quantity | G2: Average Unit Bid | H2: Extended Amt
B3: 0000100000-N | C3: MOBILIZATION | F3: 3 | G3: 241333.3333 | H3: 724000
B4: 0000400000-N | C4: CONSTRUCTION SURVEYING | F4: 1 | G4: 180000 | H4: 180000
B5: 0036000000-E | C5: UNDERCUT EXCAVATION | F5: 2000 | G5: 7.5 | H5: 15000
B6: 0043000000-N | C6: GRADING | F6: 1 | G6: 1553000 | H6: 1553000
B7: 0050000000-E | C7: SUPP CLEARING & GRUBBING | F7: 1 | G7: 3000 | H7: 3000
B8: 0106000000-E | C8: BORROW EXCAVATION | F8: 10 | G8: 31 | H8: 310
B9: 0134000000-E | C9: DRAINAGE DITCH EXCAVATION | F9: 70 | G9: 20 | H9: 1400
B10: 0195000000-E | C10: SELECT GRANULAR MATERIAL | F10: 2000 | G10: 29 | H10: 58000
B11: 0196000000-E | C11: GEOTEXTILE SOIL STABILIZATION | F11: 12650 | G11: 2 | H11: 25300
B12: 0199000000-E | C12: TEMPORARY SHORING | F12: 1195 | G12: 50 | H12: 59750
B13: 0318000000-E | C13: FND CONDIT MATL MINOR STRS | F13: 1416 | G13: 29.75 | H13: 42126
B14: 0320000000-E | C14: FND CONDIT GEOTEXTILE | F14: 5042 | G14: 3.75 | H14: 18907.5
B15: 0335200000-E | C15: 15" DRAINAGE PIPE | F15: 520 | G15: 83.79 | H15: 43570.8
B16: 0335300000-E | C16: 18" DRAINAGE PIPE | F16: 280 | G16: 87.33 | H16: 24452.4
B17: 0335850000-E | C17: **" DRAINAGE PIPE ELBOW | D17: (15") | F17: 10 | G17: 599.97 | H17: 5999.7
B18: 0366000000-E | C18: 15" RC PIPE CULV III | F18: 92 | G18: 87.5 | H18: 8050
B19: 0372000000-E | C19: 18" RC PIPE CULV III | F19: 20 | G19: 87.23 | H19: 1744.6
B20: 0378000000-E | C20: 24" RC PIPE CULV III | F20: 328 | G20: 113.14 | H20: 37109.92
B21: 0384000000-E | C21: 30" RC PIPE CULV III | F21: 28 | G21: 168.16 | H21: 4708.48
B22: 0390000000-E | C22: 36" RC PIPE CULV III | F22: 12 | G22: 145.31 | H22: 1743.72
B23: 0448200000-E | C23: 15" RCP CULV CLASS IV | F23: 7484 | G23: 61.25 | H23: 458395
B24: 0448300000-E | C24: 18" RCP CULV CLASS IV | F24: 1672 | G24: 78.86 | H24: 131853.92
B25: 0448400000-E | C25: 24" RCP CULV CLASS IV | F25: 216 | G25: 115.58 | H25: 24965.28
B26: 0448500000-E | C26: 30" RCP CULV CLASS IV | F26: 904 | G26: 116.19 | H26: 105035.76
B27: 0576000000-E | C27: **" CS PIPE CULV *****" | D27: (36", 0.079") | F27: 28 | G27: 123.62 | H27: 3461.36
B28: 0636000000-E | C28: **" CS ELBOW *****" THICK | D28: (36", 0.079") | F28: 2 | G28: 1098.23 | H28: 2196.46
B29: 0995000000-E | C29: PIPE REMOVAL | F29: 2242 | G29: 20.37 | H29: 45669.54
B30: 1099500000-E | C30: SHALLOW UNDERCUT | F30: 3150 | G30: 12.5 | H30: 39375
B31: 1099700000-E | C31: CLASS IV SUBGRD STABILIZATION | F31: 6800 | G31: 26 | H31: 176800
B32: 1121000000-E | C32: AGGREGATE BASE COURSE | F32: 484 | G32: 33 | H32: 15972
B33: 1220000000-E | C33: INCIDENTAL STONE BASE | F33: 1296 | G33: 45.15740741 | H33: 58524
B34: 1245000000-E | C34: SHOULDER RECONSTRUCTION | F34: 0.09 | G34: 20000 | H34: 1800
B35: 1275000000-E | C35: PRIME COAT | F35: 180 | G35: 4 | H35: 720
B36: 1297000000-E | C36: MILL ASP PVMT *****" DTH | D36: (1-1/2") | F36: 179443 | G36: 1.399884364 | H36: 251199.45
D37: (2-1/8") | F37: 176996 | G37: 1.6 | H37: 283193.6
D38: (2-5/8") | F38: 172067 | G38: 1.9 | H38: 326927.3
B39: 1308000000-E | C39: MILLN ASPHALT PVMT ***** - ***** | D39: (0" TO 1-1/2") | F39: 1210 | G39: 11.5 | H39: 13915
B40: 1330000000-E | C40: INCIDENTAL MILLING | F40: 1650 | G40: 7 | H40: 11550
B41: 1491000000-E | C41: ASP CONC BASE CRS B25.0C | F41: 18817 | G41: 44.10235425 | H41: 829874
B42: 1503000000-E | C42: ASP CONC INTR CRS I19.0C | F42: 12360 | G42: 46 | H42: 568560
B43: 1519000000-E | C43: ASP CONC SURF CRS S9.5B | F43: 11620 | G43: 50 | H43: 581000
B44: 1523000000-E | C44: ASP CONC SURF CRS S9.5C | F44: 30112 | G44: 42.80672157 | H44: 1288996
B45: 1524200000-E | C45: ASP CONC SURF CRS S9.5D | F45: 19365 | G45: 55 | H45: 1065075
B46: 1575000000-E | C46: ASP FOR PLANT MIX | F46: 4045 | G46: 455.4697157 | H46: 1842375
B47: 1577000000-E | C47: POLYM MOD ASP BNDR FOR PLT MIX | F47: 2099 | G47: 515 | H47: 1080985
B48: 1662000000-E | C48: OG ASP FRICT FC-1 MOD | F48: 16224 | G48: 70.14718935 | H48: 1138068
B49: 1693000000-E | C49: ASPH PLT MIX PVMT REPAIR | F49: 1630 | G49: 120 | H49: 195600
B50: 1704000000-E | C50: PATCHING EXIST PAVEMENT | F50: 150 | G50: 184 | H50: 27600
B51: 1820000000-E | C51: AST, FOG SEAL | F51: 14980 | G51: 0.75 | H51: 11235
B52: 1840000000-E | C52: MILLED RUMBLE STRIPS | F52: 151096 | G52: 0.2166026897 | H52: 32727.8
B53: 1891000000-E | C53: GENERIC PAVING ITEM (SY) | D53: FINE MILLING | F53: 18531 | G53: 2.45 | H53: 45400.95
B54: 2022000000-E | C54: SUBDRAIN EXCAVATION | F54: 430 | G54: 26 | H54: 11180
B55: 2026000000-E | C55: GEOTEXTILE FOR SUBSURF DRNS | F55: 700 | G55: 3 | H55: 2100
B56: 2033000000-E | C56: SUBDRAIN FINE AGGREGATE | F56: 205 | G56: 55 | H56: 11275
B57: 2036000000-E | C57: SUBDRAIN COARSE AGGREGATE | F57: 120 | G57: 80 | H57: 9600
B58: 2044000000-E | C58: 6" PERF SUBDRN PIPE | F58: 1900 | G58: 9 | H58: 17100
B59: 2070000000-N | C59: SUBDRN PIPE OUTLET | F59: 5 | G59: 300 | H59: 1500
B60: 2077000000-E | C60: 6" OUTLET PIPE | F60: 30 | G60: 12 | H60: 360
B61: 2253000000-E | C61: PIPE COLLARS | F61: 0.5 | G61: 3425.06 | H61: 1712.53
B62: 2264000000-E | C62: PIPE PLUGS | F62: 0.1 | G62: 6304.5 | H62: 630.45
B63: 2286000000-N | C63: MASNRY DRAINAGE STRUCT | F63: 122 | G63: 2242.8 | H63: 273621.6
B64: 2308000000-E | C64: MASNRY DRAINAGE STRUCT | F64: 9 | G64: 475.36 | H64: 4278.24
B65: 2364000000-N | C65: FRAME W/2GRTS 840.16 STD | F65: 24 | G65: 917.81 | H65: 22027.44
B66: 2374000000-N | C66: FRAME-GRT-HD 840.03 ** | D66: (E) | F66: 8 | G66: 982.54 | H66: 7860.32
D67: (F) | F67: 46 | G67: 982.54 | H67: 45196.84
D68: (G) | F68: 43 | G68: 982.54 | H68: 42249.22
B69: 2396000000-N | C69: FRAME W/COVER STD 840.54 | F69: 1 | G69: 755.97 | H69: 755.97
B70: 2549000000-E | C70: 2'-6" CONC CURB & GUTTER | F70: 16115 | G70: 19.5 | H70: 314242.5
B71: 2591000000-E | C71: 4" CONCRETE SIDEWALK | F71: 80 | G71: 60 | H71: 4800
B72: 2605000000-N | C72: CONCRETE CURB RAMPS | F72: 2 | G72: 1800 | H72: 3600
B73: 2612000000-E | C73: 6" CONCRETE DRIVEWAY | F73: 565 | G73: 60 | H73: 33900
B74: 2830000000-N | C74: ADJ MANHOLES | F74: 3 | G74: 2800 | H74: 8400
B75: 2845000000-N | C75: ADJ METER OR VALVE BOXES | F75: 4 | G75: 2750 | H75: 11000
B76: 3030000000-E | C76: STL BEAM GUARDRAIL | F76: 325 | G76: 14.75 | H76: 4793.75
B77: 3045000000-E | C77: SBGR SHOP CURVED | F77: 50 | G77: 15.5 | H77: 775
B78: 3150000000-N | C78: ADDIT GUARDRAIL POSTS | F78: 5 | G78: 10 | H78: 50
B79: 3195000000-N | C79: GR END TYPE AT-1 | F79: 1 | G79: 500 | H79: 500
B80: 3210000000-N | C80: GR END TYPE CAT-1 | F80: 1 | G80: 600 | H80: 600
B81: 3287000000-N | C81: GR END TYPE TL-3 | F81: 2 | G81: 2800 | H81: 5600
B82: 3533000000-E | C82: CHN LK FENCE **" FABRIC | D82: (54") | F82: 346 | G82: 11 | H82: 3806
B83: 3539000000-E | C83: MET LINE PST **" CL FEN | D83: (54") | F83: 30 | G83: 25 | H83: 750
B84: 3545000000-E | C84: MET TERM PST **" CL FEN | D84: (54") | F84: 2 | G84: 50 | H84: 100
B85: 3628000000-E | C85: RIP RAP, CLASS I | F85: 20 | G85: 48 | H85: 960
B86: 3635000000-E | C86: RIP RAP, CLASS II | F86: 620 | G86: 48 | H86: 29760
B87: 3649000000-E | C87: RIP RAP, CLASS B | F87: 516 | G87: 48 | H87: 24768
B88: 3656000000-E | C88: GEOTEXTILE FOR DRAINGE | F88: 4327 | G88: 3 | H88: 12981
B89: 4072000000-E | C89: SUPPORT, 3-LB STL U-CHAN | F89: 984 | G89: 5.4 | H89: 5313.6
B90: 4096000000-N | C90: SIGN ERECTION, TYPE D | F90: 4 | G90: 125 | H90: 500
B91: 4102000000-N | C91: SIGN ERECTION, TYPE E | F91: 33 | G91: 72 | H91: 2376
B92: 4108000000-N | C92: SIGN ERECTION, TYPE F | F92: 2 | G92: 145 | H92: 290
B93: 4116100000-N | C93: SIGN ERECT, RELOC ** GRD MTD | D93: (D) | F93: 3 | G93: 250 | H93: 750
D94: (E) | F94: 5 | G94: 175 | H94: 875
B95: 4155000000-N | C95: DISPOSE SIGN SYST U-CHAN | F95: 42 | G95: 10 | H95: 420
B96: 4192000000-N | C96: DISPOSE SUPPORT, U-CHAN | F96: 9 | G96: 10 | H96: 90
B97: 4400000000-E | C97: WORK ZONE SIGNS (STAT) | F97: 1261 | G97: 5.094210944 | H97: 6423.8
B98: 4405000000-E | C98: WORK ZONE SIGNS (PORT) | F98: 96 | G98: 8.75 | H98: 840
B99: 4420000000-N | C99: PORTABLE CHANGE MSG SIGN | F99: 2 | G99: 10000 | H99: 20000
B100: 4423000000-N | C100: WZ DIGITAL SPD LMT SIGNS | F100: 3 | G100: 3000 | H100: 9000
B101: 4430000000-N | C101: DRUMS | F101: 311 | G101: 57 | H101: 17727
B102: 4434000000-N | C102: SEQ FLASH WARN LIGHTS | F102: 36 | G102: 48 | H102: 1728
B103: 4455000000-N | C103: FLAGGER | F103: 60 | G103: 400 | H103: 24000
B104: 4465000000-N | C104: TEMPORARY CRASH CUSHIONS | F104: 4 | G104: 5200 | H104: 20800
B105: 4490000000-E | C105: PORT CONC BARRIER(ANCHRD) | F105: 1050 | G105: 34.45 | H105: 36172.5
B106: 4510000000-N | C106: LAW ENFORCEMENT | F106: 2064 | G106: 35.46511628 | H106: 73200
B107: 4600000000-N | C107: GENERIC TRAFFIC CONTROL ITEM (EA) | D107: DOUBLE LANE CLOSURE | F107: 18 | G107: 1200 | H107: 21600
D108: LANE CLOSURE | F108: 49 | G108: 1200 | H108: 58800
D109: RAMP/LOOP CLOSURE | F109: 20 | G109: 775 | H109: 15500
D110: RAMP/LOOP CLOSURES | F110: 29 | G110: 850 | H110: 24650
D111: RAMP/LOOP TRAFFIC CONTROL | F111: 38 | G111: 850 | H111: 32300
D112: SINGLE LANE CLOSURE | F112: 18 | G112: 1100 | H112: 19800
B113: 4650000000-N | C113: TEMP RAISED PVMT MRKS | F113: 477 | G113: 8.5 | H113: 4054.5
B114: 4685000000-E | C114: THERMO PVT MKG LINES 4"90 | F114: 47497 | G114: 0.72 | H114: 34197.84
B115: 4688000000-E | C115: THERMO PVT MKG LINES,6"90 MILS | F115: 287080 | G115: 0.6814703219 | H115: 195636.5
B116: 4695000000-E | C116: THERMO PVT MKG LINES 8"90 MILS | F116: 1052 | G116: 2.634030418 | H116: 2771
B117: 4700000000-E | C117: 12"WIDE THERMO 90 MILS | F117: 26848 | G117: 2.259687872 | H117: 60668.1
B118: 4720000000-E | C118: THERMO PVT MKG CHARACTER 90 | F118: 118 | G118: 125 | H118: 14750
B119: 4725000000-E | C119: THERMO PVT SYMBOL 90MILS | F119: 219 | G119: 151.5296804 | H119: 33185
B120: 4810000000-E | C120: PAINT PVMT MARKINGS 4" | F120: 63786 | G120: 0.27 | H120: 17222.22
B121: 4815000000-E | C121: PAINT PVMT MARKINGS 6" | F121: 375345 | G121: 0.2272057707 | H121: 85280.55
B122: 4820000000-E | C122: PAINT PVMT MARKINGS 8" | F122: 512 | G122: 0.62890625 | H122: 322
B123: 4825000000-E | C123: PAINT PVMT MARKINGS 12" | F123: 43985 | G123: 0.5535205184 | H123: 24346.6
B124: 4835000000-E | C124: PAINT PVT MKG LINES 24" | F124: 442 | G124: 3.076923077 | H124: 1360
B125: 4840000000-N | C125: PAINT PVT MKG CHARACTER | F125: 290 | G125: 29.65517241 | H125: 8600
B126: 4845000000-N | C126: PAINT PVT MKG SYMBOL | F126: 202 | G126: 33.41584158 | H126: 6750
B127: 4847030000-E | C127: POLYUREA LINES (6", 20 MILS) | F127: 820 | G127: 6.25 | H127: 5125
B128: 4847070000-E | C128: POLYUREA LINES (12", 20 MILS) | F128: 90 | G128: 12 | H128: 1080
B129: 4850000000-E | C129: LINE REMOVAL 4" WIDE | F129: 16132 | G129: 0.75 | H129: 12099
B130: 4860000000-E | C130: LINE REMOVAL 8" WIDE | F130: 30 | G130: 2 | H130: 60
B131: 4870000000-E | C131: LINE REMOVAL 24" WIDE | F131: 111 | G131: 3 | H131: 333
B132: 4891000000-E | C132: GENERIC PVMT MARKING ITEM (LF) 1205 | D132: THERMOPLASTIC PAVEMENT MARKING | E132: LINES (24", 90 MILS) | F132: 70 | G132: 9 | H132: 630
E133: LINES (24", 90MILS) | F133: 840 | G133: 11 | H133: 9240
E134: LINES, (24", 90 MILS) | F134: 102 | G134: 15 | H134: 1530
B135: 4892000000-N | C135: GENERIC PVMT MARKING ITEM (EA) 1205 | D135: THERMOPLASTIC PAVEMENT MARKING | E135: CHARACTER (90 MILS) | F135: 54 | G135: 90 | H135: 4860
B136: 4905000000-N | C136: SNOWPLB PVMT MRKER | F136: 3942 | G136: 26.89408929 | H136: 106016.5
B137: 5255000000-N | C137: PORTABLE LIGHTING | F137: 1 | G137: 11500 | H137: 11500
B138: 5325800000-E | C138: 8" WATER LINE | F138: 355 | G138: 258.63 | H138: 91813.65
B139: 5326200000-E | C139: 12" WATER LINE | F139: 355 | G139: 291.75 | H139: 103571.25
B140: 5326600000-E | C140: 16" WATER LINE | F140: 985 | G140: 214.23 | H140: 211016.55
B141: 5329000000-E | C141: DI H2O PIPE FITTINGS | F141: 7810 | G141: 15.77 | H141: 123163.7
B142: 5540000000-E | C142: 6" VALVE | F142: 6 | G142: 2042.35 | H142: 12254.1
B143: 5546000000-E | C143: 8" VALVE | F143: 1 | G143: 2848.41 | H143: 2848.41
B144: 5571600000-E | C144: 6" TAPPING SLEEVE & VALVE | F144: 6 | G144: 9841.43 | H144: 59048.58
B145: 5571800000-E | C145: 8" TAPPING SLEEVE & VALVE | F145: 3 | G145: 10845.15 | H145: 32535.45
B146: 5572200000-E | C146: 12" TAPPING SLEEVE & VALVE | F146: 2 | G146: 14800.78 | H146: 29601.56
B147: 5589200000-E | C147: 2" AIR RELEASE VALVE | F147: 1 | G147: 8645.32 | H147: 8645.32
B148: 5648000000-N | C148: RELOCATE WATER METER | F148: 2 | G148: 1907.75 | H148: 3815.5
B149: 5656100000-E | C149: RELC **" RPZ BACKFLOW PREVNT A | D149: (1") | F149: 1 | G149: 9615.87 | H149: 9615.87
D150: (3/4") | F150: 1 | G150: 9473.45 | H150: 9473.45
B151: 5666000000-N | C151: FIRE HYDRANT | F151: 3 | G151: 3904.88 | H151: 11714.64
B152: 5672000000-N | C152: RELOCATE FIRE HYDRANT | F152: 13 | G152: 3170.23 | H152: 41212.99
B153: 5673000000-E | C153: FIRE HYDRANT LEG | F153: 243 | G153: 133.05 | H153: 32331.15
B154: 5679200000-E | C154: 16" LINE STOP | F154: 6 | G154: 24716.79 | H154: 148300.74
B155: 5686500000-E | C155: WATER SERVICE LINE | F155: 28 | G155: 63.51 | H155: 1778.28
B156: 5691300000-E | C156: 8" SANITARY GRAVITY SEWER | F156: 644 | G156: 164.67 | H156: 106047.48
B157: 5709400000-E | C157: 8" FORCE MAIN SEWER | F157: 1037 | G157: 174.25 | H157: 180697.25
B158: 5768000000-N | C158: SANITARY SEWER CLEAN-OUT | F158: 3 | G158: 1598.16 | H158: 4794.48
B159: 5768500000-E | C159: SEWER SERVICE LINE | F159: 150 | G159: 55.87 | H159: 8380.5
B160: 5769000000-E | C160: DI SEWER PIPE FITTINGS | F160: 2540 | G160: 12.02 | H160: 30530.8
B161: 5775000000-E | C161: 4' DIA UTILITY MANHOLE | F161: 4 | G161: 4247.48 | H161: 16989.92
B162: 5776000000-E | C162: 5' DIA UTILITY MANHOLE | F162: 1 | G162: 6330.55 | H162: 6330.55
B163: 5781000000-E | C163: UTILITY MANHOLE WALL 4' DIA | F163: 10 | G163: 384.14 | H163: 3841.4
B164: 5782000000-E | C164: UTILITY MANHOLE WALL 5' DIA | F164: 3 | G164: 422.98 | H164: 1268.94
B165: 5801000000-E | C165: ABANDON 8" UTILITY PIPE | F165: 189 | G165: 44.03 | H165: 8321.67
B166: 5810000000-E | C166: ABANDON 16" UTILITY PIPE | F166: 1507 | G166: 34.69 | H166: 52277.83
B167: 5816000000-N | C167: ABANDON UTILITY MANHOLE | F167: 2 | G167: 1867.21 | H167: 3734.42
B168: 5828000000-N | C168: REMOVE UTILITY MANHOLE | F168: 1 | G168: 1675.31 | H168: 1675.31
B169: 5835700000-E | C169: 16" ENCASEMENT PIPE | F169: 225 | G169: 90.5 | H169: 20362.5
B170: 5836000000-E | C170: 24" ENCASEMENT PIPE | F170: 310 | G170: 195.61 | H170: 60639.1
B171: 5872500000-E | C171: BORE & JACK **" | D171: (16") | F171: 190 | G171: 420.29 | H171: 79855.1
D172: (24") | F172: 225 | G172: 468.65 | H172: 105446.25
B173: 5872600000-E | C173: DIRECT DRILL **" | D173: (16") | F173: 190 | G173: 248.45 | H173: 47205.5
D174: (8") | F174: 160 | G174: 230.37 | H174: 36859.2
B175: 6000000000-E | C175: TEMPORARY SILT FENCE | F175: 13075 | G175: 1.806883365 | H175: 23625
B176: 6006000000-E | C176: EROS CONTRL STONE CL A | F176: 1400 | G176: 39 | H176: 54600
B177: 6009000000-E | C177: EROS CONTRL STONE CL B | F177: 4515 | G177: 39 | H177: 176085
B178: 6012000000-E | C178: SEDIMENT CONTROL STONE | F178: 2160 | G178: 33 | H178: 71280
B179: 6015000000-E | C179: TEMPORARY MULCHING | F179: 26 | G179: 900 | H179: 23400
B180: 6018000000-E | C180: SEED FOR TEMP SEEDING | F180: 1500 | G180: 1.5 | H180: 2250
B181: 6021000000-E | C181: FERT FOR TEMP SEEDING | F181: 8.5 | G181: 500 | H181: 4250
B182: 6024000000-E | C182: TEMPORARY SLOPE DRAINS | F182: 560 | G182: 30 | H182: 16800
B183: 6029000000-E | C183: SAFETY FENCE | F183: 1000 | G183: 2.5 | H183: 2500
B184: 6030000000-E | C184: SILT EXCAVATION | F184: 5000 | G184: 5.4 | H184: 27000
B185: 6036000000-E | C185: MATTING FOR EROS CONTROL | F185: 20000 | G185: 1.35 | H185: 27000
B186: 6037000000-E | C186: COIR FIBER MAT | F186: 100 | G186: 6 | H186: 600
B187: 6038000000-E | C187: PERM SOIL REINF MAT | F187: 600 | G187: 3.5 | H187: 2100
B188: 6042000000-E | C188: 1/4" HARDWARE CLOTH | F188: 2455 | G188: 4 | H188: 9820
B189: 6045000000-E | C189: **" TEMPORARY PIPE | D189: (24") | F189: 170 | G189: 60 | H189: 10200
B190: 6070000000-N | C190: SPECIAL STILLING BASINS | F190: 2 | G190: 1000 | H190: 2000
B191: 6071010000-E | C191: WATTLE | F191: 50 | G191: 5 | H191: 250
B192: 6071012000-E | C192: COIR FIBER WATTLE | F192: 970 | G192: 7 | H192: 6790
B193: 6071020000-E | C193: POLYACRYLAMIDE (PAM) | F193: 1685 | G193: 3 | H193: 5055
B194: 6071030000-E | C194: COIR FIBER BAFFLE | F194: 1075 | G194: 5 | H194: 5375
B195: 6071050000-E | C195: **" SKIMMER | D195: (1-1/2") | F195: 1 | G195: 1400 | H195: 1400
D196: (2-1/2") | F196: 1 | G196: 1630 | H196: 1630
B197: 6084000000-E | C197: SEEDING AND MULCHING | F197: 20.5 | G197: 1817.073171 | H197: 37250
B198: 6087000000-E | C198: MOWING | F198: 10 | G198: 110 | H198: 1100
B199: 6090000000-E | C199: SEED FOR REPAIR SEEDING | F199: 300 | G199: 4 | H199: 1200
B200: 6093000000-E | C200: FERT FOR REPAIR SEEDING | F200: 0.75 | G200: 800 | H200: 600
... 45 more rows

Sheet ITEMS - DIV 08
B1: 2020 BID AVERAGES - DIVISION 08
B2: Item # | C2: Item Description | D2: Item Supplemental Description | E2: Item Supplemental Description 2 | F2: Item Quantity | G2: Average Unit Bid | H2: Extended Amt
B3: 0000100000-N | C3: MOBILIZATION | F3: 7 | G3: 84878.57143 | H3: 594150
B4: 0163000000-E | C4: REMOVAL OF EXT CONC PVMT | F4: 4 | G4: 100 | H4: 400
B5: 1245000000-E | C5: SHOULDER RECONSTRUCTION | F5: 26.36 | G5: 1744.802731 | H5: 45993
B6: 1260000000-E | C6: AGGREGATE SHOULDER BORROW | F6: 3748.15 | G6: 15.33998106 | H6: 57496.55
B7: 1297000000-E | C7: MILL ASP PVMT *****" DTH | D7: (1-1/2") | F7: 986344 | G7: 1.070037015 | H7: 1055424.59
D8: (1-1/4") | F8: 10300 | G8: 0.88 | H8: 9064
D9: (2") | F9: 24164 | G9: 2 | H9: 48328
D10: (3") | F10: 11100 | G10: 1.25 | H10: 13875
B11: 1308000000-E | C11: MILLN ASPHALT PVMT ***** - ***** | D11: (0" TO 1-1/2") | F11: 190 | G11: 4.95 | H11: 940.5
D12: (1-1/2" TO 2") | F12: 46125 | G12: 0.98 | H12: 45202.5
B13: 1330000000-E | C13: INCIDENTAL MILLING | F13: 21620 | G13: 6.957188714 | H13: 150414.42
B14: 1491000000-E | C14: ASP CONC BASE CRS B25.0C | F14: 44 | G14: 200 | H14: 8800
B15: 1503000000-E | C15: ASP CONC INTR CRS I19.0C | F15: 6120 | G15: 38.75571895 | H15: 237185
B16: 1519000000-E | C16: ASP CONC SURF CRS S9.5B | F16: 68882 | G16: 44.4246719 | H16: 3060060.25
B17: 1520000000-E | C17: ASP CONC SURF CRS S9.5B LEVEL | F17: 2745 | G17: 39.07468124 | H17: 107260
B18: 1523000000-E | C18: ASP CONC SURF CRS S9.5C | F18: 80370 | G18: 40.95493343 | H18: 3291548
B19: 1524000000-E | C19: ASP CONC SURF CRS S9.5C LEVEL | F19: 7 | G19: 95 | H19: 665
B20: 1575000000-E | C20: ASP FOR PLANT MIX | F20: 9919 | G20: 264.6028037 | H20: 2624595.21
B21: 1577000000-E | C21: POLYM MOD ASP BNDR FOR PLT MIX | F21: 68 | G21: 429 | H21: 29172
B22: 1662000000-E | C22: OG ASP FRICT FC-1 MOD | F22: 1115 | G22: 92.5 | H22: 103137.5
B23: 1704000000-E | C23: PATCHING EXIST PAVEMENT | F23: 6716 | G23: 114.3207266 | H23: 767778
B24: 1775500000-E | C24: AST, MAT COAT, *** STONE | D24: (67) | F24: 17224 | G24: 1.55 | H24: 26697.2
D25: (78M) | F25: 1900 | G25: 0.65 | H25: 1235
B26: 1803500000-E | C26: AST, DOUBLE SEAL | F26: 36455 | G26: 0.55 | H26: 20050.25
B27: 1814500000-E | C27: AST, SINGLE SEAL | F27: 54715 | G27: 0.95 | H27: 51979.25
B28: 1838000000-E | C28: EMULSION FOR AST | F28: 44934 | G28: 1.894144746 | H28: 85111.5
B29: 1838500000-N | C29: VACUUM TRUCK | F29: 9 | G29: 500.4444444 | H29: 4504
B30: 1840000000-E | C30: MILLED RUMBLE STRIPS | F30: 286509 | G30: 0.1613199236 | H30: 46219.61
B31: 1880000000-E | C31: GENERIC PAVING ITEM (TON) | D31: JOINT REPAIR | F31: 34 | G31: 549 | H31: 18666
B32: 2542000000-E | C32: 1'-6" CONC CURB & GUTTER | F32: 10 | G32: 80 | H32: 800
B33: 2549000000-E | C33: 2'-6" CONC CURB & GUTTER | F33: 50 | G33: 60 | H33: 3000
B34: 2600000000-N | C34: RETROFIT EXT CURB RAMPS | F34: 3 | G34: 883.3333333 | H34: 2650
B35: 2605000000-N | C35: CONCRETE CURB RAMPS | F35: 2 | G35: 2300 | H35: 4600
B36: 2815000000-N | C36: ADJ DROP INLETS | F36: 6 | G36: 750 | H36: 4500
B37: 2830000000-N | C37: ADJ MANHOLES | F37: 13 | G37: 736.5384615 | H37: 9575
B38: 2845000000-N | C38: ADJ METER OR VALVE BOXES | F38: 40 | G38: 735.625 | H38: 29425
B39: 4413000000-E | C39: WORK ZONE ADV/GEN WARN SIGN | F39: 12448 | G39: 5.066974614 | H39: 63073.7
B40: 4447000000-E | C40: PED CHANNEL DEVICES | F40: 56 | G40: 32.14285714 | H40: 1800
B41: 4457000000-N | C41: TEMP TRAFFIC CONTROL (SP) | F41: 7 | G41: 36100.57143 | H41: 252704
B42: 4510000000-N | C42: LAW ENFORCEMENT | F42: 780 | G42: 45.13846154 | H42: 35208
B43: 4685000000-E | C43: THERMO PVT MKG LINES 4"90 | F43: 623569 | G43: 0.5532591421 | H43: 344995.25
B44: 4687000000-E | C44: THERMO PVT MKG LINES 4"240 | F44: 1410 | G44: 4 | H44: 5640
B45: 4688000000-E | C45: THERMO PVT MKG LINES,6"90 MILS | F45: 245025 | G45: 0.4743077237 | H45: 116217.25
B46: 4695000000-E | C46: THERMO PVT MKG LINES 8"90 MILS | F46: 12794 | G46: 2.07206503 | H46: 26510
B47: 4700000000-E | C47: 12"WIDE THERMO 90 MILS | F47: 8290 | G47: 3 | H47: 24870
B48: 4720000000-E | C48: THERMO PVT MKG CHARACTER 90 | F48: 111 | G48: 97.2972973 | H48: 10800
B49: 4721000000-E | C49: THERMO PVT MKG CHARACTER 120 | F49: 12 | G49: 100 | H49: 1200
B50: 4725000000-E | C50: THERMO PVT SYMBOL 90MILS | F50: 438 | G50: 131.8150685 | H50: 57735
B51: 4770000000-E | C51: 4" COLD APPL PLSTIC LINES TYPE ** | D51: (II) | F51: 1532 | G51: 2.25 | H51: 3447
B52: 4810000000-E | C52: PAINT PVMT MARKINGS 4" | F52: 800692 | G52: 0.111942195 | H52: 89631.22
B53: 4815000000-E | C53: PAINT PVMT MARKINGS 6" | F53: 5160 | G53: 0.3 | H53: 1548
B54: 4820000000-E | C54: PAINT PVMT MARKINGS 8" | F54: 20610 | G54: 0.4785177098 | H54: 9862.25
B55: 4825000000-E | C55: PAINT PVMT MARKINGS 12" | F55: 330 | G55: 0.5 | H55: 165
B56: 4830000000-E | C56: PAINT PVT MKGS LINES 16" | F56: 794 | G56: 1.081234257 | H56: 858.5
B57: 4835000000-E | C57: PAINT PVT MKG LINES 24" | F57: 2293 | G57: 1.58722198 | H57: 3639.5
B58: 4840000000-N | C58: PAINT PVT MKG CHARACTER | F58: 104 | G58: 29.61538462 | H58: 3080
B59: 4845000000-N | C59: PAINT PVT MKG SYMBOL | F59: 423 | G59: 29.69267139 | H59: 12560
B60: 4850000000-E | C60: LINE REMOVAL 4" WIDE | F60: 4112 | G60: 1 | H60: 4112
B61: 4891000000-E | C61: GENERIC PVMT MARKING ITEM (LF) 1205 | D61: THERMOPLASTIC PAVEMENT MARKING | E61: LINES (16", 90 MILS) | F61: 829 | G61: 9.276236429 | H61: 7690
E62: LINES (24", 90 MILS) | F62: 2531 | G62: 10.55393125 | H62: 26712
B63: 4895000000-N | C63: GENERIC PAVEMENT MARKING ITEM (EA) | D63: NON-CAST IRON SNOWPLOWABLE | E63: PAVEMENT MARKERS | F63: 873 | G63: 32.25 | H63: 28154.25
B64: 4900000000-N | C64: PERM RAISED PVMT MARKERS | F64: 28 | G64: 10 | H64: 280
B65: 4905000000-N | C65: SNOWPLB PVMT MRKER | F65: 4967 | G65: 27.17862895 | H65: 134996.25
B66: 5255000000-N | C66: PORTABLE LIGHTING | F66: 1 | G66: 18500 | H66: 18500
B67: 7444000000-E | C67: INDUCTIVE LOOP SAWCUT | F67: 11601 | G67: 6.427295061 | H67: 74563.05
B68: 7456000000-E | C68: LEAD-IN CABLE(********) | D68: (14-2) | F68: 8484 | G68: 0.95 | H68: 8059.8

Sheet ITEMS - DIV 09
B1: 2020 BID AVERAGES - DIVISION 09
B2: Item # | C2: Item Description | D2: Item Supplemental Description | E2: Item Supplemental Description 2 | F2: Item Quantity | G2: Average Unit Bid | H2: Extended Amt
B3: 0000100000-N | C3: MOBILIZATION | F3: 1 | G3: 837000 | H3: 837000
B4: 0000400000-N | C4: CONSTRUCTION SURVEYING | F4: 1 | G4: 350000 | H4: 350000
B5: 0043000000-N | C5: GRADING | F5: 1 | G5: 121000 | H5: 121000
B6: 0196000000-E | C6: GEOTEXTILE SOIL STABILIZATION | F6: 7020 | G6: 4 | H6: 28080
B7: 0314000000-E | C7: SELECT MATERIAL CLASS ** | D7: (I) | F7: 75 | G7: 65 | H7: 4875
B8: 1220000000-E | C8: INCIDENTAL STONE BASE | F8: 4740 | G8: 66 | H8: 312840
B9: 1297000000-E | C9: MILL ASP PVMT *****" DTH | D9: (3") | F9: 2340 | G9: 5 | H9: 11700
B10: 1491000000-E | C10: ASP CONC BASE CRS B25.0C | F10: 600 | G10: 85 | H10: 51000
B11: 1503000000-E | C11: ASP CONC INTR CRS I19.0C | F11: 330 | G11: 94 | H11: 31020
B12: 1523000000-E | C12: ASP CONC SURF CRS S9.5C | F12: 450 | G12: 98 | H12: 44100
B13: 1575000000-E | C13: ASP FOR PLANT MIX | F13: 75 | G13: 475 | H13: 35625
B14: 1577000000-E | C14: POLYM MOD ASP BNDR FOR PLT MIX | F14: 165 | G14: 685 | H14: 113025
B15: 1662000000-E | C15: OG ASP FRICT FC-1 MOD | F15: 2660 | G15: 89 | H15: 236740
B16: 1671000000-E | C16: PERM ASPH DRAINAGE CO, P-78M | F16: 74 | G16: 180 | H16: 13320
B17: 1735000000-E | C17: REP JNT CONC PVT SLABS | F17: 4065 | G17: 754 | H17: 3065010
B18: 1736000000-E | C18: SELECT MATERIAL, CLASS IV | F18: 92 | G18: 85 | H18: 7820
B19: 1737000000-E | C19: PATCHING CONC PVMT SPALLS | F19: 62 | G19: 275 | H19: 17050
B20: 1881000000-E | C20: GENERIC PAVING ITEM (LF) | D20: JOINT CONSTRUCTION, REPAIR & SEALING | F20: 663732 | G20: 1.76 | H20: 1168168.32
B21: 1891000000-E | C21: GENERIC PAVING ITEM (SY) | D21: DIAMOND GRINDING PCC PAVEMENT | F21: 400775 | G21: 5.25 | H21: 2104068.75
B22: 1925000000-E | C22: MILL RUMBLE STRPS (CONC SHLDR) | F22: 220 | G22: 2.5 | H22: 550
B23: 2154000000-N | C23: METAL FUNNELS | F23: 1 | G23: 1350 | H23: 1350
B24: 2165000000-E | C24: 12" FUNNEL DRAIN PIPE | F24: 20 | G24: 35 | H24: 700
B25: 2176000000-E | C25: 12" FUNNEL DRAIN ELBOWS | F25: 2 | G25: 160 | H25: 320
B26: 2556000000-E | C26: SHOULDER BERM GUTTER | F26: 20 | G26: 50 | H26: 1000
B27: 3030000000-E | C27: STL BEAM GUARDRAIL | F27: 2500 | G27: 15 | H27: 37500
B28: 3150000000-N | C28: ADDIT GUARDRAIL POSTS | F28: 20 | G28: 11 | H28: 220
B29: 3287000000-N | C29: GR END TYPE TL-3 | F29: 2 | G29: 2850 | H29: 5700
B30: 3360000000-E | C30: REMOVE EXISTING GUARDRAIL | F30: 2600 | G30: 1.05 | H30: 2730
B31: 4400000000-E | C31: WORK ZONE SIGNS (STAT) | F31: 316 | G31: 6.42 | H31: 2028.72
B32: 4405000000-E | C32: WORK ZONE SIGNS (PORT) | F32: 344 | G32: 9.65 | H32: 3319.6
B33: 4410000000-E | C33: WORK ZONE SIGNS (BARR) | F33: 22 | G33: 6.42 | H33: 141.24
B34: 4415000000-N | C34: FLASHING ARROW BOARD | F34: 6 | G34: 1710 | H34: 10260
B35: 4420000000-N | C35: PORTABLE CHANGE MSG SIGN | F35: 6 | G35: 8007 | H35: 48042
B36: 4423000000-N | C36: WZ DIGITAL SPD LMT SIGNS | F36: 4 | G36: 3205 | H36: 12820
B37: 4424000000-N | C37: WZ PRESENCE LIGHTING | F37: 16 | G37: 1400 | H37: 22400
B38: 4430000000-N | C38: DRUMS | F38: 350 | G38: 43 | H38: 15050
B39: 4434000000-N | C39: SEQ FLASH WARN LIGHTS | F39: 40 | G39: 534 | H39: 21360
B40: 4445000000-E | C40: BARRICADES (TYPE III) | F40: 32 | G40: 19.5 | H40: 624
B41: 4480000000-N | C41: TMA | F41: 4 | G41: 17100 | H41: 68400
B42: 4510000000-N | C42: LAW ENFORCEMENT | F42: 224 | G42: 65 | H42: 14560
B43: 4600000000-N | C43: GENERIC TRAFFIC CONTROL ITEM (EA) | D43: CONNECTED LANE CLOSURE DEVICE | F43: 4 | G43: 2700 | H43: 10800
B44: 4725000000-E | C44: THERMO PVT SYMBOL 90MILS | F44: 6 | G44: 230 | H44: 1380
B45: 4805000000-N | C45: COLD APPL PLASTIC SYM TYPE ** | D45: (II) | F45: 47 | G45: 381 | H45: 17907
B46: 4815000000-E | C46: PAINT PVMT MARKINGS 6" | F46: 294705 | G46: 0.31 | H46: 91358.55
B47: 4825000000-E | C47: PAINT PVMT MARKINGS 12" | F47: 13369 | G47: 0.61 | H47: 8155.09
B48: 4847030000-E | C48: POLYUREA LINES (6", 20 MILS) | F48: 294705 | G48: 1.14 | H48: 335963.7
B49: 4847070000-E | C49: POLYUREA LINES (12", 20 MILS) | F49: 13369 | G49: 3 | H49: 40107
B50: 4855000000-E | C50: LINE REMOVAL 6" WIDE | F50: 294705 | G50: 0.7 | H50: 206293.5
B51: 4865000000-E | C51: LINE REMOVAL 12" WIDE | F51: 13369 | G51: 1.05 | H51: 14037.45
B52: 4875000000-N | C52: REMOVAL OF SYMBL & CHARAC | F52: 32 | G52: 180 | H52: 5760
B53: 4905000000-N | C53: SNOWPLB PVMT MRKER | F53: 2774 | G53: 33 | H53: 91542
B54: 5255000000-N | C54: PORTABLE LIGHTING | F54: 1 | G54: 195000 | H54: 195000
B55: 6000000000-E | C55: TEMPORARY SILT FENCE | F55: 240 | G55: 3.1 | H55: 744
B56: 6029000000-E | C56: SAFETY FENCE | F56: 100 | G56: 2.05 | H56: 205
B57: 6036000000-E | C57: MATTING FOR EROS CONTROL | F57: 123 | G57: 2.05 | H57: 252.15
B58: 6071010000-E | C58: WATTLE | F58: 30 | G58: 6.1 | H58: 183
B59: 6084000000-E | C59: SEEDING AND MULCHING | F59: 2.8 | G59: 2340 | H59: 6552
B60: 6090000000-E | C60: SEED FOR REPAIR SEEDING | F60: 140 | G60: 16 | H60: 2240
B61: 6093000000-E | C61: FERT FOR REPAIR SEEDING | F61: 1 | G61: 1020 | H61: 1020
B62: 6117000000-N | C62: RESPONSE FOR EROS CONTROL | F62: 5 | G62: 510 | H62: 2550
B63: 6117500000-N | C63: CONC WASHOUT STRUCTURE | F63: 1 | G63: 1500 | H63: 1500
B64: 8161000000-E | C64: GROOVING BRIDGE FLOORS | F64: 169302 | G64: 0.33 | H64: 55869.66
B65: 8224000000-E | C65: EPOXY COAT REINF STL BRDG | F65: 3136 | G65: 3.5 | H65: 10976
B66: 8296000000-N | C66: POLLUTION CONTROL | F66: 1 | G66: 26000 | H66: 26000
B67: 8559000000-E | C67: SURFACE PREP, CLASS II | F67: 509.2 | G67: 750 | H67: 381900
B68: 8660000000-E | C68: CONCRETE REPAIRS | F68: 27.9 | G68: 800 | H68: 22320
B69: 8664000000-E | C69: SHOTCRETE REPAIRS | F69: 44.1 | G69: 615 | H69: 27121.5
B70: 8678000000-E | C70: EPOXY RESIN INJECTION | F70: 46.2 | G70: 80 | H70: 3696
B71: 8860000000-N | C71: GENERIC STRUCTURE ITEM (LS) | D71: CLEANING & PAINTING EXISTING | E71: WEATHERING STEEL FOR BRIDGE NO 330441 | F71: 1 | G71: 100000 | H71: 100000
E72: WEATHERING STEEL FOR BRIDGE NO 330444 | F72: 1 | G72: 33000 | H72: 33000
E73: WEATHERING STEEL FOR BRIDGE NO 330451 | F73: 1 | G73: 55000 | H73: 55000
E74: WEATHERING STEEL FOR BRIDGE NO 330452 | F74: 1 | G74: 56000 | H74: 56000
E75: WEATHERING STEEL FOR BRIDGE NO 330454 | F75: 1 | G75: 69000 | H75: 69000
E76: WEATHERING STEEL FOR BRIDGE NO 330488 | F76: 1 | G76: 27000 | H76: 27000
E77: WEATHERING STEEL FOR BRIDGE NO 330489 | F77: 1 | G77: 23000 | H77: 23000
E78: WEATHERING STEEL FOR BRIDGE NO 330508 | F78: 1 | G78: 63000 | H78: 63000
E79: WEATHERING STEEL FOR BRIDGE NO 330509 | F79: 1 | G79: 36000 | H79: 36000
D80: MOLDED RUBBER SEGMENTAL | E80: EXPANSION JOINT | F80: 1 | G80: 847000 | H80: 847000
D81: PAINTING CONTAINMENT FOR | E81: BRIDGE NO 330441 | F81: 1 | G81: 55000 | H81: 55000
E82: BRIDGE NO 330444 | F82: 1 | G82: 18000 | H82: 18000
E83: BRIDGE NO 330451 | F83: 1 | G83: 30000 | H83: 30000
E84: BRIDGE NO 330452 | F84: 1 | G84: 30000 | H84: 30000
E85: BRIDGE NO 330454 | F85: 1 | G85: 38000 | H85: 38000
E86: BRIDGE NO 330488 | F86: 1 | G86: 15000 | H86: 15000
E87: BRIDGE NO 330489 | F87: 1 | G87: 13000 | H87: 13000
E88: BRIDGE NO 330508 | F88: 1 | G88: 35000 | H88: 35000
E89: BRIDGE NO 330509 | F89: 1 | G89: 20000 | H89: 20000
D90: VOLUMETRIC MIXER | F90: 1 | G90: 7500 | H90: 7500
B91: 8867000000-E | C91: GENERIC STRUCTURE ITEM (LF) | D91: FOAM JOINT SEALS FOR | E91: PRESERVATION | F91: 2277.6 | G91: 65 | H91: 148044
D92: POURABLE SILICONE JOINT | E92: SEALANT | F92: 2815.7 | G92: 80 | H92: 225256
B93: 8881000000-E | C93: GENERIC STRUCTURE ITEM (CY) | D93: POLYESTER POLYMER CONCRETE | E93: MATERIALS | F93: 694.9 | G93: 2650 | H93: 1841485
B94: 8882000000-E | C94: GENERIC STRUCTURE ITEM (CF) | D94: ELASTOMERIC CONCRETE FOR | E94: PRESERVATION | F94: 249.2 | G94: 575 | H94: 143290
B95: 8892000000-E | C95: GENERIC STRUCTURE ITEM (SF) | D95: BRIDGE JOINT DEMOLITION | F95: 883.6 | G95: 75 | H95: 66270
D96: CONCRETE DECK REPAIR FOR | E96: SILANE DECK TREATMENT | F96: 129 | G96: 550 | H96: 70950
D97: EPOXY COATING | F97: 15687 | G97: 13 | H97: 203931
D98: EPOXY COATING CONCRETE | E98: GIRDER ENDS | F98: 11804.4 | G98: 13 | H98: 153457.2
D99: JOINT REPAIR | F99: 1041.4 | G99: 180 | H99: 187452
D100: SILANE BARRIER RAIL TREATMENT | F100: 17425.1 | G100: 0.7700001722 | H100: 13417.33
D101: SURFACE PREPARATION FOR | E101: CONCRETE BARRIER RAIL | F101: 17425.1 | G101: 0.4 | H101: 6970.04
B102: 8893000000-E | C102: GENERIC STRUCTURE ITEM (SY) | D102: CONCRETE DECK REPAIR FOR | E102: POLYESTER POLYMER CONCRETE OVERLAY | F102: 496.8 | G102: 600 | H102: 298080
D103: PLACING & FINISHING POLYESTER | E103: POLYMER CONCRETE OVERLAY | F103: 19987 | G103: 26 | H103: 519662
D104: SCARIFYING BRIDGE DECK | F104: 19987 | G104: 16 | H104: 319792
D105: SHOTBLASTING BRIDGE DECK | F105: 35799 | G105: 12 | H105: 429588
D106: SILANE DECK TREATMENT | F106: 15812 | G106: 7.5 | H106: 118590
B107: 8897000000-N | C107: GENERIC STRUCTURE ITEM (EA) | D107: CLEANING & PAINTING EXISTING | E107: BEARINGS WITH HRCSA BRIDGE NO 330444 | F107: 12 | G107: 800 | H107: 9600
E108: BEARINGS WITH HRCSA BRIDGE NO 330508 | F108: 12 | G108: 800 | H108: 9600
E109: BEARINGS WITH HRCSA BRIDGE NO 330509 | F109: 10 | G109: 800 | H109: 8000
D110: TYPE I BRIDGE JACKING | E110: BRIDGE NO 330161 | F110: 1 | G110: 15000 | H110: 15000

Sheet ITEMS - DIV 10
B1: 2020 BID AVERAGES - DIVISION 10
B2: Item # | C2: Item Description | D2: Item Supplemental Description | E2: Item Supplemental Description 2 | F2: Item Quantity | G2: Average Unit Bid | H2: Extended Amt
B3: 0000100000-N | C3: MOBILIZATION | F3: 4 | G3: 254250 | H3: 1017000
B4: 0036000000-E | C4: UNDERCUT EXCAVATION | F4: 170 | G4: 95 | H4: 16150
B5: 0057000000-E | C5: UNDERCUT EXCAVATION | F5: 120 | G5: 40 | H5: 4800
B6: 0106000000-E | C6: BORROW EXCAVATION | F6: 5163 | G6: 34.16424559 | H6: 176390
B7: 0196000000-E | C7: GEOTEXTILE SOIL STABILIZATION | F7: 340 | G7: 6.852941176 | H7: 2330
B8: 0241000000-E | C8: GENERIC GRADING ITEM (SY) | D8: SOIL CEMENT BASE (FULL DEPTH | E8: RECLAMATION) | F8: 120459 | G8: 3.461928955 | H8: 417020.5
B9: 1077000000-E | C9: 57 STONE | F9: 72 | G9: 25 | H9: 1800
B10: 1121000000-E | C10: AGGREGATE BASE COURSE | F10: 332 | G10: 37 | H10: 12284
B11: 1187000000-E | C11: PC FOR SOIL CEMENT BASE | F11: 3837 | G11: 158.3954913 | H11: 607763.5
B12: 1220000000-E | C12: INCIDENTAL STONE BASE | F12: 2060 | G12: 50.62135922 | H12: 104280
B13: 1243000000-E | C13: SHOULDER CONSTRUCTION | F13: 0.1 | G13: 60000 | H13: 6000
B14: 1245000000-E | C14: SHOULDER RECONSTRUCTION | F14: 56.85 | G14: 2492.559367 | H14: 141702
B15: 1264000000-E | C15: DITCHING | F15: 200 | G15: 40 | H15: 8000
B16: 1297000000-E | C16: MILL ASP PVMT *****" DTH | D16: (1-1/2") | F16: 291382 | G16: 2.833656094 | H16: 825676.38
D17: (2") | F17: 77608 | G17: 3.315927482 | H17: 257342.5
D18: (7") | F18: 450 | G18: 30 | H18: 13500
B19: 1308000000-E | C19: MILLN ASPHALT PVMT ***** - ***** | D19: (0" TO 1-1/2") | F19: 11777 | G19: 4.490914494 | H19: 52889.5
D20: (0" TO 2") | F20: 620 | G20: 7 | H20: 4340
B21: 1330000000-E | C21: INCIDENTAL MILLING | F21: 7923 | G21: 8.583238672 | H21: 68005
B22: 1491000000-E | C22: ASP CONC BASE CRS B25.0C | F22: 113 | G22: 115 | H22: 12995
B23: 1503000000-E | C23: ASP CONC INTR CRS I19.0C | F23: 5480 | G23: 46.47354015 | H23: 254675
B24: 1519000000-E | C24: ASP CONC SURF CRS S9.5B | F24: 9334 | G24: 52.02003428 | H24: 485555
B25: 1520000000-E | C25: ASP CONC SURF CRS S9.5B LEVEL | F25: 150 | G25: 55 | H25: 8250
B26: 1523000000-E | C26: ASP CONC SURF CRS S9.5C | F26: 42756 | G26: 45 | H26: 1924020
B27: 1524000000-E | C27: ASP CONC SURF CRS S9.5C LEVEL | F27: 5955 | G27: 51.11335013 | H27: 304380
B28: 1524200000-E | C28: ASP CONC SURF CRS S9.5D | F28: 16819 | G28: 88.2403829 | H28: 1484115
B29: 1575000000-E | C29: ASP FOR PLANT MIX | F29: 3858 | G29: 414.9714878 | H29: 1600960
B30: 1577000000-E | C30: POLYM MOD ASP BNDR FOR PLT MIX | F30: 1069 | G30: 904.5837231 | H30: 967000
B31: 1702000000-E | C31: SEALING PVMT CRACKS & JTS | F31: 94952 | G31: 1.9 | H31: 180408.8
B32: 1704000000-E | C32: PATCHING EXIST PAVEMENT | F32: 9522 | G32: 119.2197017 | H32: 1135210
B33: 1735000000-E | C33: REP JNT CONC PVT SLABS | F33: 290 | G33: 851.7241379 | H33: 247000
B34: 1736000000-E | C34: SELECT MATERIAL, CLASS IV | F34: 170 | G34: 91.52941176 | H34: 15560
B35: 1737000000-E | C35: PATCHING CONC PVMT SPALLS | F35: 2560 | G35: 118.75 | H35: 304000
B36: 1775500000-E | C36: AST, MAT COAT, *** STONE | D36: (67) | F36: 53372 | G36: 1 | H36: 53372
B37: 1803500000-E | C37: AST, DOUBLE SEAL | F37: 109489 | G37: 1.319591009 | H37: 144480.7
B38: 1820000000-E | C38: AST, FOG SEAL | F38: 128110 | G38: 0.5 | H38: 64055
B39: 1838000000-E | C39: EMULSION FOR AST | F39: 73975 | G39: 2.061963501 | H39: 152533.75
B40: 1838500000-N | C40: VACUUM TRUCK | F40: 10 | G40: 2500 | H40: 25000
B41: 1839140000-E | C41: ULTRATHIN BOND WEAR CRS | F41: 2082 | G41: 125 | H41: 260250
B42: 1840000000-E | C42: MILLED RUMBLE STRIPS | F42: 22810 | G42: 0.25 | H42: 5702.5
B43: 1881000000-E | C43: GENERIC PAVING ITEM (LF) | D43: JOINT CONSTRUCTION, REPAIR & SEALING | F43: 509334 | G43: 1.983452626 | H43: 1010239.86
B44: 1891000000-E | C44: GENERIC PAVING ITEM (SY) | D44: DIAMOND GRINDING PCC PAVEMENT | F44: 38531 | G44: 4.98 | H44: 191884.38
B45: 2600000000-N | C45: RETROFIT EXT CURB RAMPS | F45: 12 | G45: 970.8333333 | H45: 11650
B46: 2605000000-N | C46: CONCRETE CURB RAMPS | F46: 1 | G46: 3500 | H46: 3500
B47: 2612000000-E | C47: 6" CONCRETE DRIVEWAY | F47: 1247 | G47: 84.47473937 | H47: 105340
B48: 2613000000-N | C48: REM & REP CURB RAMPS | F48: 6 | G48: 3500 | H48: 21000
B49: 2830000000-N | C49: ADJ MANHOLES | F49: 50 | G49: 1006.4 | H49: 50320
B50: 2845000000-N | C50: ADJ METER OR VALVE BOXES | F50: 54 | G50: 936.1111111 | H50: 50550
B51: 3533000000-E | C51: CHN LK FENCE **" FABRIC | D51: (72") | F51: 310 | G51: 20 | H51: 6200
B52: 3539000000-E | C52: MET LINE PST **" CL FEN | D52: (72") | F52: 28 | G52: 90 | H52: 2520
B53: 3545000000-E | C53: MET TERM PST **" CL FEN | D53: (72") | F53: 24 | G53: 250 | H53: 6000
B54: 4400000000-E | C54: WORK ZONE SIGNS (STAT) | F54: 2412 | G54: 8.179933665 | H54: 19730
B55: 4413000000-E | C55: WORK ZONE ADV/GEN WARN SIGN | F55: 4794 | G55: 4.908510638 | H55: 23531.4
B56: 4423000000-N | C56: WZ DIGITAL SPD LMT SIGNS | F56: 6 | G56: 3600 | H56: 21600
B57: 4424000000-N | C57: WZ PRESENCE LIGHTING | F57: 24 | G57: 1058.333333 | H57: 25400
B58: 4434000000-N | C58: SEQ FLASH WARN LIGHTS | F58: 60 | G58: 132 | H58: 7920
B59: 4447000000-E | C59: PED CHANNEL DEVICES | F59: 24 | G59: 31 | H59: 744
B60: 4457000000-N | C60: TEMP TRAFFIC CONTROL (SP) | F60: 2 | G60: 67500 | H60: 135000
B61: 4510000000-N | C61: LAW ENFORCEMENT | F61: 4530 | G61: 61.15452539 | H61: 277030
B62: 4600000000-N | C62: GENERIC TRAFFIC CONTROL ITEM (EA) | D62: DOUBLE LANE CLOSURE | F62: 215 | G62: 1495.465116 | H62: 321525
D63: RAMP/LOOP CLOSURE | F63: 37 | G63: 750 | H63: 27750
D64: RAMP/LOOP CLOSURE DETOUR | F64: 55 | G64: 1000 | H64: 55000
D65: SINGLE LANE CLOSURE | F65: 62 | G65: 1300.806452 | H65: 80650
D66: TRIPLE LANE CLOSURE | F66: 148 | G66: 1730.27027 | H66: 256080
B67: 4685000000-E | C67: THERMO PVT MKG LINES 4"90 | F67: 453504 | G67: 0.5582091448 | H67: 253150.08
B68: 4688000000-E | C68: THERMO PVT MKG LINES,6"90 MILS | F68: 26456 | G68: 0.96 | H68: 25397.76
B69: 4695000000-E | C69: THERMO PVT MKG LINES 8"90 MILS | F69: 9264 | G69: 1.870299007 | H69: 17326.45
B70: 4700000000-E | C70: 12"WIDE THERMO 90 MILS | F70: 15665 | G70: 2.865221832 | H70: 44883.7
B71: 4720000000-E | C71: THERMO PVT MKG CHARACTER 90 | F71: 100 | G71: 107.2 | H71: 10720
B72: 4725000000-E | C72: THERMO PVT SYMBOL 90MILS | F72: 426 | G72: 124.0375587 | H72: 52840
B73: 4726100000-E | C73: HIP THERMO PVT MKG CHAR 120 MILS | F73: 40 | G73: 165 | H73: 6600
B74: 4726110000-E | C74: HIP THERMO PVT SYMBOL 90 MILS | F74: 56 | G74: 817.5892857 | H74: 45785
B75: 4770000000-E | C75: 4" COLD APPL PLSTIC LINES TYPE ** | D75: (II) | F75: 540 | G75: 7.5 | H75: 4050
B76: 4775000000-E | C76: 6" COLD APPL PLSTIC LINES TYPE ** | D76: (II) | F76: 2670 | G76: 6.687640449 | H76: 17856
B77: 4785000000-E | C77: 12" COLD PLSTIC LINES TYPE ** | D77: (II) | F77: 324 | G77: 13.6 | H77: 4406.4
B78: 4810000000-E | C78: PAINT PVMT MARKINGS 4" | F78: 445114 | G78: 0.1429891219 | H78: 63646.46
B79: 4815000000-E | C79: PAINT PVMT MARKINGS 6" | F79: 94678 | G79: 0.372652781 | H79: 35282.02
B80: 4820000000-E | C80: PAINT PVMT MARKINGS 8" | F80: 2028 | G80: 0.5318343195 | H80: 1078.56
B81: 4825000000-E | C81: PAINT PVMT MARKINGS 12" | F81: 13902 | G81: 0.7759315206 | H81: 10787
B82: 4835000000-E | C82: PAINT PVT MKG LINES 24" | F82: 1683 | G82: 2.992275698 | H82: 5036
B83: 4840000000-N | C83: PAINT PVT MKG CHARACTER | F83: 44 | G83: 55.27272727 | H83: 2432
B84: 4845000000-N | C84: PAINT PVT MKG SYMBOL | F84: 146 | G84: 69.52054795 | H84: 10150
B85: 4847030000-E | C85: POLYUREA LINES (6", 20 MILS) | F85: 118635 | G85: 1.124411009 | H85: 133394.5
B86: 4847050000-E | C86: POLYUREA LINES (8", 20 MILS) | F86: 461 | G86: 1.8 | H86: 829.8
B87: 4847070000-E | C87: POLYUREA LINES (12", 20 MILS) | F87: 14209 | G87: 2.328193399 | H87: 33081.3
B88: 4855000000-E | C88: LINE REMOVAL 6" WIDE | F88: 155378 | G88: 0.5326944612 | H88: 82769
B89: 4860000000-E | C89: LINE REMOVAL 8" WIDE | F89: 320 | G89: 4 | H89: 1280
B90: 4865000000-E | C90: LINE REMOVAL 12" WIDE | F90: 13280 | G90: 0.8 | H90: 10624
B91: 4870000000-E | C91: LINE REMOVAL 24" WIDE | F91: 40 | G91: 10 | H91: 400
B92: 4875000000-N | C92: REMOVAL OF SYMBL & CHARAC | F92: 84 | G92: 67.02380952 | H92: 5630
B93: 4890000000-E | C93: GENERIC PAVEMENT MARKING ITEM (LF) | D93: 9" COLD APPLIED PLASTIC PAVE- MENT MARK- | E93: -ING LINES TYPE II (WHITE ON BLACK) | F93: 45356 | G93: 9.75 | H93: 442221
D94: COLD APPLIED PLASTIC PAVEMENT | E94: MARKING LINES, TYPE II (9") | F94: 5370 | G94: 10.2 | H94: 54774
D95: THERMOPLASTIC PAVEMENT MARKING | E95: LINES (6", 90 MILS) (HRM) | F95: 34781 | G95: 0.98 | H95: 34085.38
B96: 4891000000-E | C96: GENERIC PVMT MARKING ITEM (LF) 1205 | D96: THERMOPLASTIC PAVEMENT MARKING | E96: LINES (16", 90 MILS) | F96: 44 | G96: 5 | H96: 220
E97: LINES (24", 90 MILS) | F97: 3083 | G97: 5.970645475 | H97: 18407.5
E98: LINES (24",90 MILS) | F98: 194 | G98: 14 | H98: 2716
B99: 4892000000-N | C99: GENERIC PVMT MARKING ITEM (EA) 1205 | D99: HEATED-IN-PLACE THERMOPLASTIC | E99: PAVEMENT MARKING CHARACTER (90 MILS) | F99: 4 | G99: 150 | H99: 600
B100: 4895000000-N | C100: GENERIC PAVEMENT MARKING ITEM (EA) | D100: NON-CAST IRON SNOWPLOWABLE | E100: PAVEMENT MARKER | F100: 15660 | G100: 49.15432631 | H100: 769756.75
E101: PAVEMENT MARKERS | F101: 1495 | G101: 39.5 | H101: 59052.5
B102: 4935000000-N | C102: FLEX DELINATR (CRYSTAL) | F102: 10 | G102: 47 | H102: 470
B103: 4940000000-N | C103: FLEX DELINATR (YELLOW) | F103: 13 | G103: 47 | H103: 611
B104: 5255000000-N | C104: PORTABLE LIGHTING | F104: 4 | G104: 271125 | H104: 1084500
B105: 6000000000-E | C105: TEMPORARY SILT FENCE | F105: 5875 | G105: 3.287574468 | H105: 19314.5
B106: 6009000000-E | C106: EROS CONTRL STONE CL B | F106: 484 | G106: 26.54958678 | H106: 12850
B107: 6012000000-E | C107: SEDIMENT CONTROL STONE | F107: 242 | G107: 34.05371901 | H107: 8241
B108: 6029000000-E | C108: SAFETY FENCE | F108: 200 | G108: 6.475 | H108: 1295
B109: 6036000000-E | C109: MATTING FOR EROS CONTROL | F109: 705 | G109: 2.521276596 | H109: 1777.5
B110: 6071010000-E | C110: WATTLE | F110: 6079 | G110: 9.44884027 | H110: 57439.5
B111: 6071020000-E | C111: POLYACRYLAMIDE (PAM) | F111: 21.1 | G111: 21.70616114 | H111: 458
B112: 6084000000-E | C112: SEEDING AND MULCHING | F112: 8.5 | G112: 3004.705882 | H112: 25540
B113: 6117500000-N | C113: CONC WASHOUT STRUCTURE | F113: 4 | G113: 1750 | H113: 7000
B114: 7444000000-E | C114: INDUCTIVE LOOP SAWCUT | F114: 3505 | G114: 11.20239658 | H114: 39264.4
B115: 8161000000-E | C115: GROOVING BRIDGE FLOORS | F115: 114465 | G115: 0.46 | H115: 52653.9
B116: 8182000000-E | C116: CLASS A CONCRETE (BRIDGE) | F116: 2.3 | G116: 3500 | H116: 8050
B117: 8559000000-E | C117: SURFACE PREP, CLASS II | F117: 34.1 | G117: 375 | H117: 12787.5
B118: 8594000000-E | C118: RIP RAP B | F118: 1643 | G118: 100 | H118: 164300
B119: 8622000000-E | C119: GEOTEXTILE FOR DRAINAGE | F119: 3651 | G119: 5.76 | H119: 21029.76
B120: 8660000000-E | C120: CONCRETE REPAIRS | F120: 42.6 | G120: 935 | H120: 39831
B121: 8664000000-E | C121: SHOTCRETE REPAIRS | F121: 146.4 | G121: 747.5812842 | H121: 109445.9
B122: 8860000000-N | C122: GENERIC STRUCTURE ITEM (LS) | D122: CLEANING AND REPAINTING OF | E122: BRIDGE 590221 | F122: 1 | G122: 208000 | H122: 208000
E123: BRIDGE 590222 | F123: 1 | G123: 208000 | H123: 208000
E124: BRIDGE 590227 | F124: 1 | G124: 510500 | H124: 510500
E125: BRIDGE 590230 | F125: 1 | G125: 172000 | H125: 172000
E126: BRIDGE 590231 | F126: 1 | G126: 172000 | H126: 172000
E127: BRIDGE 590241 | F127: 1 | G127: 240000 | H127: 240000
E128: BRIDGE 590243 | F128: 1 | G128: 240000 | H128: 240000
D129: PAINTING CONTAINMENT FOR | E129: BRIDGE 590221 | F129: 1 | G129: 47000 | H129: 47000
E130: BRIDGE 590222 | F130: 1 | G130: 47000 | H130: 47000
E131: BRIDGE 590227 | F131: 1 | G131: 205500 | H131: 205500
E132: BRIDGE 590230 | F132: 1 | G132: 38000 | H132: 38000
E133: BRIDGE 590231 | F133: 1 | G133: 38000 | H133: 38000
E134: BRIDGE 590241 | F134: 1 | G134: 80000 | H134: 80000
E135: BRIDGE 590243 | F135: 1 | G135: 80000 | H135: 80000
D136: POLLUTION CONTROL | F136: 1 | G136: 140000 | H136: 140000
D137: REPAIR OF EXISTING DECK DRAINS | F137: 1 | G137: 2300 | H137: 2300
D138: REPLACING MISSING UTILITY COVERS | F138: 1 | G138: 2750 | H138: 2750
B139: 8867000000-E | C139: GENERIC STRUCTURE ITEM (LF) | D139: FOAM JOINT SEALS FOR PRE- SERVATION | F139: 2558 | G139: 75 | H139: 191850
D140: FOAM JOINT SEALS FOR PRESERVA-TION | F140: 238 | G140: 100 | H140: 23800
B141: 8881000000-E | C141: GENERIC STRUCTURE ITEM (CY) | D141: POLYESTER POLYMER CONCRETE | E141: MATERIALS | F141: 659.2 | G141: 2125 | H141: 1400800
B142: 8882000000-E | C142: GENERIC STRUCTURE ITEM (CF) | D142: ELASTOMERIC CONCRETE FOR PRE- SERVATION | F142: 59.5 | G142: 1000 | H142: 59500
B143: 8892000000-E | C143: GENERIC STRUCTURE ITEM (SF) | D143: BRIDGE JOINT DEMOLITION | F143: 238 | G143: 105 | H143: 24990
D144: CONCRETE DECK REPAIR FOR | E144: SILANE DECK TREATMENT | F144: 5 | G144: 700 | H144: 3500
D145: EPOXY COATING | F145: 7966 | G145: 23.0237886 | H145: 183407.5
D146: EPOXY COATING CONCRETE GIRDER ENDS | F146: 1244 | G146: 40 | H146: 49760
B147: 8893000000-E | C147: GENERIC STRUCTURE ITEM (SY) | D147: CONCRETE DECK REPAIR FOR | E147: POLYESTER POLYMER CONCRETE OVERLAY | F147: 34.1 | G147: 350 | H147: 11935
D148: GABION MATTRESS (1'-0" THICK) | F148: 3651 | G148: 82 | H148: 299382
D149: PLACING & FINISHING POLYESTER | E149: POLYMER CONCRETE OVERLAY | F149: 13535 | G149: 44 | H149: 595540
D150: SCARIFYING BRIDGE DECK | F150: 13535 | G150: 19 | H150: 257165
D151: SHOTBLASTING BRIDGE DECK | F151: 17888 | G151: 8.216737478 | H151: 146981
D152: SILANE DECK TREATMENT | F152: 4353 | G152: 10.5 | H152: 45706.5
B153: 8897000000-N | C153: GENERIC STRUCTURE ITEM (EA) | D153: TYPE I BRIDGE JACKING BRIDGE 590221 | F153: 1 | G153: 7500 | H153: 7500
D154: TYPE I BRIDGE JACKING BRIDGE 590230 | F154: 1 | G154: 7500 | H154: 7500
D155: TYPE I BRIDGE JACKING BRIDGE 590231 | F155: 1 | G155: 7500 | H155: 7500

Sheet ITEMS - DIV 11
B1: 2020 BID AVERAGES - DIVISION 11
B2: Item # | C2: Item Description | D2: Item Supplemental Description | E2: Item Supplemental Description 2 | F2: Item Quantity | G2: Average Unit Bid | H2: Extended Amt
B3: 0000100000-N | C3: MOBILIZATION | F3: 4 | G3: 382341.695 | H3: 1529366.78
B4: 0000400000-N | C4: CONSTRUCTION SURVEYING | F4: 4 | G4: 119321.7825 | H4: 477287.13
B5: 0001000000-E | C5: CLEARING & GRUBBING | F5: 1 | G5: 1400000 | H5: 1400000
B6: 0008000000-E | C6: SUPP CLEARING & GRUBBING | F6: 2 | G6: 13000 | H6: 26000
B7: 0022000000-E | C7: UNCLASSIFIED EXCAVATION | F7: 220830 | G7: 6.1 | H7: 1347063
B8: 0030000000-N | C8: TYPE II MODIFIED APPR ********** | D8: (15+07.00 -L-) | F8: 1 | G8: 8972.99 | H8: 8972.99
D9: (15+36.00 -L-) | F9: 1 | G9: 10185.15 | H9: 10185.15
D10: (16+09.00 -L-) | F10: 1 | G10: 8000 | H10: 8000
B11: 0036000000-E | C11: UNDERCUT EXCAVATION | F11: 3300 | G11: 14.96409091 | H11: 49381.5
B12: 0043000000-N | C12: GRADING | F12: 3 | G12: 155210.5967 | H12: 465631.79
B13: 0050000000-E | C13: SUPP CLEARING & GRUBBING | F13: 3 | G13: 4.35 | H13: 13.05
B14: 0057000000-E | C14: UNDERCUT EXCAVATION | F14: 550 | G14: 1.05 | H14: 577.5
B15: 0098000000-E | C15: PRE-SPLITTING OF ROCK | F15: 225 | G15: 50.48 | H15: 11358
B16: 0106000000-E | C16: BORROW EXCAVATION | F16: 35080 | G16: 0.01 | H16: 350.8
B17: 0134000000-E | C17: DRAINAGE DITCH EXCAVATION | F17: 19631 | G17: 7.817550303 | H17: 153466.33
B18: 0141000000-E | C18: BERM DITCH CONSTRUCTION | F18: 400 | G18: 4 | H18: 1600
B19: 0156000000-E | C19: REMOVAL OF EXT ASPHALT PVMT | F19: 32700 | G19: 4.5 | H19: 147150
B20: 0177000000-E | C20: BREAKING OF EXT ASPH PVMT | F20: 810 | G20: 3.5 | H20: 2835
B21: 0192000000-N | C21: PROOF ROLLING | F21: 20 | G21: 300 | H21: 6000
B22: 0195000000-E | C22: SELECT GRANULAR MATERIAL | F22: 3200 | G22: 26.50625 | H22: 84820
B23: 0196000000-E | C23: GEOTEXTILE SOIL STABILIZATION | F23: 9350 | G23: 1.499786096 | H23: 14023
B24: 0199000000-E | C24: TEMPORARY SHORING | F24: 16000 | G24: 45 | H24: 720000
B25: 0223000000-E | C25: ROCK PLATING | F25: 3900 | G25: 41 | H25: 159900
B26: 0318000000-E | C26: FND CONDIT MATL MINOR STRS | F26: 1810 | G26: 37.26668508 | H26: 67452.7
B27: 0320000000-E | C27: FND CONDIT GEOTEXTILE | F27: 5830 | G27: 3.414305317 | H27: 19905.4
B28: 0335200000-E | C28: 15" DRAINAGE PIPE | F28: 324 | G28: 45.68098765 | H28: 14800.64
B29: 0335300000-E | C29: 18" DRAINAGE PIPE | F29: 28 | G29: 52 | H29: 1456
B30: 0335850000-E | C30: **" DRAINAGE PIPE ELBOW | D30: (15") | F30: 6 | G30: 402.56 | H30: 2415.36
B31: 0366000000-E | C31: 15" RC PIPE CULV III | F31: 6992 | G31: 43 | H31: 300656
B32: 0372000000-E | C32: 18" RC PIPE CULV III | F32: 1140 | G32: 47.5 | H32: 54150
B33: 0378000000-E | C33: 24" RC PIPE CULV III | F33: 1768 | G33: 62 | H33: 109616
B34: 0384000000-E | C34: 30" RC PIPE CULV III | F34: 2060 | G34: 80 | H34: 164800
B35: 0390000000-E | C35: 36" RC PIPE CULV III | F35: 20 | G35: 112 | H35: 2240
B36: 0396000000-E | C36: 42" RC PIPE CULV III | F36: 1244 | G36: 133 | H36: 165452
B37: 0414000000-E | C37: 60" RC PIPE CULV III | F37: 520 | G37: 245 | H37: 127400
B38: 0420000000-E | C38: 66" RC PIPE CULV III | F38: 64 | G38: 346 | H38: 22144
B39: 0448300000-E | C39: 18" RCP CULV CLASS IV | F39: 144 | G39: 62.16 | H39: 8951.04
B40: 0448400000-E | C40: 24" RCP CULV CLASS IV | F40: 104 | G40: 77.07 | H40: 8015.28
B41: 0448500000-E | C41: 30" RCP CULV CLASS IV | F41: 196 | G41: 88 | H41: 17248
B42: 0448700000-E | C42: 42" RCP CULV CLASS IV | F42: 380 | G42: 146 | H42: 55480
B43: 0570000000-E | C43: 6" CS PIPE 0.064" SPR BOX | F43: 32 | G43: 35 | H43: 1120
B44: 0576000000-E | C44: **" CS PIPE CULV *****" | D44: (36", 0.079") | F44: 40 | G44: 115 | H44: 4600
D45: (42", 0.109") | F45: 36 | G45: 148 | H45: 5328
D46: (60", 0.138") | F46: 96 | G46: 216 | H46: 20736
B47: 0582000000-E | C47: 15" CS PIPE CULV 0.064" | F47: 516 | G47: 55.83992248 | H47: 28813.4
B48: 0588000000-E | C48: 18" CS PIPE CULV 0.064" | F48: 268 | G48: 60 | H48: 16080
B49: 0594000000-E | C49: 24" CS PIPE CULV 0.064" | F49: 536 | G49: 66 | H49: 35376
B50: 0600000000-E | C50: 30" CS PIPE CULV 0.079" | F50: 224 | G50: 91 | H50: 20384
B51: 0636000000-E | C51: **" CS ELBOW *****" THICK | D51: (15", 0.064") | F51: 24 | G51: 384.3116667 | H51: 9223.48
D52: (18", 0.064") | F52: 6 | G52: 465 | H52: 2790
D53: (24", 0.064") | F53: 18 | G53: 570 | H53: 10260
D54: (30", 0.079") | F54: 10 | G54: 655 | H54: 6550
D55: (36", 0.079") | F55: 4 | G55: 795 | H55: 3180
D56: (42", 0.109") | F56: 2 | G56: 1100 | H56: 2200
D57: (6", 0.064") | F57: 4 | G57: 35 | H57: 140
D58: (60", 0.138") | F58: 2 | G58: 2750 | H58: 5500
B59: 0973100000-E | C59: **"WLD STL PIPE GRAD B IN SOIL | D59: (30", 0.500") | F59: 92 | G59: 600 | H59: 55200
B60: 0973300000-E | C60: **"WLD STL PIPE GRAD B NOT IN SOIL | D60: (30", 0.500") | F60: 92 | G60: 2620 | H60: 241040
B61: 0986000000-E | C61: GENERIC PIPE ITEM (LF) | D61: 24" PIPE REHABILITATION CIPP LINER | F61: 567 | G61: 400 | H61: 226800
D62: 30" PIPE REHABILITATION CIPP LINER | F62: 180 | G62: 500 | H62: 90000
D63: 36" PIPE REHAB CEMENTITIOUS/ | E63: GEOPOLYMER SPRAY LINER | F63: 440 | G63: 200 | H63: 88000
D64: 48" PIPE REHAB CEMENTITIOUS/ | E64: GEOPOLYMER SPRAY LINER | F64: 317 | G64: 300 | H64: 95100
D65: 66" PIPE REHAB CEMENTITIOUS/ | E65: GEOPOLYMER SPRAY LINER | F65: 698 | G65: 400 | H65: 279200
D66: PRE INSTALLATION INSPECTION | F66: 2202 | G66: 1 | H66: 2202
B67: 0995000000-E | C67: PIPE REMOVAL | F67: 1946 | G67: 32.07716341 | H67: 62422.16
B68: 1011000000-N | C68: FINE GRADING | F68: 1 | G68: 682000 | H68: 682000
B69: 1044000000-E | C69: LIME TRTD SOIL (SLURRY) | F69: 46500 | G69: 3 | H69: 139500
B70: 1066000000-E | C70: LIME FOR LIME TREATED SOIL | F70: 560 | G70: 200 | H70: 112000
B71: 1099500000-E | C71: SHALLOW UNDERCUT | F71: 550 | G71: 12.70363636 | H71: 6987
B72: 1099700000-E | C72: CLASS IV SUBGRD STABILIZATION | F72: 1100 | G72: 18.34909091 | H72: 20184
B73: 1110000000-E | C73: STABILIZER AGGREGATE | F73: 500 | G73: 27 | H73: 13500
B74: 1115000000-E | C74: GEOTEXTILE FOR PVMT STABILIZ | F74: 23700 | G74: 2.5 | H74: 59250
B75: 1121000000-E | C75: AGGREGATE BASE COURSE | F75: 54115 | G75: 28 | H75: 1515220
B76: 1176000000-E | C76: SOIL CEMENT BASE | F76: 46500 | G76: 3 | H76: 139500
B77: 1187000000-E | C77: PC FOR SOIL CEMENT BASE | F77: 1310 | G77: 200 | H77: 262000
B78: 1209000000-E | C78: ASPHALT CURING SEAL | F78: 13950 | G78: 3 | H78: 41850
B79: 1220000000-E | C79: INCIDENTAL STONE BASE | F79: 620 | G79: 27.76532258 | H79: 17214.5
B80: 1297000000-E | C80: MILL ASP PVMT *****" DTH | D80: (1-1/2") | F80: 1900 | G80: 9.5 | H80: 18050
B81: 1330000000-E | C81: INCIDENTAL MILLING | F81: 3470 | G81: 11.61106628 | H81: 40290.4
B82: 1491000000-E | C82: ASP CONC BASE CRS B25.0C | F82: 19850 | G82: 52.64509824 | H82: 1045005.2
B83: 1503000000-E | C83: ASP CONC INTR CRS I19.0C | F83: 31745 | G83: 50 | H83: 1587250
B84: 1519000000-E | C84: ASP CONC SURF CRS S9.5B | F84: 1300 | G84: 86.87246154 | H84: 112934.2
B85: 1523000000-E | C85: ASP CONC SURF CRS S9.5C | F85: 25915 | G85: 50 | H85: 1295750
B86: 1575000000-E | C86: ASP FOR PLANT MIX | F86: 4025 | G86: 692.9808696 | H86: 2789248
B87: 1693000000-E | C87: ASPH PLT MIX PVMT REPAIR | F87: 1888 | G87: 200 | H87: 377600
B88: 2000000000-N | C88: RIGHT-OF-WAY MARKERS | F88: 13 | G88: 200 | H88: 2600
B89: 2020000000-N | C89: CONTROL-OF-ACCESS MARKERS | F89: 26 | G89: 200 | H89: 5200
B90: 2022000000-E | C90: SUBDRAIN EXCAVATION | F90: 3595.8 | G90: 26.20201068 | H90: 94217.19
B91: 2026000000-E | C91: GEOTEXTILE FOR SUBSURF DRNS | F91: 7900 | G91: 3.311392405 | H91: 26160
B92: 2033000000-E | C92: SUBDRAIN FINE AGGREGATE | F92: 504 | G92: 55 | H92: 27720
B93: 2036000000-E | C93: SUBDRAIN COARSE AGGREGATE | F93: 1328.6 | G93: 57.95094837 | H93: 76993.63
B94: 2044000000-E | C94: 6" PERF SUBDRN PIPE | F94: 10900 | G94: 11.41504587 | H94: 124424
B95: 2070000000-N | C95: SUBDRN PIPE OUTLET | F95: 24 | G95: 268.8383333 | H95: 6452.12
B96: 2077000000-E | C96: 6" OUTLET PIPE | F96: 144 | G96: 15.17166667 | H96: 2184.72
B97: 2143000000-E | C97: BLOTTING SAND | F97: 20 | G97: 50 | H97: 1000
B98: 2209000000-E | C98: ENDWALLS | F98: 18 | G98: 2000 | H98: 36000
B99: 2220000000-E | C99: REINFORCED ENDWALLS | F99: 16.8 | G99: 2000 | H99: 33600
B100: 2253000000-E | C100: PIPE COLLARS | F100: 1.76 | G100: 1000 | H100: 1760
B101: 2275000000-E | C101: FLOWABLE FILL | F101: 468 | G101: 200 | H101: 93600
B102: 2286000000-N | C102: MASNRY DRAINAGE STRUCT | F102: 154 | G102: 1971.190325 | H102: 303563.31
B103: 2297000000-E | C103: MASNRY DRAINAGE STRUCT | F103: 30.83 | G103: 2000 | H103: 61660
B104: 2308000000-E | C104: MASNRY DRAINAGE STRUCT | F104: 218 | G104: 300 | H104: 65400
B105: 2364000000-N | C105: FRAME W/2GRTS 840.16 STD | F105: 17 | G105: 700 | H105: 11900
B106: 2364200000-N | C106: FRAME W/2GRTS 840.20 STD | F106: 44 | G106: 800 | H106: 35200
B107: 2365000000-N | C107: FRAME W/2GRTS 840.22 STD | F107: 48 | G107: 700 | H107: 33600
B108: 2367000000-N | C108: FRAME W/2GRTS 840.29 STD | F108: 7 | G108: 451.18 | H108: 3158.26
B109: 2374000000-N | C109: FRAME-GRT-HD 840.03 ** | D109: (F) | F109: 5 | G109: 700 | H109: 3500
D110: (G) | F110: 3 | G110: 700 | H110: 2100
B111: 2396000000-N | C111: FRAME W/COVER STD 840.54 | F111: 24 | G111: 600 | H111: 14400
B112: 2451000000-N | C112: CONC TRANS SECT FOR DROP INLET | F112: 17 | G112: 700 | H112: 11900
B113: 2462000000-E | C113: **" SLUICE GATE | D113: (8") | F113: 1 | G113: 3000 | H113: 3000
B114: 2473000000-N | C114: GENERIC DRAINAGE ITEM (EA) | D114: 6" PVC CLEANOUTS | F114: 1 | G114: 1000 | H114: 1000
D115: REBAR TRASH RACK | F115: 1 | G115: 1950 | H115: 1950
D116: REMOVEABLE ORIFICE TRASH RACK | F116: 1 | G116: 325 | H116: 325
B117: 2484000000-E | C117: GENERIC DRAINAGE ITEM (LF) | D117: 6" PIPE - PERFORATED WITH | E117: FILTER SOCK | F117: 50 | G117: 17 | H117: 850
B118: 2492000000-E | C118: GENERIC DRAINAGE ITEM (TON) | D118: WASHED 57 STONE | F118: 6 | G118: 45 | H118: 270
B119: 2495000000-E | C119: GENERIC DRAINAGE ITEM (CY) | D119: ANTI-FLOTATION CONCRETE | F119: 3.3 | G119: 500 | H119: 1650
D120: ENGINEERED SOIL MEDIA | F120: 2 | G120: 600 | H120: 1200
B121: 2538000000-E | C121: **'-**" CONCRETE CURB & GUTTER | D121: (2'-9") | F121: 14860 | G121: 28 | H121: 416080
B122: 2549000000-E | C122: 2'-6" CONC CURB & GUTTER | F122: 1550 | G122: 27 | H122: 41850
B123: 2556000000-E | C123: SHOULDER BERM GUTTER | F123: 6780 | G123: 26.33292773 | H123: 178537.25
B124: 2591000000-E | C124: 4" CONCRETE SIDEWALK | F124: 250 | G124: 42 | H124: 10500
B125: 2605000000-N | C125: CONCRETE CURB RAMPS | F125: 2 | G125: 1750 | H125: 3500
B126: 2619000000-E | C126: 4" CONCRETE PAVED DITCH | F126: 166 | G126: 73 | H126: 12118
B127: 2655000000-E | C127: 5" MONO CONC ISLDS (KEY IN) | F127: 3300 | G127: 68 | H127: 224400
B128: 2724000000-E | C128: PC REINF BARRIER SNGL FC | F128: 1690 | G128: 75 | H128: 126750
B129: 2830000000-N | C129: ADJ MANHOLES | F129: 1 | G129: 1200 | H129: 1200
B130: 2845000000-N | C130: ADJ METER OR VALVE BOXES | F130: 1 | G130: 600 | H130: 600
B131: 2875000000-N | C131: CONVERT CB TO DI | F131: 1 | G131: 1300 | H131: 1300
B132: 2938000000-N | C132: CONVERT DI TO JB W/MH | F132: 1 | G132: 1500 | H132: 1500
B133: 3030000000-E | C133: STL BEAM GUARDRAIL | F133: 15250 | G133: 15.99625443 | H133: 243942.88
B134: 3045000000-E | C134: SBGR SHOP CURVED | F134: 812.5 | G134: 16.98707692 | H134: 13802
B135: 3140000000-E | C135: 25' CLR SPAN GR SECTIONS | F135: 1 | G135: 2000 | H135: 2000
B136: 3150000000-N | C136: ADDIT GUARDRAIL POSTS | F136: 30 | G136: 16.52 | H136: 495.6
B137: 3195000000-N | C137: GR END TYPE AT-1 | F137: 1 | G137: 520 | H137: 520
B138: 3210000000-N | C138: GR END TYPE CAT-1 | F138: 13 | G138: 620 | H138: 8060
B139: 3215000000-N | C139: GR ANCHOR TYPE III | F139: 12 | G139: 1802.386667 | H139: 21628.64
B140: 3287000000-N | C140: GR END TYPE TL-3 | F140: 22 | G140: 2803.565455 | H140: 61678.44
B141: 3288000000-N | C141: GR END TYPE TL-2 | F141: 7 | G141: 2750 | H141: 19250
B142: 3317000000-N | C142: GR ANCHOR TYPE B-77 | F142: 2 | G142: 1700 | H142: 3400
B143: 3360000000-E | C143: REMOVE EXISTING GUARDRAIL | F143: 10820 | G143: 1 | H143: 10820
B144: 3380000000-E | C144: TEMP STL BM GUARDRAIL | F144: 1700 | G144: 7.5 | H144: 12750
B145: 3389150000-N | C145: TEMP GDRL END UNITS ***** | D145: (TL-3) | F145: 3 | G145: 2100 | H145: 6300
B146: 3436000000-N | C146: GENERIC GUARDRAIL ITEM (EA) 862 | D146: TEMPORARY GUARDRAIL END UNITS, | E146: TYPE CAT-1 | F146: 1 | G146: 515 | H146: 515
B147: 3503000000-E | C147: WOVEN WIRE FENCE 47" FAB | F147: 6400 | G147: 4.5 | H147: 28800
B148: 3509000000-E | C148: 4" TIMBER POSTS 7'-6"LONG | F148: 370 | G148: 26 | H148: 9620
B149: 3515000000-E | C149: 5" TIMBER POSTS 8'-0"LONG | F149: 96 | G149: 32 | H149: 3072
B150: 3557000000-E | C150: ADDITIONAL BARBED WIRE | F150: 100 | G150: 1.1 | H150: 110
B151: 3563000000-E | C151: TEMP **" WW FENCE W/POSTS | D151: (47") | F151: 400 | G151: 16.015 | H151: 6406
B152: 3569000000-E | C152: BARBED WIRE FENCE RESET | F152: 250 | G152: 7 | H152: 1750
B153: 3575000000-E | C153: GENERIC FENCING ITEM (LF) | D153: TEMPORARY 5 STRAND BARBED WIRE | E153: FENCE WITH POSTS | F153: 500 | G153: 7 | H153: 3500
B154: 3578000000-N | C154: GENERIC FENCING ITEM (EA) | D154: RESET EXISTING GATE | F154: 1 | G154: 500 | H154: 500
B155: 3628000000-E | C155: RIP RAP, CLASS I | F155: 2305 | G155: 42.17967462 | H155: 97224.15
B156: 3635000000-E | C156: RIP RAP, CLASS II | F156: 385 | G156: 50.41324675 | H156: 19409.1
B157: 3649000000-E | C157: RIP RAP, CLASS B | F157: 3190 | G157: 36.12387147 | H157: 115235.15
B158: 3656000000-E | C158: GEOTEXTILE FOR DRAINGE | F158: 15570 | G158: 2.337174053 | H158: 36389.8
B159: 4054000000-E | C159: PLN CONC FOUNDTN | F159: 1 | G159: 10.5 | H159: 10.5
B160: 4060000000-E | C160: SUPPORT, BREAKAWAY STL BM | F160: 492 | G160: 16 | H160: 7872
B161: 4072000000-E | C161: SUPPORT, 3-LB STL U-CHAN | F161: 1695 | G161: 9.5 | H161: 16102.5
B162: 4096000000-N | C162: SIGN ERECTION, TYPE D | F162: 6 | G162: 155 | H162: 930
B163: 4102000000-N | C163: SIGN ERECTION, TYPE E | F163: 70 | G163: 105 | H163: 7350
B164: 4108000000-N | C164: SIGN ERECTION, TYPE F | F164: 16 | G164: 200 | H164: 3200
B165: 4110000000-N | C165: SIGN ERECTION, TYPE *** (GRD MTD) | D165: (A) | F165: 2 | G165: 2000 | H165: 4000
B166: 4116100000-N | C166: SIGN ERECT, RELOC ** GRD MTD | D166: (D) | F166: 5 | G166: 155 | H166: 775
D167: (E) | F167: 3 | G167: 155 | H167: 465
B168: 4155000000-N | C168: DISPOSE SIGN SYST U-CHAN | F168: 58 | G168: 1.05 | H168: 60.9
B169: 4158000000-N | C169: DISPOSE SIGN SYST WOOD | F169: 7 | G169: 1.05 | H169: 7.35
B170: 4192000000-N | C170: DISPOSE SUPPORT, U-CHAN | F170: 5 | G170: 1.05 | H170: 5.25
B171: 4400000000-E | C171: WORK ZONE SIGNS (STAT) | F171: 1373 | G171: 8.199941733 | H171: 11258.52
B172: 4405000000-E | C172: WORK ZONE SIGNS (PORT) | F172: 1069 | G172: 17.25439663 | H172: 18444.95
B173: 4410000000-E | C173: WORK ZONE SIGNS (BARR) | F173: 578 | G173: 7.296608997 | H173: 4217.44
B174: 4415000000-N | C174: FLASHING ARROW BOARD | F174: 3 | G174: 3650 | H174: 10950
B175: 4420000000-N | C175: PORTABLE CHANGE MSG SIGN | F175: 4 | G175: 14000 | H175: 56000
B176: 4430000000-N | C176: DRUMS | F176: 753 | G176: 45.86308101 | H176: 34534.9
B177: 4435000000-N | C177: CONES | F177: 718 | G177: 21 | H177: 15078
B178: 4445000000-E | C178: BARRICADES (TYPE III) | F178: 456 | G178: 22.47666667 | H178: 10249.36
B179: 4455000000-N | C179: FLAGGER | F179: 540 | G179: 246.7222222 | H179: 133230
B180: 4465000000-N | C180: TEMPORARY CRASH CUSHIONS | F180: 18 | G180: 10000 | H180: 180000
B181: 4470000000-N | C181: REM & RES CRASH CUSHION | F181: 25 | G181: 3000 | H181: 75000
B182: 4480000000-N | C182: TMA | F182: 2 | G182: 15000 | H182: 30000
B183: 4485000000-E | C183: PORT CONC BARRIER | F183: 8990 | G183: 36 | H183: 323640
B184: 4500000000-E | C184: REM & RES PORT CONC BARRIER | F184: 9160 | G184: 8 | H184: 73280
B185: 4510000000-N | C185: LAW ENFORCEMENT | F185: 800 | G185: 84 | H185: 67200
B186: 4516000000-N | C186: SKINNY DRUM | F186: 500 | G186: 33 | H186: 16500
B187: 4520000000-N | C187: TUBULAR MARKERS (FIXED) | F187: 46 | G187: 80 | H187: 3680
B188: 4650000000-N | C188: TEMP RAISED PVMT MRKS | F188: 1302 | G188: 13 | H188: 16926
B189: 4695000000-E | C189: THERMO PVT MKG LINES 8"90 MILS | F189: 300 | G189: 3.35 | H189: 1005
B190: 4700000000-E | C190: 12"WIDE THERMO 90 MILS | F190: 675 | G190: 6.3 | H190: 4252.5
B191: 4720000000-E | C191: THERMO PVT MKG CHARACTER 90 | F191: 8 | G191: 150 | H191: 1200
B192: 4725000000-E | C192: THERMO PVT SYMBOL 90MILS | F192: 97 | G192: 230 | H192: 22310
B193: 4810000000-E | C193: PAINT PVMT MARKINGS 4" | F193: 479190 | G193: 0.364046203 | H193: 174447.3
B194: 4820000000-E | C194: PAINT PVMT MARKINGS 8" | F194: 1418 | G194: 0.55 | H194: 779.9
B195: 4825000000-E | C195: PAINT PVMT MARKINGS 12" | F195: 23060 | G195: 1 | H195: 23060
B196: 4835000000-E | C196: PAINT PVT MKG LINES 24" | F196: 2388 | G196: 5.25 | H196: 12537
B197: 4840000000-N | C197: PAINT PVT MKG CHARACTER | F197: 32 | G197: 79 | H197: 2528
B198: 4845000000-N | C198: PAINT PVT MKG SYMBOL | F198: 324 | G198: 95 | H198: 30780
B199: 4847010000-E | C199: POLYUREA LINES (4", 20 MILS) | F199: 81782 | G199: 1.5 | H199: 122673
B200: 4847050000-E | C200: POLYUREA LINES (8", 20 MILS) | F200: 2698 | G200: 2.5 | H200: 6745
... 133 more rows

Sheet ITEMS - DIV 12
B1: 2020 BID AVERAGES - DIVISION 12
B2: Item # | C2: Item Description | D2: Item Supplemental Description | E2: Item Supplemental Description 2 | F2: Item Quantity | G2: Average Unit Bid | H2: Extended Amt
B3: 0000100000-N | C3: MOBILIZATION | F3: 1 | G3: 85000 | H3: 85000
B4: 0000400000-N | C4: CONSTRUCTION SURVEYING | F4: 1 | G4: 15800 | H4: 15800
B5: 0008000000-E | C5: SUPP CLEARING & GRUBBING | F5: 2 | G5: 1 | H5: 2
B6: 0030000000-N | C6: TYPE II MODIFIED APPR ********** | D6: (15+74.00 -L-) | F6: 1 | G6: 14000 | H6: 14000
D7: (16+08.00 -L-) | F7: 1 | G7: 13000 | H7: 13000
B8: 0043000000-N | C8: GRADING | F8: 1 | G8: 156055 | H8: 156055
B9: 0057000000-E | C9: UNDERCUT EXCAVATION | F9: 900 | G9: 4 | H9: 3600
B10: 0134000000-E | C10: DRAINAGE DITCH EXCAVATION | F10: 6 | G10: 11 | H10: 66
B11: 0195000000-E | C11: SELECT GRANULAR MATERIAL | F11: 800 | G11: 1 | H11: 800
B12: 0196000000-E | C12: GEOTEXTILE SOIL STABILIZATION | F12: 1400 | G12: 1 | H12: 1400
B13: 0318000000-E | C13: FND CONDIT MATL MINOR STRS | F13: 60 | G13: 45 | H13: 2700
B14: 0320000000-E | C14: FND CONDIT GEOTEXTILE | F14: 540 | G14: 1.5 | H14: 810
B15: 0335200000-E | C15: 15" DRAINAGE PIPE | F15: 44 | G15: 55 | H15: 2420
B16: 0366000000-E | C16: 15" RC PIPE CULV III | F16: 128 | G16: 55 | H16: 7040
B17: 0372000000-E | C17: 18" RC PIPE CULV III | F17: 56 | G17: 70 | H17: 3920
B18: 0448300000-E | C18: 18" RCP CULV CLASS IV | F18: 52 | G18: 80 | H18: 4160
B19: 0448600000-E | C19: 36" RCP CULV CLASS IV | F19: 120 | G19: 115 | H19: 13800
B20: 0636000000-E | C20: **" CS ELBOW *****" THICK | D20: (15", 0.064") | F20: 2 | G20: 200 | H20: 400
B21: 0995000000-E | C21: PIPE REMOVAL | F21: 21 | G21: 13 | H21: 273
B22: 1099500000-E | C22: SHALLOW UNDERCUT | F22: 200 | G22: 11 | H22: 2200
B23: 1099700000-E | C23: CLASS IV SUBGRD STABILIZATION | F23: 400 | G23: 25 | H23: 10000
B24: 1121000000-E | C24: AGGREGATE BASE COURSE | F24: 170 | G24: 29 | H24: 4930
B25: 1220000000-E | C25: INCIDENTAL STONE BASE | F25: 100 | G25: 29 | H25: 2900
B26: 1330000000-E | C26: INCIDENTAL MILLING | F26: 340 | G26: 15 | H26: 5100
B27: 1491000000-E | C27: ASP CONC BASE CRS B25.0C | F27: 610 | G27: 80 | H27: 48800
B28: 1519000000-E | C28: ASP CONC SURF CRS S9.5B | F28: 590 | G28: 80 | H28: 47200
B29: 1575000000-E | C29: ASP FOR PLANT MIX | F29: 70 | G29: 495 | H29: 34650
B30: 2022000000-E | C30: SUBDRAIN EXCAVATION | F30: 136 | G30: 1 | H30: 136
B31: 2026000000-E | C31: GEOTEXTILE FOR SUBSURF DRNS | F31: 400 | G31: 1 | H31: 400
B32: 2036000000-E | C32: SUBDRAIN COARSE AGGREGATE | F32: 68 | G32: 5 | H32: 340
B33: 2044000000-E | C33: 6" PERF SUBDRN PIPE | F33: 400 | G33: 3 | H33: 1200
B34: 2070000000-N | C34: SUBDRN PIPE OUTLET | F34: 2 | G34: 20 | H34: 40
B35: 2077000000-E | C35: 6" OUTLET PIPE | F35: 12 | G35: 5 | H35: 60
B36: 2286000000-N | C36: MASNRY DRAINAGE STRUCT | F36: 3 | G36: 1750 | H36: 5250
B37: 2367000000-N | C37: FRAME W/2GRTS 840.29 STD | F37: 3 | G37: 500 | H37: 1500
B38: 2556000000-E | C38: SHOULDER BERM GUTTER | F38: 45 | G38: 65 | H38: 2925
B39: 2577000000-E | C39: CONC EXPRESSWAY GUTTER | F39: 220 | G39: 65 | H39: 14300
B40: 3030000000-E | C40: STL BEAM GUARDRAIL | F40: 68.75 | G40: 15 | H40: 1031.25
B41: 3045000000-E | C41: SBGR SHOP CURVED | F41: 18.75 | G41: 16 | H41: 300
B42: 3150000000-N | C42: ADDIT GUARDRAIL POSTS | F42: 10 | G42: 10 | H42: 100
B43: 3195000000-N | C43: GR END TYPE AT-1 | F43: 2 | G43: 600 | H43: 1200
B44: 3215000000-N | C44: GR ANCHOR TYPE III | F44: 8 | G44: 1750 | H44: 14000
B45: 3287000000-N | C45: GR END TYPE TL-3 | F45: 3 | G45: 2700 | H45: 8100
B46: 3288000000-N | C46: GR END TYPE TL-2 | F46: 3 | G46: 2600 | H46: 7800
B47: 3628000000-E | C47: RIP RAP, CLASS I | F47: 5 | G47: 100 | H47: 500
B48: 3635000000-E | C48: RIP RAP, CLASS II | F48: 200 | G48: 54 | H48: 10800
B49: 3649000000-E | C49: RIP RAP, CLASS B | F49: 115 | G49: 54 | H49: 6210
B50: 3656000000-E | C50: GEOTEXTILE FOR DRAINGE | F50: 3715 | G50: 2 | H50: 7430
B51: 4400000000-E | C51: WORK ZONE SIGNS (STAT) | F51: 632 | G51: 5.15 | H51: 3254.8
B52: 4410000000-E | C52: WORK ZONE SIGNS (BARR) | F52: 213 | G52: 4.55 | H52: 969.15
B53: 4445000000-E | C53: BARRICADES (TYPE III) | F53: 144 | G53: 24.75 | H53: 3564
B54: 4810000000-E | C54: PAINT PVMT MARKINGS 4" | F54: 11520 | G54: 0.5 | H54: 5760
B55: 6000000000-E | C55: TEMPORARY SILT FENCE | F55: 1675 | G55: 2.05 | H55: 3433.75
B56: 6006000000-E | C56: EROS CONTRL STONE CL A | F56: 300 | G56: 0.01 | H56: 3
B57: 6009000000-E | C57: EROS CONTRL STONE CL B | F57: 425 | G57: 0.01 | H57: 4.25
B58: 6012000000-E | C58: SEDIMENT CONTROL STONE | F58: 545 | G58: 0.01 | H58: 5.45
B59: 6015000000-E | C59: TEMPORARY MULCHING | F59: 4 | G59: 900 | H59: 3600
B60: 6018000000-E | C60: SEED FOR TEMP SEEDING | F60: 400 | G60: 1.5 | H60: 600
B61: 6021000000-E | C61: FERT FOR TEMP SEEDING | F61: 2 | G61: 850 | H61: 1700
B62: 6024000000-E | C62: TEMPORARY SLOPE DRAINS | F62: 400 | G62: 3 | H62: 1200
B63: 6029000000-E | C63: SAFETY FENCE | F63: 640 | G63: 1.99 | H63: 1273.6
B64: 6030000000-E | C64: SILT EXCAVATION | F64: 450 | G64: 3 | H64: 1350
B65: 6036000000-E | C65: MATTING FOR EROS CONTROL | F65: 2725 | G65: 1.45 | H65: 3951.25
B66: 6037000000-E | C66: COIR FIBER MAT | F66: 200 | G66: 5 | H66: 1000
B67: 6042000000-E | C67: 1/4" HARDWARE CLOTH | F67: 310 | G67: 3.5 | H67: 1085
B68: 6070000000-N | C68: SPECIAL STILLING BASINS | F68: 16 | G68: 135 | H68: 2160
B69: 6071012000-E | C69: COIR FIBER WATTLE | F69: 80 | G69: 7 | H69: 560
B70: 6071020000-E | C70: POLYACRYLAMIDE (PAM) | F70: 80 | G70: 10 | H70: 800
B71: 6084000000-E | C71: SEEDING AND MULCHING | F71: 4 | G71: 1999 | H71: 7996
B72: 6087000000-E | C72: MOWING | F72: 2 | G72: 10 | H72: 20
B73: 6090000000-E | C73: SEED FOR REPAIR SEEDING | F73: 100 | G73: 3 | H73: 300
B74: 6093000000-E | C74: FERT FOR REPAIR SEEDING | F74: 0.5 | G74: 1000 | H74: 500
B75: 6096000000-E | C75: SEED FOR SUPP SEEDING | F75: 100 | G75: 5 | H75: 500
B76: 6108000000-E | C76: FERTILIZER TOPDRESSING | F76: 2.5 | G76: 750 | H76: 1875
B77: 6111000000-E | C77: IMPERVIOUS DIKE | F77: 330 | G77: 35 | H77: 11550
B78: 6114500000-N | C78: SPECIALIZED HAND MOWING | F78: 20 | G78: 10 | H78: 200
B79: 6117000000-N | C79: RESPONSE FOR EROS CONTROL | F79: 26 | G79: 1 | H79: 26
B80: 6117500000-N | C80: CONC WASHOUT STRUCTURE | F80: 4 | G80: 1000 | H80: 4000
B81: 8017000000-N | C81: CM&R TEMP ACCESS *********** | D81: (15+74.00-L-) | F81: 1 | G81: 15000 | H81: 15000
B82: 8035000000-N | C82: REMV EXIST STR ********** | D82: (15+74.00-L-) | F82: 1 | G82: 20000 | H82: 20000
D83: (16+08.00-L-) | F83: 1 | G83: 15845 | H83: 15845
B84: 8065000000-N | C84: ASBESTOS ASSESSMENT | F84: 1 | G84: 5000 | H84: 5000
B85: 8105520000-E | C85: 3'-0" DRILLD PIER IN SOIL | F85: 102 | G85: 680 | H85: 69360
B86: 8105620000-E | C86: 3'-0" DRILLD PIER NO SOIL | F86: 84 | G86: 680 | H86: 57120
B87: 8111200000-E | C87: PERM STL CASING FOR 3' PIER | F87: 58 | G87: 115 | H87: 6670
B88: 8115000000-N | C88: CSL TESTING | F88: 1 | G88: 2500 | H88: 2500
B89: 8121000000-N | C89: UNCL STR EXCAV STA ***** | D89: (15+74.00-L-) | F89: 1 | G89: 5000 | H89: 5000
D90: (16+08.00-L-) | F90: 1 | G90: 2500 | H90: 2500
B91: 8182000000-E | C91: CLASS A CONCRETE (BRIDGE) | F91: 141.7 | G91: 900 | H91: 127530
B92: 8210000000-N | C92: BRG APPR SLAB *********** | D92: (15+74.00-L-) | F92: 1 | G92: 19000 | H92: 19000
D93: (16+08.00-L-) | F93: 1 | G93: 19000 | H93: 19000
B94: 8217000000-E | C94: REINF STEEL (BRIDGE) | F94: 38149 | G94: 1.5 | H94: 57223.5
B95: 8238000000-E | C95: SPIRAL COL REINF STL BRG | F95: 4065 | G95: 5 | H95: 20325
B96: 8328200000-E | C96: PILE DRV EQUIP SETUP ** STEEL PILES | D96: (HP 12 X 53) | F96: 10 | G96: 1000 | H96: 10000
D97: (HP 14 X 73) | F97: 10 | G97: 1200 | H97: 12000
B98: 8364000000-E | C98: HP12X53 PILES | F98: 240 | G98: 25 | H98: 6000
B99: 8384000000-E | C99: HP14X73 PILES | F99: 290 | G99: 35 | H99: 10150
B100: 8505000000-E | C100: VERT CONC BARRIER RAIL | F100: 470.57 | G100: 150 | H100: 70585.5
B101: 8608000000-E | C101: RIP RAP II (2'-0") | F101: 530 | G101: 50 | H101: 26500
B102: 8622000000-E | C102: GEOTEXTILE FOR DRAINAGE | F102: 585 | G102: 2 | H102: 1170
B103: 8657000000-N | C103: ELASTOMERIC BEARINGS | F103: 1 | G103: 10000 | H103: 10000
B104: 8753200000-E | C104: 3'-0"X 3'-3" PRESTR BOX BEAM | F104: 1000 | G104: 280 | H104: 280000
B105: 8762000000-E | C105: 3'-0"X 1'-9"PRESTR SLABS | F105: 750 | G105: 82 | H105: 61500
B106: 8763000000-E | C106: 3'-0" X 2'-0"PRESTR SLABS | F106: 700 | G106: 200 | H106: 140000
B107: 8867000000-E | C107: GENERIC STRUCTURE ITEM (LF) | D107: FIBER OPTIC CONDUIT SYSTEM | F107: 462.6 | G107: 20 | H107: 9252

Sheet ITEMS - DIV 13
B1: 2020 BID AVERAGES - DIVISION 13
B2: Item # | C2: Item Description | D2: Item Supplemental Description | E2: Item Supplemental Description 2 | F2: Item Quantity | G2: Average Unit Bid | H2: Extended Amt
B3: 0000100000-N | C3: MOBILIZATION | F3: 1 | G3: 1525000 | H3: 1525000
B4: 0008000000-E | C4: SUPP CLEARING & GRUBBING | F4: 3 | G4: 2600 | H4: 7800
B5: 0036000000-E | C5: UNDERCUT EXCAVATION | F5: 3060 | G5: 33.5 | H5: 102510
B6: 0106000000-E | C6: BORROW EXCAVATION | F6: 4274 | G6: 26.75 | H6: 114329.5
B7: 0134000000-E | C7: DRAINAGE DITCH EXCAVATION | F7: 320 | G7: 18.25 | H7: 5840
B8: 0196000000-E | C8: GEOTEXTILE SOIL STABILIZATION | F8: 1000 | G8: 6.4 | H8: 6400
B9: 0255000000-E | C9: GENERIC GRADING ITEM (TON) | D9: AGGREGATE BASE COURSE FOR BACKFILL | F9: 1100 | G9: 35.25 | H9: 38775
B10: 1000000000-E | C10: 6" SLOPE PROTECTION | F10: 180 | G10: 115 | H10: 20700
B11: 1099500000-E | C11: SHALLOW UNDERCUT | F11: 310 | G11: 23.5 | H11: 7285
B12: 1099700000-E | C12: CLASS IV SUBGRD STABILIZATION | F12: 700 | G12: 34.2 | H12: 23940
B13: 1220000000-E | C13: INCIDENTAL STONE BASE | F13: 840 | G13: 36.35 | H13: 30534
B14: 1245000000-E | C14: SHOULDER RECONSTRUCTION | F14: 20.82 | G14: 6000 | H14: 124920
B15: 1260000000-E | C15: AGGREGATE SHOULDER BORROW | F15: 20588 | G15: 23.5 | H15: 483818
B16: 1297000000-E | C16: MILL ASP PVMT *****" DTH | D16: (1-1/2") | F16: 21909 | G16: 4.1 | H16: 89826.9
D17: (2") | F17: 4305 | G17: 12.8 | H17: 55104
D18: (8") | F18: 5900 | G18: 12.25 | H18: 72275
B19: 1330000000-E | C19: INCIDENTAL MILLING | F19: 2630 | G19: 18.25 | H19: 47997.5
B20: 1491000000-E | C20: ASP CONC BASE CRS B25.0C | F20: 1694 | G20: 74.25 | H20: 125779.5
B21: 1503000000-E | C21: ASP CONC INTR CRS I19.0C | F21: 47028 | G21: 59.25 | H21: 2786409
B22: 1524200000-E | C22: ASP CONC SURF CRS S9.5D | F22: 51566 | G22: 61.45 | H22: 3168730.7
B23: 1575000000-E | C23: ASP FOR PLANT MIX | F23: 2334 | G23: 550 | H23: 1283700
B24: 1577000000-E | C24: POLYM MOD ASP BNDR FOR PLT MIX | F24: 3317 | G24: 700 | H24: 2321900
B25: 1704000000-E | C25: PATCHING EXIST PAVEMENT | F25: 610 | G25: 170 | H25: 103700
B26: 1735000000-E | C26: REP JNT CONC PVT SLABS | F26: 90 | G26: 870 | H26: 78300
B27: 1839140000-E | C27: ULTRATHIN BOND WEAR CRS | F27: 7548 | G27: 109.5 | H27: 826506
B28: 1840000000-E | C28: MILLED RUMBLE STRIPS | F28: 105600 | G28: 0.1 | H28: 10560
B29: 1881000000-E | C29: GENERIC PAVING ITEM (LF) | D29: JOINT CONSTRUCTION, REPAIR AND SEALING | F29: 3800 | G29: 2.4 | H29: 9120
B30: 1891000000-E | C30: GENERIC PAVING ITEM (SY) | D30: 8" CONTINUOUSLY REINFORCED | E30: CONCRETE PAVEMENT REPAIR | F30: 1070 | G30: 935 | H30: 1000450
D31: FINE MILLING | F31: 140800 | G31: 3.25 | H31: 457600
D32: MILLING CONCRETE PAVEMENT, | E32: 0" TO 2" DEPTH | F32: 11666 | G32: 24.35 | H32: 284067.1
D33: MILLING CONCRETE PAVEMENT, 2" DEPTH | F33: 2800 | G33: 34.15 | H33: 95620
B34: 2364000000-N | C34: FRAME W/2GRTS 840.16 STD | F34: 16 | G34: 695 | H34: 11120
B35: 2364200000-N | C35: FRAME W/2GRTS 840.20 STD | F35: 5 | G35: 910 | H35: 4550
B36: 2365000000-N | C36: FRAME W/2GRTS 840.22 STD | F36: 22 | G36: 910 | H36: 20020
B37: 2366000000-N | C37: FRAME W/2GRTS 840.24 STD | F37: 7 | G37: 775 | H37: 5425
B38: 2367000000-N | C38: FRAME W/2GRTS 840.29 STD | F38: 7 | G38: 775 | H38: 5425
B39: 2374000000-N | C39: FRAME-GRT-HD 840.03 ** | D39: (E) | F39: 7 | G39: 910 | H39: 6370
D40: (F) | F40: 12 | G40: 935 | H40: 11220
D41: (G) | F41: 14 | G41: 910 | H41: 12740
B42: 2396000000-N | C42: FRAME W/COVER STD 840.54 | F42: 9 | G42: 670 | H42: 6030
B43: 2407000000-N | C43: STL FRAM W/ 2 GTR, STD 840.37 | F43: 2 | G43: 3000 | H43: 6000
B44: 2473000000-N | C44: GENERIC DRAINAGE ITEM (EA) | D44: CONCRETE PAD FOR SHOULDER | E44: DRAIN PIPE OUTLET | F44: 176 | G44: 455 | H44: 80080
D45: DRAINAGE STRUCTURE CLEANOUT | F45: 30 | G45: 700 | H45: 21000
D46: REMOVE AND REPLACE CONCRETE | E46: APRON FOR DROP INLET | F46: 65 | G46: 3000 | H46: 195000
B47: 2484000000-E | C47: GENERIC DRAINAGE ITEM (LF) | D47: 4" PVC (SCHEDULE 40) | F47: 4224 | G47: 29.15 | H47: 123129.6
D48: SHOULDER EDGE DRAIN | F48: 52800 | G48: 19.4 | H48: 1024320
B49: 2489000000-E | C49: GENERIC DRAINAGE ITEM (SY) | D49: REMOVE AND REPLACE 4" CONCRETE | E49: PAVED DITCH | F49: 9150 | G49: 120 | H49: 1098000
B50: 2613000000-N | C50: REM & REP CURB RAMPS | F50: 4 | G50: 14000 | H50: 56000
B51: 2703000000-E | C51: CONC BARRIER TYPE ****** | D51: (SINGLE SLOPE) | F51: 2100 | G51: 140 | H51: 294000
B52: 2752000000-E | C52: GENERIC PAVING ITEM (LF) | D52: REMOVE AND REPLACE 2' 6" CURB & GUTTER | F52: 8619 | G52: 75 | H52: 646425
B53: 2815000000-N | C53: ADJ DROP INLETS | F53: 65 | G53: 1330 | H53: 86450
B54: 2830000000-N | C54: ADJ MANHOLES | F54: 4 | G54: 1250 | H54: 5000
B55: 2845000000-N | C55: ADJ METER OR VALVE BOXES | F55: 3 | G55: 1015 | H55: 3045
B56: 2905000000-N | C56: CONVERT DI TO JB | F56: 1 | G56: 5350 | H56: 5350
B57: 3030000000-E | C57: STL BEAM GUARDRAIL | F57: 63221 | G57: 14.9 | H57: 941992.9
B58: 3045000000-E | C58: SBGR SHOP CURVED | F58: 190 | G58: 25.5 | H58: 4845
B59: 3060000000-E | C59: SBGR DOUBLE FACED | F59: 460 | G59: 29.75 | H59: 13685
B60: 3075000000-E | C60: TRIPLE CORRUGATED SBGR | F60: 145 | G60: 130 | H60: 18850
B61: 3145000000-E | C61: EX LENGTH GR POST ** STL | D61: (8') | F61: 16 | G61: 85 | H61: 1360
B62: 3150000000-N | C62: ADDIT GUARDRAIL POSTS | F62: 45 | G62: 42.5 | H62: 1912.5
B63: 3180000000-N | C63: GR ANCHOR TYPE ********** | D63: (B-83 SHOP CURVED) | F63: 2 | G63: 905 | H63: 1810
D64: (III MOD) | F64: 2 | G64: 2660 | H64: 5320
D65: (III SHOP CURVED) | F65: 2 | G65: 1915 | H65: 3830
B66: 3195000000-N | C66: GR END TYPE AT-1 | F66: 2 | G66: 425 | H66: 850
B67: 3210000000-N | C67: GR END TYPE CAT-1 | F67: 88 | G67: 425 | H67: 37400
B68: 3215000000-N | C68: GR ANCHOR TYPE III | F68: 5 | G68: 1915 | H68: 9575
B69: 3287000000-N | C69: GR END TYPE TL-3 | F69: 10 | G69: 3830 | H69: 38300
B70: 3288000000-N | C70: GR END TYPE TL-2 | F70: 2 | G70: 3615 | H70: 7230
B71: 3317000000-N | C71: GR ANCHOR TYPE B-77 | F71: 6 | G71: 1700 | H71: 10200
B72: 3319000000-N | C72: GR ANCHOR TYPE B-83 | F72: 6 | G72: 1600 | H72: 9600
B73: 3360000000-E | C73: REMOVE EXISTING GUARDRAIL | F73: 46940 | G73: 0.3 | H73: 14082
B74: 3387000000-N | C74: TEMP GDRL ANCH UNITS ****** | D74: (B-77) | F74: 12 | G74: 1065 | H74: 12780
D75: (B-83) | F75: 4 | G75: 1065 | H75: 4260
D76: (III MOD) | F76: 2 | G76: 2660 | H76: 5320
D77: (III) | F77: 8 | G77: 1065 | H77: 8520
B78: 3389150000-N | C78: TEMP GDRL END UNITS ***** | D78: (TL-2) | F78: 10 | G78: 2900 | H78: 29000
D79: (TL-3) | F79: 2 | G79: 3000 | H79: 6000
B80: 3435000000-N | C80: GENERIC GUARDRAIL ITEM (EA) | D80: RESPONSE FOR GUARDRAIL/GUIDE- | E80: RAIL MAINTENANCE | F80: 100 | G80: 425 | H80: 42500
B81: 3649000000-E | C81: RIP RAP, CLASS B | F81: 400 | G81: 75 | H81: 30000
B82: 3656000000-E | C82: GEOTEXTILE FOR DRAINGE | F82: 4000 | G82: 4.3 | H82: 17200
B83: 4400000000-E | C83: WORK ZONE SIGNS (STAT) | F83: 510 | G83: 6.4 | H83: 3264
B84: 4405000000-E | C84: WORK ZONE SIGNS (PORT) | F84: 810 | G84: 8.75 | H84: 7087.5
B85: 4424000000-N | C85: WZ PRESENCE LIGHTING | F85: 32 | G85: 1400 | H85: 44800
B86: 4434000000-N | C86: SEQ FLASH WARN LIGHTS | F86: 20 | G86: 130 | H86: 2600
B87: 4455000000-N | C87: FLAGGER | F87: 36 | G87: 375 | H87: 13500
B88: 4465000000-N | C88: TEMPORARY CRASH CUSHIONS | F88: 10 | G88: 5055 | H88: 50550
B89: 4470000000-N | C89: REM & RES CRASH CUSHION | F89: 30 | G89: 2895 | H89: 86850
B90: 4480000000-N | C90: TMA | F90: 2 | G90: 46500 | H90: 93000
B91: 4485000000-E | C91: PORT CONC BARRIER | F91: 1020 | G91: 42.75 | H91: 43605
B92: 4500000000-E | C92: REM & RES PORT CONC BARRIER | F92: 8000 | G92: 7.4 | H92: 59200
B93: 4510000000-N | C93: LAW ENFORCEMENT | F93: 880 | G93: 47.5 | H93: 41800
B94: 4600000000-N | C94: GENERIC TRAFFIC CONTROL ITEM (EA) | D94: LANE CLOSURE | F94: 112 | G94: 1575 | H94: 176400
D95: RAMP/LOOP CLOSURE | F95: 65 | G95: 1015 | H95: 65975
B96: 4650000000-N | C96: TEMP RAISED PVMT MRKS | F96: 420 | G96: 8 | H96: 3360
B97: 4725000000-E | C97: THERMO PVT SYMBOL 90MILS | F97: 39 | G97: 180 | H97: 7020
B98: 4726110000-E | C98: HIP THERMO PVT SYMBOL 90 MILS | F98: 6 | G98: 535 | H98: 3210
B99: 4775000000-E | C99: 6" COLD APPL PLSTIC LINES TYPE ** | D99: (II) | F99: 2870 | G99: 5.342 | H99: 15331.54
B100: 4815000000-E | C100: PAINT PVMT MARKINGS 6" | F100: 488130 | G100: 0.32 | H100: 156201.6
B101: 4825000000-E | C101: PAINT PVMT MARKINGS 12" | F101: 20654 | G101: 0.65 | H101: 13425.1
B102: 4835000000-E | C102: PAINT PVT MKG LINES 24" | F102: 100 | G102: 4.3 | H102: 430
B103: 4845000000-N | C103: PAINT PVT MKG SYMBOL | F103: 36 | G103: 110 | H103: 3960
B104: 4847030000-E | C104: POLYUREA LINES (6", 20 MILS) | F104: 19950 | G104: 1.35 | H104: 26932.5
B105: 4847070000-E | C105: POLYUREA LINES (12", 20 MILS) | F105: 712 | G105: 2.7 | H105: 1922.4
B106: 4890000000-E | C106: GENERIC PAVEMENT MARKING ITEM (LF) | D106: 9" COLD APPLIED PLASTIC PAVE- | E106: MENT MARKING LINES, TYPE II | F106: 600 | G106: 10.15 | H106: 6090
D107: THERMO PAVEMENT MARKING LINES, | E107: 12", 90 MILS (HIGHLY REFLECT- IVE MEDIA) | F107: 9720 | G107: 2.7 | H107: 26244
E108: 6", 90 MILS (HIGHLY REFLECTIVEMEDIA) | F108: 131060 | G108: 1.35 | H108: 176931
B109: 4891000000-E | C109: GENERIC PVMT MARKING ITEM (LF) 1205 | D109: THERMOPLASTIC PAVEMENT MARKING | E109: LINES (24", 90 MILS) | F109: 48 | G109: 12.8 | H109: 614.4
B110: 4895000000-N | C110: GENERIC PAVEMENT MARKING ITEM (EA) | D110: NON-CAST IRON SNOWPLOWABLE | E110: PAVEMENT MARKERS | F110: 1751 | G110: 45 | H110: 78795
B111: 4900000000-N | C111: PERM RAISED PVMT MARKERS | F111: 210 | G111: 7.5 | H111: 1575
B112: 5255000000-N | C112: PORTABLE LIGHTING | F112: 1 | G112: 125000 | H112: 125000
B113: 6000000000-E | C113: TEMPORARY SILT FENCE | F113: 8200 | G113: 3.5 | H113: 28700
B114: 6009000000-E | C114: EROS CONTRL STONE CL B | F114: 1190 | G114: 53.4 | H114: 63546
B115: 6012000000-E | C115: SEDIMENT CONTROL STONE | F115: 4280 | G115: 42.75 | H115: 182970
B116: 6015000000-E | C116: TEMPORARY MULCHING | F116: 60 | G116: 1500 | H116: 90000
B117: 6018000000-E | C117: SEED FOR TEMP SEEDING | F117: 3000 | G117: 5.35 | H117: 16050
B118: 6021000000-E | C118: FERT FOR TEMP SEEDING | F118: 12 | G118: 1500 | H118: 18000
B119: 6024000000-E | C119: TEMPORARY SLOPE DRAINS | F119: 280 | G119: 19.25 | H119: 5390
B120: 6029000000-E | C120: SAFETY FENCE | F120: 400 | G120: 3.75 | H120: 1500
B121: 6030000000-E | C121: SILT EXCAVATION | F121: 880 | G121: 16 | H121: 14080
B122: 6036000000-E | C122: MATTING FOR EROS CONTROL | F122: 1450 | G122: 2.25 | H122: 3262.5
B123: 6042000000-E | C123: 1/4" HARDWARE CLOTH | F123: 1480 | G123: 6.45 | H123: 9546
B124: 6071010000-E | C124: WATTLE | F124: 3800 | G124: 10.7 | H124: 40660
B125: 6071020000-E | C125: POLYACRYLAMIDE (PAM) | F125: 148 | G125: 14.45 | H125: 2138.6
B126: 6084000000-E | C126: SEEDING AND MULCHING | F126: 7.3 | G126: 2400 | H126: 17520
B127: 6087000000-E | C127: MOWING | F127: 22 | G127: 215 | H127: 4730
B128: 6090000000-E | C128: SEED FOR REPAIR SEEDING | F128: 250 | G128: 8.8 | H128: 2200
B129: 6093000000-E | C129: FERT FOR REPAIR SEEDING | F129: 2 | G129: 2150 | H129: 4300
B130: 6096000000-E | C130: SEED FOR SUPP SEEDING | F130: 450 | G130: 5.6 | H130: 2520
B131: 6108000000-E | C131: FERTILIZER TOPDRESSING | F131: 3 | G131: 1600 | H131: 4800
B132: 6114500000-N | C132: SPECIALIZED HAND MOWING | F132: 740 | G132: 75 | H132: 55500
B133: 6117000000-N | C133: RESPONSE FOR EROS CONTROL | F133: 48 | G133: 535 | H133: 25680
B134: 6117500000-N | C134: CONC WASHOUT STRUCTURE | F134: 4 | G134: 2670 | H134: 10680
B135: 6132000000-N | C135: GENERIC EROSION CONTROL ITEM (EA) | D135: FABRIC INSERT INLET PROTECTION | E135: DEVICE | F135: 24 | G135: 240 | H135: 5760
E136: DEVICE CLEANOUT | F136: 36 | G136: 240 | H136: 8640
B137: 7444000000-E | C137: INDUCTIVE LOOP SAWCUT | F137: 363 | G137: 13.15 | H137: 4773.45

Sheet ITEMS - DIV 14
B1: 2020 BID AVERAGES - DIVISION 14
B2: Item # | C2: Item Description | D2: Item Supplemental Description | E2: Item Supplemental Description 2 | F2: Item Quantity | G2: Average Unit Bid | H2: Extended Amt
B3: 0000100000-N | C3: MOBILIZATION | F3: 1 | G3: 297675.1 | H3: 297675.1
B4: 0000400000-N | C4: CONSTRUCTION SURVEYING | F4: 1 | G4: 15450 | H4: 15450
B5: 0043000000-N | C5: GRADING | F5: 1 | G5: 452543.33 | H5: 452543.33
B6: 0241000000-E | C6: GENERIC GRADING ITEM (SY) | D6: TYPE IV GEOTEXTILE | F6: 2500 | G6: 1.84 | H6: 4600
B7: 0314000000-E | C7: SELECT MATERIAL CLASS ** | D7: (V) | F7: 280 | G7: 37.93 | H7: 10620.4
D8: (VII) | F8: 123000 | G8: 36.83 | H8: 4530090
B9: 0335300000-E | C9: 18" DRAINAGE PIPE | F9: 20 | G9: 25.87 | H9: 517.4
B10: 0594000000-E | C10: 24" CS PIPE CULV 0.064" | F10: 100 | G10: 67.32 | H10: 6732
B11: 0986000000-E | C11: GENERIC PIPE ITEM (LF) | D11: 24" PIPE LINER | F11: 50 | G11: 185.4 | H11: 9270
D12: 36" PIPE LINER | F12: 385 | G12: 154.5 | H12: 59482.5
B13: 1077000000-E | C13: 57 STONE | F13: 200 | G13: 37.4 | H13: 7480
B14: 1220000000-E | C14: INCIDENTAL STONE BASE | F14: 500 | G14: 35.2 | H14: 17600
B15: 1297000000-E | C15: MILL ASP PVMT *****" DTH | D15: (1-1/2") | F15: 2500 | G15: 4 | H15: 10000
D16: (3") | F16: 5000 | G16: 5 | H16: 25000
B17: 1330000000-E | C17: INCIDENTAL MILLING | F17: 800 | G17: 15 | H17: 12000
B18: 1491000000-E | C18: ASP CONC BASE CRS B25.0C | F18: 1000 | G18: 88 | H18: 88000
B19: 1503000000-E | C19: ASP CONC INTR CRS I19.0C | F19: 900 | G19: 88 | H19: 79200
B20: 1523000000-E | C20: ASP CONC SURF CRS S9.5C | F20: 600 | G20: 90 | H20: 54000
B21: 1575000000-E | C21: ASP FOR PLANT MIX | F21: 125 | G21: 499.64 | H21: 62455
B22: 1840000000-E | C22: MILLED RUMBLE STRIPS | F22: 2400 | G22: 3.54 | H22: 8496
B23: 2022000000-E | C23: SUBDRAIN EXCAVATION | F23: 420 | G23: 16.09 | H23: 6757.8
B24: 2026000000-E | C24: GEOTEXTILE FOR SUBSURF DRNS | F24: 1700 | G24: 1.85 | H24: 3145
B25: 2036000000-E | C25: SUBDRAIN COARSE AGGREGATE | F25: 420 | G25: 85.16 | H25: 35767.2
B26: 2044000000-E | C26: 6" PERF SUBDRN PIPE | F26: 2500 | G26: 22.22 | H26: 55550
B27: 2070000000-N | C27: SUBDRN PIPE OUTLET | F27: 2 | G27: 413.2 | H27: 826.4
B28: 2077000000-E | C28: 6" OUTLET PIPE | F28: 50 | G28: 13.33 | H28: 666.5
B29: 2253000000-E | C29: PIPE COLLARS | F29: 0.56 | G29: 727.25 | H29: 407.26
B30: 3030000000-E | C30: STL BEAM GUARDRAIL | F30: 600 | G30: 18.54 | H30: 11124
B31: 3287000000-N | C31: GR END TYPE TL-3 | F31: 1 | G31: 3914 | H31: 3914
B32: 3360000000-E | C32: REMOVE EXISTING GUARDRAIL | F32: 500 | G32: 3.09 | H32: 1545
B33: 3642000000-E | C33: RIP RAP, CLASS A | F33: 200 | G33: 50.06 | H33: 10012
B34: 3649000000-E | C34: RIP RAP, CLASS B | F34: 200 | G34: 55 | H34: 11000
B35: 4457000000-N | C35: TEMP TRAFFIC CONTROL (SP) | F35: 1 | G35: 7650.5 | H35: 7650.5
B36: 4685000000-E | C36: THERMO PVT MKG LINES 4"90 | F36: 3000 | G36: 3.09 | H36: 9270
B37: 4725000000-E | C37: THERMO PVT SYMBOL 90MILS | F37: 8 | G37: 206 | H37: 1648
B38: 4810000000-E | C38: PAINT PVMT MARKINGS 4" | F38: 20000 | G38: 0.62 | H38: 12400
B39: 4845000000-N | C39: PAINT PVT MKG SYMBOL | F39: 8 | G39: 77.25 | H39: 618
B40: 4895000000-N | C40: GENERIC PAVEMENT MARKING ITEM (EA) | D40: NON-CAST IRON SNOWPLOWABLE | E40: PAVEMENT MARKERS | F40: 40 | G40: 82.4 | H40: 3296
B41: 6000000000-E | C41: TEMPORARY SILT FENCE | F41: 2500 | G41: 3.3 | H41: 8250
B42: 6006000000-E | C42: EROS CONTRL STONE CL A | F42: 1500 | G42: 43.66 | H42: 65490
B43: 6009000000-E | C43: EROS CONTRL STONE CL B | F43: 250 | G43: 53.07 | H43: 13267.5
B44: 6012000000-E | C44: SEDIMENT CONTROL STONE | F44: 250 | G44: 50.87 | H44: 12717.5
B45: 6015000000-E | C45: TEMPORARY MULCHING | F45: 4 | G45: 1287.5 | H45: 5150
B46: 6018000000-E | C46: SEED FOR TEMP SEEDING | F46: 50 | G46: 5.15 | H46: 257.5
B47: 6021000000-E | C47: FERT FOR TEMP SEEDING | F47: 0.5 | G47: 1030 | H47: 515
B48: 6024000000-E | C48: TEMPORARY SLOPE DRAINS | F48: 200 | G48: 21.81 | H48: 4362
B49: 6029000000-E | C49: SAFETY FENCE | F49: 100 | G49: 5.15 | H49: 515
B50: 6030000000-E | C50: SILT EXCAVATION | F50: 50 | G50: 14.7 | H50: 735
B51: 6036000000-E | C51: MATTING FOR EROS CONTROL | F51: 5000 | G51: 2.06 | H51: 10300
B52: 6037000000-E | C52: COIR FIBER MAT | F52: 100 | G52: 8.24 | H52: 824
B53: 6042000000-E | C53: 1/4" HARDWARE CLOTH | F53: 100 | G53: 7.21 | H53: 721
B54: 6070000000-N | C54: SPECIAL STILLING BASINS | F54: 2 | G54: 1980 | H54: 3960
B55: 6071010000-E | C55: WATTLE | F55: 100 | G55: 11.33 | H55: 1133
B56: 6071020000-E | C56: POLYACRYLAMIDE (PAM) | F56: 30 | G56: 51.5 | H56: 1545
B57: 6071050000-E | C57: **" SKIMMER | D57: (1-1/2") | F57: 1 | G57: 669.5 | H57: 669.5
B58: 6084000000-E | C58: SEEDING AND MULCHING | F58: 4 | G58: 2060 | H58: 8240
B59: 6108000000-E | C59: FERTILIZER TOPDRESSING | F59: 2 | G59: 1030 | H59: 2060
B60: 6117000000-N | C60: RESPONSE FOR EROS CONTROL | F60: 10 | G60: 309 | H60: 3090

Sheet Graph (hidden)
H1: FEP8Qry3
H2: Author | I2: PHIGGINS | K2: Relevance of Data (Time) | L2: 17:12:32
G5: Information
G6: Author | H6: PHIGGINS | J6: Last Refreshed | K6: 5/25/2021 13:28:18
G7: Current User | H7: PHIGGINS | J7: Key Date | K7: 5/25/2021
G8: Last Changed by | H8: PHIGGINS | J8: Changed At | K8: 8/23/2013 10:16:36
G9: InfoProvider | H9: ZSPCI_C01 | J9: Status of Data | K9: 4/21/2021 17:12:32
G10: Query Technical Name | H10: Y_SPX_ITEMLISTSUPPDESCSDIV | J10: Relevance of Data (Date) | K10: 4/21/2021
G11: Query Description | H11: Item List with Supplemental Descriptions (Bid Averages) | J11: Relevance of Data (Time) | K11: 17:12:32
C14: Filter
C15: Item #
C16: Item Supplemental Description Line 2
C17: Item Supplemental Description
C18: Key Figures
